Local authority department which incurred the expenditure,Service Division,Cost Centre,Summary of the Purpose of Expenditure,Expense Type,Expense Code,Detailed Expense Type,Date of Transaction,Transaction Number,Beneficiary,Merchant Category Number,Merchant Category,Gross Amount,VAT,Net Amount
Children and Young Peoples Services,Head of Childrens Social Care,085342,16 Hickstead Rise (previously 9 Cedar Ave),Supplies and Services,304259,Equipment and Materials,01-Sep-2022,000008449389448,APPLE.COM/UK,5732,Equipment-purchase and rental,11.00,0.00,11.00
Children and Young Peoples Services,Head of Early Help Inclusion & Vulnerable Children.,085957,Secure Management,Supplies and Services,304403,Equipment and Materials,01-Sep-2022,000008449389520,AMZNMktplace,5999,Other consumables,69.99,11.67,58.32
Regeneration Economy and Growth,Communications Management,060270,Communications and Marketing,Supplies and Services,336005,Advertising E336,01-Sep-2022,000008449389728,LinkedIn 8203228214,7311,Advertising other than for staff,23.75,0.00,23.75
Children and Young Peoples Services,Head of Childrens Social Care,085364,Children Looked After Team 1,Supplies and Services,384999,Miscellaneous Expenses,01-Sep-2022,000008461544252,AMZNMKTPLACE AMAZON.CO,5999,Other expenses,10.99,1.83,9.16
Children and Young Peoples Services,Head of Childrens Social Care,085341,High Etherley Satelite Home,Supplies and Services,304259,Equipment and Materials,01-Sep-2022,000008461544272,SPORTSDIRECT 368,5941,Equipment-purchase and rental,72.15,0.00,72.15
Regeneration Economy and Growth,Economic Development Level C,030776,LINKCD Flexible Fund,Supplies and Services,324117,Provisions E324,01-Sep-2022,000008461544430,WM MORRISONS STORE,5411,Catering costs - provisions,10.00,0.00,10.00
Children and Young Peoples Services,Head of Childrens Social Care,085623,Families First Bishop Auckland,Supplies and Services,338045,Services,01-Sep-2022,000008461544432,Durham County CNCL,9399,Legal expenses 338045,11.00,0.00,11.00
Children and Young Peoples Services,Head of Early Help Inclusion & Vulnerable Children.,088104,BA/BC/Crook Intensive Family Support Team,Supplies and Services,304259,Equipment and Materials,01-Sep-2022,000008461544434,VF NORTHERN EUROPE LTD,5651,Equipment-purchase and rental,45.00,0.00,45.00
Regeneration Economy and Growth,Culture Sport and Tourism,054966,Gala Theatre - Gala Productions,Supplies and Services,338047,Services,01-Sep-2022,000008461544532,B & Q 1343,5200,Direct production costs,6.21,0.00,6.21
Regeneration Economy and Growth,Culture Sport and Tourism,054966,Gala Theatre - Gala Productions,Supplies and Services,338047,Services,01-Sep-2022,000008461544534,B&Q LTD,5211,Direct production costs,6.00,0.00,6.00
Regeneration Economy and Growth,Culture Sport and Tourism,054813,Gala Theatre - Technical,Supplies and Services,304259,Equipment and Materials,01-Sep-2022,000008461544536,WWW.SCREWFIX.COM,5211,Equipment-purchase and rental,1.39,0.00,1.39
Regeneration Economy and Growth,Economic Development Level C,030771,Durham Advance Flexible Fund,Transport,235057,Public Transport,01-Sep-2022,000008461544564,WALKERGATE CAR PAR,7523,Staff travelling,2.00,0.00,2.00
Regeneration Economy and Growth,Economic Development Level C,030771,Durham Advance Flexible Fund,Supplies and Services,304403,Equipment and Materials,01-Sep-2022,000008461544568,AMZNMKTPLACE AMAZON.CO,5999,Other consumables,42.98,7.16,35.82
Children and Young Peoples Services,Head of Early Help Inclusion & Vulnerable Children.,085957,Secure Management,Supplies and Services,304403,Equipment and Materials,01-Sep-2022,000008461544574,AMZNMKTPLACE AMAZON.CO,5999,Other consumables,11.65,1.95,9.70
Children and Young Peoples Services,Head of Early Help Inclusion & Vulnerable Children.,085957,Secure Management,Supplies and Services,304403,Equipment and Materials,01-Sep-2022,000008461544576,AMZNMKTPLACE AMAZON.CO,5999,Other consumables,14.94,2.49,12.45
Children and Young Peoples Services,Head of Early Help Inclusion & Vulnerable Children.,085957,Secure Management,Supplies and Services,304403,Equipment and Materials,01-Sep-2022,000008461544576 - 1,AMZNMKTPLACE AMAZON.CO,5999,Other consumables,0.03,,0.03
Children and Young Peoples Services,Head of Childrens Social Care,085347,Solo Home The Manse,Supplies and Services,348037,Subsistence E348,01-Sep-2022,000008461544668,STACK SEABURN,5812,Subsistence,9.00,0.00,9.00
Children and Young Peoples Services,Head of Early Help Inclusion & Vulnerable Children.,085957,Secure Management,Premises,108099,Service Repairs and Maintenance,01-Sep-2022,000008461544772,WWW.SCREWFIX.COM,5211,General repairs 108099,181.28,0.00,181.28
Children and Young Peoples Services,Head of Childrens Social Care,085332,Middlestone Moor CU,Supplies and Services,348037,Subsistence E348,01-Sep-2022,000008461544934,CAROUSEL REDDISH,5813,Subsistence,30.93,0.00,30.93
Children and Young Peoples Services,Head of Childrens Social Care,085332,Middlestone Moor CU,Supplies and Services,304259,Equipment and Materials,01-Sep-2022,000008461544954,JD SPORTS INTERNET,5941,Equipment-purchase and rental,53.99,0.00,53.99
Children and Young Peoples Services,Head of Childrens Social Care,085334,West Rainton Satelite Home,Supplies and Services,304221,Equipment and Materials,01-Sep-2022,000008461544958,WWW.SCREWFIX.COM,5211,Direct materials,109.99,0.00,109.99
Resources BK0010,Corporate Policy Planning & Performance,060290,Riep - Modern ways of working,Supplies and Services,312009,Newspapers books and periodicals E312,01-Sep-2022,000008461544974,APM,8699,Newspapers books and periodicals,52.92,0.00,52.92
Regeneration Economy and Growth,Corporate Property and Land,011296,Catering - Dunes,Supplies and Services,324117,Provisions E324,01-Sep-2022,000008461657444,BATLEYS PERTH,5300,Catering costs - provisions,315.18,52.53,262.65
Regeneration Economy and Growth,Corporate Property and Land,011296,Catering - Dunes,Supplies and Services,324117,Provisions E324,01-Sep-2022,000008461657444 - 1,BATLEYS PERTH,5300,Catering costs - provisions,48.26,,48.26
Neighbourhoods and Climate Change,Environmental Services,011060,C&G - Hardwick Park Catering,Supplies and Services,324117,Provisions E324,01-Sep-2022,000008461657462,BATLEYS PERTH,5300,Catering costs - provisions,374.94,62.49,312.45
Neighbourhoods and Climate Change,Environmental Services,011060,C&G - Hardwick Park Catering,Supplies and Services,324117,Provisions E324,01-Sep-2022,000008461657462 - 1,BATLEYS PERTH,5300,Catering costs - provisions,194.02,,194.02
Neighbourhoods and Climate Change,Environmental Services,011060,C&G - Hardwick Park Catering,Supplies and Services,324117,Provisions E324,01-Sep-2022,000008461657470,BATLEYS PERTH,5300,Catering costs - provisions,52.80,8.80,44.00
Neighbourhoods and Climate Change,Environmental Services,011060,C&G - Hardwick Park Catering,Supplies and Services,324117,Provisions E324,01-Sep-2022,000008461657470 - 1,BATLEYS PERTH,5300,Catering costs - provisions,6.81,,6.81
Regeneration Economy and Growth,Corporate Property and Land,021242,Catering - County Hall,Supplies and Services,324117,Provisions E324,01-Sep-2022,000008461657486,BATLEYS PERTH,5300,Catering costs - provisions,345.66,57.61,288.05
Regeneration Economy and Growth,Corporate Property and Land,021242,Catering - County Hall,Supplies and Services,324117,Provisions E324,01-Sep-2022,000008461657486 - 1,BATLEYS PERTH,5300,Catering costs - provisions,213.72,,213.72
Regeneration Economy and Growth,Business Durham CL0850,030689,Inward Investment and Aftercare,Supplies and Services,336005,Advertising E336,01-Sep-2022,000008475041904,Google ADS6853017821,7311,Advertising other than for staff,48.65,0.00,48.65
Children and Young Peoples Services,Head of Childrens Social Care,085300,LAC Placements,Supplies and Services,364320,Grants to Voluntary Organisations,01-Sep-2022,000008475041906,Hotel at Booking.com,7011,Accommodation assistance,370.00,0.00,370.00
Children and Young Peoples Services,Head of Childrens Social Care,085633,Families First Chester-Le-Street,Supplies and Services,364301,Grants to Voluntary Organisations,01-Sep-2022,000008475041908,Millets,5655,Hardship,29.95,0.00,29.95
Children and Young Peoples Services,Head of Childrens Social Care,085364,Children Looked After Team 1,Supplies and Services,384999,Miscellaneous Expenses,01-Sep-2022,000008475041912,AMZNMktplace,5999,Other expenses,7.72,1.29,6.43
Children and Young Peoples Services,Head of Childrens Social Care,085364,Children Looked After Team 1,Supplies and Services,384999,Miscellaneous Expenses,01-Sep-2022,000008475041914,AMZNMKTPLACE AMAZON.CO,5999,Other expenses,23.77,3.96,19.81
Children and Young Peoples Services,Head of Education and Skills,071801,Selby Cottage Childcare Centre,Employees,040149,Recruitment Instruction and Training,01-Sep-2022,000008475041922,NDNA NATIONAL DAY NURS,8398,Training-all costs,169.50,0.00,169.50
Children and Young Peoples Services,Head of Education and Skills,075034,Youth Futures Foundation,Supplies and Services,364301,Grants to Voluntary Organisations,01-Sep-2022,000008475041942,WWW.GONORTHEAST.CO.UK,4111,Hardship,21.50,0.00,21.50
Children and Young Peoples Services,Head of Education and Skills,075034,Youth Futures Foundation,Supplies and Services,364301,Grants to Voluntary Organisations,01-Sep-2022,000008475041944,WWW.GONORTHEAST.CO.UK,4111,Hardship,21.50,0.00,21.50
Regeneration Economy and Growth,Culture Sport and Tourism,054235,Bishop Auckland Town Hall Cafe,Supplies and Services,304259,Equipment and Materials,01-Sep-2022,000008475041946,AMZNMktplace,5999,Equipment-purchase and rental,7.94,1.32,6.62
Regeneration Economy and Growth,Culture Sport and Tourism,054235,Bishop Auckland Town Hall Cafe,Supplies and Services,304259,Equipment and Materials,01-Sep-2022,000008475041948,AMZNMktplace,5999,Equipment-purchase and rental,7.94,1.32,6.62
Children and Young Peoples Services,Head of Childrens Social Care,085623,Families First Bishop Auckland,Supplies and Services,338045,Services,01-Sep-2022,000008475042000,DARLINGTON BC INTERNET,9399,Legal expenses 338045,11.00,0.00,11.00
Regeneration Economy and Growth,Culture Sport and Tourism,054233,Bishop Auckland Town Hall Library,Supplies and Services,324117,Provisions E324,01-Sep-2022,000008475042002,B&M 134 - BISHOP AUCKL,5399,Catering costs - provisions,10.00,0.00,10.00
Resources BK0010,Procurement Sales & Business Services,065501,Business Support - Executive Support,Supplies and Services,312009,Newspapers books and periodicals E312,01-Sep-2022,000008475042022,DURHAM CITY NEWS,5994,Newspapers books and periodicals,286.10,0.00,286.10
Resources BK0010,Procurement Sales & Business Services,065501,Business Support - Executive Support,Supplies and Services,340001,Postages E340,01-Sep-2022,000008475042024,PARCELFORCE WL,4215,Postages,16.20,0.00,16.20
Children and Young Peoples Services,Head of Early Help Inclusion & Vulnerable Children.,074000,National Supporting Families Programme,Supplies and Services,304403,Equipment and Materials,01-Sep-2022,000008475042026,AMZNMKTPLACE AMAZON.CO,5999,Other consumables,24.50,4.10,20.40
Children and Young Peoples Services,Head of Early Help Inclusion & Vulnerable Children.,074000,National Supporting Families Programme,Supplies and Services,304403,Equipment and Materials,01-Sep-2022,000008475042028,AMZNMktplace,5999,Other consumables,25.50,4.26,21.24
Children and Young Peoples Services,Head of Childrens Social Care,085331,New Lea Childrens Home,Supplies and Services,324117,Provisions E324,01-Sep-2022,000008475042038,TESCO STORES 5457,5411,Catering costs - provisions,40.42,0.00,40.42
Regeneration Economy and Growth,Culture Sport and Tourism,054967,Theatre - Technical Staffing,Supplies and Services,304221,Equipment and Materials,01-Sep-2022,000008475042042,THE KEEP,5211,Direct materials,59.85,0.00,59.85
Regeneration Economy and Growth,Culture Sport and Tourism,054967,Theatre - Technical Staffing,Supplies and Services,324117,Provisions E324,01-Sep-2022,000008475042044,B&M 681 - DURHAM,5399,Catering costs - provisions,12.00,0.00,12.00
Neighbourhoods and Climate Change,Environmental Services,026591,C&G - Hardwick Park,Supplies and Services,332047,Printing Stationery and Gen Off Exps,01-Sep-2022,000008475042050,AMZNMktplace,5999,Stationery,39.94,6.66,33.28
Neighbourhoods and Climate Change,Environmental Services,011060,C&G - Hardwick Park Catering,Supplies and Services,304259,Equipment and Materials,01-Sep-2022,000008475042052,WWW.TILLROLLKING.CO.UK,5943,Equipment-purchase and rental,28.78,0.00,28.78
Children and Young Peoples Services,Head of Childrens Social Care,085333,Coxhoe Satelite Home,Supplies and Services,348037,Subsistence E348,01-Sep-2022,000008475042054,43039235 COSTA COFFEE,5814,Subsistence,6.70,0.00,6.70
Regeneration Economy and Growth,Economic Development Level C,030770,Durham Advance,Supplies and Services,342033,Computers and Communications,01-Sep-2022,000008475042056,RICHARDSONS PHOTOGRAPH,7333,Computer hardware,20.00,3.33,16.67
Regeneration Economy and Growth,Economic Development Level C,030770,Durham Advance,Supplies and Services,304259,Equipment and Materials,01-Sep-2022,000008475042058,CURRYS ONLINE,5732,Equipment-purchase and rental,119.00,19.83,99.17
Regeneration Economy and Growth,Business Durham CL0850,030690,Durham Dales Centre - Tourist Information Centre,Supplies and Services,304221,Equipment and Materials,01-Sep-2022,000008475042060,A AND K HOSIERY LTD,5099,Direct materials,40.68,0.00,40.68
Regeneration Economy and Growth,Business Durham CL0850,030690,Durham Dales Centre - Tourist Information Centre,Supplies and Services,304221,Equipment and Materials,01-Sep-2022,000008475042062,A AND K HOSIERY LTD,5099,Direct materials,684.54,0.00,684.54
Regeneration Economy and Growth,Business Durham CL0850,030690,Durham Dales Centre - Tourist Information Centre,Supplies and Services,304403,Equipment and Materials,01-Sep-2022,000008475042064,GREETINGS C BY NT LTD,5947,Other consumables,500.04,0.00,500.04
Regeneration Economy and Growth,Business Durham CL0850,030690,Durham Dales Centre - Tourist Information Centre,Supplies and Services,324117,Provisions E324,01-Sep-2022,000008475042066,Joe Davies (Manchester,5300,Catering costs - provisions,943.09,0.00,943.09
Children and Young Peoples Services,Head of Childrens Social Care,085517,Supporting Solutions Service (Edge of Care),Supplies and Services,324117,Provisions E324,01-Sep-2022,000008475042072,ASDA GROCERIES ONLINE,5411,Catering costs - provisions,77.68,0.00,77.68
Children and Young Peoples Services,Head of Childrens Social Care,085517,Supporting Solutions Service (Edge of Care),Supplies and Services,324117,Provisions E324,01-Sep-2022,000008475042074,ASDA GROCERIES ONLINE,5411,Catering costs - provisions,-1.35,0.00,-1.35
Regeneration Economy and Growth,Economic Development Level C,030771,Durham Advance Flexible Fund,Supplies and Services,304259,Equipment and Materials,01-Sep-2022,000008475042082,CURRYS ONLINE,5732,Equipment-purchase and rental,119.00,0.00,119.00
Regeneration Economy and Growth,Economic Development Level C,030771,Durham Advance Flexible Fund,Transport,235057,Public Transport,01-Sep-2022,000008475042084,WWW.GONORTHEAST.CO.UK,4111,Staff travelling,80.00,0.00,80.00
Regeneration Economy and Growth,Economic Development Level C,030771,Durham Advance Flexible Fund,Supplies and Services,304259,Equipment and Materials,01-Sep-2022,000008475042086,GEN REGISTER OFFICE,9399,Equipment-purchase and rental,14.00,0.00,14.00
Children and Young Peoples Services,Head of Early Help Inclusion & Vulnerable Children.,085957,Secure Management,Supplies and Services,304403,Equipment and Materials,01-Sep-2022,000008475042088,AMZNMKTPLACE AMAZON.CO,5999,Other consumables,100.00,16.67,83.33
Children and Young Peoples Services,Head of Early Help Inclusion & Vulnerable Children.,085957,Secure Management,Supplies and Services,304403,Equipment and Materials,01-Sep-2022,000008475042090,AMZNMKTPLACE AMAZON.CO,5999,Other consumables,156.11,26.02,130.09
Children and Young Peoples Services,Head of Early Help Inclusion & Vulnerable Children.,085957,Secure Management,Supplies and Services,324117,Provisions E324,01-Sep-2022,000008475042092,TESCO STORES 6329,5411,Catering costs - provisions,83.03,0.00,83.03
Children and Young Peoples Services,Head of Education and Skills,070169,Durham SSP,Supplies and Services,304999,Equipment and Materials,01-Sep-2022,000008475042096,Microsoft Microsoft 36,5816,Misc equipment tools and materials,7.99,1.33,6.66
Neighbourhoods and Climate Change,Environmental Services,010367,C&G - South Grounds Maintenance,Supplies and Services,304221,Equipment and Materials,01-Sep-2022,000008475042098,MKM PETERLEE,5211,Direct materials,32.29,0.00,32.29
Children and Young Peoples Services,Head of Childrens Social Care,085342,16 Hickstead Rise (previously 9 Cedar Ave),Supplies and Services,324117,Provisions E324,01-Sep-2022,000008475042102,TESCO STORES 6329,5411,Catering costs - provisions,217.31,0.00,217.31
Adult and Health Services,Head of Adults,055643,Hawthorn House LD Respite Unit,Supplies and Services,324117,Provisions E324,01-Sep-2022,000008475042116,WILKO.COM,5399,Catering costs - provisions,143.95,0.00,143.95
Children and Young Peoples Services,Head of Childrens Social Care,085347,Solo Home The Manse,Supplies and Services,348037,Subsistence E348,01-Sep-2022,000008475042122,Acropolis street food,5812,Subsistence,7.50,0.00,7.50
Children and Young Peoples Services,Head of Education and Skills,078554,Adult Skills-Main,Supplies and Services,304403,Equipment and Materials,01-Sep-2022,000008475042126,AMZNMktplace,5999,Other consumables,10.20,1.70,8.50
Children and Young Peoples Services,Head of Early Help Inclusion & Vulnerable Children.,085957,Secure Management,Supplies and Services,384999,Miscellaneous Expenses,01-Sep-2022,000008475042136,WWW.SALLYBEAUTY.CO.UK,5977,Other expenses,179.94,0.00,179.94
Children and Young Peoples Services,Head of Early Help Inclusion & Vulnerable Children.,088103,Stanley & Moorside Family Centre,Supplies and Services,304259,Equipment and Materials,01-Sep-2022,000008475042170,AMZNMktplace,5999,Equipment-purchase and rental,41.94,6.99,34.95
Children and Young Peoples Services,Head of Early Help Inclusion & Vulnerable Children.,088103,Stanley & Moorside Family Centre,Supplies and Services,304259,Equipment and Materials,01-Sep-2022,000008475042170 - 1,AMZNMktplace,5999,Equipment-purchase and rental,0.03,,0.03
Children and Young Peoples Services,Head of Early Help Inclusion & Vulnerable Children.,071492,One Point - Central,Supplies and Services,324117,Provisions E324,01-Sep-2022,000008475042176,ASDA GROCERIES ONLINE,5411,Catering costs - provisions,31.50,0.00,31.50
Resources BK0010,Digital Services,065335,School Services - Implementations,Supplies and Services,304639,Equipment and Materials,01-Sep-2022,000008475042180,AMZNMKTPLACE AMAZON.CO,5999,Technicians-supplies,514.80,85.80,429.00
Resources BK0010,Digital Services,065335,School Services - Implementations,Supplies and Services,304639,Equipment and Materials,01-Sep-2022,000008475042182,AMZNMKTPLACE AMAZON.CO,5999,Technicians-supplies,514.80,85.80,429.00
Children and Young Peoples Services,Head of Early Help Inclusion & Vulnerable Children.,085956,Lumley,Supplies and Services,304259,Equipment and Materials,01-Sep-2022,000008475042184,AMZNMktplace,5999,Equipment-purchase and rental,3.95,0.66,3.29
Children and Young Peoples Services,Head of Early Help Inclusion & Vulnerable Children.,085956,Lumley,Supplies and Services,304259,Equipment and Materials,01-Sep-2022,000008475042186,AMZNMktplace,5999,Equipment-purchase and rental,5.99,1.00,4.99
Children and Young Peoples Services,Head of Early Help Inclusion & Vulnerable Children.,085952,Secure Education,Supplies and Services,304259,Equipment and Materials,01-Sep-2022,000008475042188,WWW.SALLYBEAUTY.CO.UK,5977,Equipment-purchase and rental,"1,061.00",0.00,1061.00
Children and Young Peoples Services,Head of Childrens Social Care,085379,Care Leavers Team 2,Transport,235057,Public Transport,01-Sep-2022,000008475042190,thetrainline.com,4112,Staff travelling,211.23,0.00,211.23
Children and Young Peoples Services,Head of Childrens Social Care,085379,Care Leavers Team 2,Transport,235057,Public Transport,01-Sep-2022,000008475042192,RAILCARD.CO.UK,4112,Staff travelling,30.00,0.00,30.00
Children and Young Peoples Services,Head of Childrens Social Care,085369,Care Leavers Team 1,Supplies and Services,338045,Services,01-Sep-2022,000008475042194,BURY MBC /INTERNET,9399,Legal expenses 338045,12.00,0.00,12.00
Neighbourhoods and Climate Change,Community Protection,010809,Community Protection Management,Supplies and Services,304403,Equipment and Materials,01-Sep-2022,000008475042206,AMZNMktplace,5999,Other consumables,69.98,11.66,58.32
Children and Young Peoples Services,Head of Childrens Social Care,085351,Framwellgate Moor CU,Supplies and Services,324117,Provisions E324,01-Sep-2022,000008475042210,ASDA GROCERIES ONLINE,5411,Catering costs - provisions,61.20,0.00,61.20
Children and Young Peoples Services,Head of Education and Skills,071802,Louisa Cent Nursery,Supplies and Services,324117,Provisions E324,01-Sep-2022,000008475042212,ASDA SUPERSTORE,5411,Catering costs - provisions,9.65,0.00,9.65
Children and Young Peoples Services,Head of Childrens Social Care,085332,Middlestone Moor CU,Supplies and Services,348037,Subsistence E348,01-Sep-2022,000008475042226,SCOTCH CORNER GREGGS,5812,Subsistence,13.25,0.00,13.25
Regeneration Economy and Growth,Culture Sport and Tourism,054233,Bishop Auckland Town Hall Library,Supplies and Services,324117,Provisions E324,01-Sep-2022,000008475042228,HERON FOODS,5411,Catering costs - provisions,27.24,0.00,27.24
Regeneration Economy and Growth,Culture Sport and Tourism,054233,Bishop Auckland Town Hall Library,Supplies and Services,324117,Provisions E324,01-Sep-2022,000008475042230,HERON FOODS,5411,Catering costs - provisions,12.00,0.00,12.00
Children and Young Peoples Services,Head of Childrens Social Care,085334,West Rainton Satelite Home,Supplies and Services,304403,Equipment and Materials,01-Sep-2022,000008475042240,AMZNMktplace,5999,Other consumables,87.87,0.00,87.87
Adult and Health Services,Central/Other,052601,Service Strategy-Director,Supplies and Services,352001,Conference Expenses,01-Sep-2022,000008475042246,WWW.ADASS.ORG.UK,8699,Conferencesseminars fees etc,"1,188.00",0.00,1188.00
Children and Young Peoples Services,Head of Childrens Social Care,085770,Strategic Manager - Childrens Residential Services,Supplies and Services,384999,Miscellaneous Expenses,01-Sep-2022,000008475042248,Amazon.co.uk MB5S57AC5,5969,Other expenses,200.00,0.00,200.00
Regeneration Economy and Growth,Planning & Housing,031500,Housing Solutions - Core,Supplies and Services,304403,Equipment and Materials,01-Sep-2022,000008475042250,AMZNMktplace,5999,Other consumables,20.90,3.49,17.41
Adult and Health Services,Head of Adults,055310,Positive Journeys (Tudhoe),Supplies and Services,324117,Provisions E324,01-Sep-2022,000008475042278,TESCO STORES 2278,5411,Catering costs - provisions,1.45,0.00,1.45
Regeneration Economy and Growth,Culture Sport and Tourism,011265,Empire Theatre (Operations),Supplies and Services,324117,Provisions E324,01-Sep-2022,000008475100792,JR HOLLAND FOODSERVICE,5499,Catering costs - provisions,31.57,0.00,31.57
Regeneration Economy and Growth,Culture Sport and Tourism,054235,Bishop Auckland Town Hall Cafe,Supplies and Services,324117,Provisions E324,01-Sep-2022,000008475100794,HOPWELLS LTD,5811,Catering costs - provisions,275.49,0.00,275.49
Neighbourhoods and Climate Change,Environmental Services,011060,C&G - Hardwick Park Catering,Supplies and Services,324117,Provisions E324,01-Sep-2022,000008475100796,HOPWELLS LTD,5811,Catering costs - provisions,211.38,35.23,176.15
Neighbourhoods and Climate Change,Environmental Services,011060,C&G - Hardwick Park Catering,Supplies and Services,324117,Provisions E324,01-Sep-2022,000008475100796 - 1,HOPWELLS LTD,5811,Catering costs - provisions,118.97,,118.97
Neighbourhoods and Climate Change,Environmental Services,011060,C&G - Hardwick Park Catering,Supplies and Services,324117,Provisions E324,01-Sep-2022,000008475100798,HOPWELLS LTD,5811,Catering costs - provisions,652.80,108.80,544.00
Neighbourhoods and Climate Change,Environmental Services,011060,C&G - Hardwick Park Catering,Supplies and Services,324117,Provisions E324,01-Sep-2022,000008475100798 - 1,HOPWELLS LTD,5811,Catering costs - provisions,29.86,,29.86
Neighbourhoods and Climate Change,Environmental Services,011060,C&G - Hardwick Park Catering,Supplies and Services,324117,Provisions E324,01-Sep-2022,000008475100800,HOPWELLS LTD,5811,Catering costs - provisions,191.88,31.98,159.90
Neighbourhoods and Climate Change,Environmental Services,011060,C&G - Hardwick Park Catering,Supplies and Services,324117,Provisions E324,01-Sep-2022,000008475100800 - 1,HOPWELLS LTD,5811,Catering costs - provisions,252.42,,252.42
Neighbourhoods and Climate Change,Environmental Services,011060,C&G - Hardwick Park Catering,Supplies and Services,324117,Provisions E324,01-Sep-2022,000008475100802,HOPWELLS LTD,5811,Catering costs - provisions,276.38,0.00,276.38
Neighbourhoods and Climate Change,Environmental Services,011060,C&G - Hardwick Park Catering,Supplies and Services,324117,Provisions E324,01-Sep-2022,000008475100804,HOPWELLS LTD,5811,Catering costs - provisions,534.96,89.16,445.80
Neighbourhoods and Climate Change,Environmental Services,011060,C&G - Hardwick Park Catering,Supplies and Services,324117,Provisions E324,01-Sep-2022,000008475100804 - 1,HOPWELLS LTD,5811,Catering costs - provisions,142.87,,142.87
Regeneration Economy and Growth,Corporate Property and Land,021235,Catering - Wharton Park,Supplies and Services,324117,Provisions E324,01-Sep-2022,000008475100806,HOPWELLS LTD,5811,Catering costs - provisions,164.35,27.39,136.96
Regeneration Economy and Growth,Corporate Property and Land,021235,Catering - Wharton Park,Supplies and Services,324117,Provisions E324,01-Sep-2022,000008475100808,HOPWELLS LTD,5811,Catering costs - provisions,149.88,24.98,124.90
Regeneration Economy and Growth,Corporate Property and Land,021235,Catering - Wharton Park,Supplies and Services,324117,Provisions E324,01-Sep-2022,000008475100808 - 1,HOPWELLS LTD,5811,Catering costs - provisions,41.77,,41.77
Regeneration Economy and Growth,Corporate Property and Land,021235,Catering - Wharton Park,Supplies and Services,324117,Provisions E324,01-Sep-2022,000008475100810,HOPWELLS LTD,5811,Catering costs - provisions,246.36,41.06,205.30
Regeneration Economy and Growth,Corporate Property and Land,021235,Catering - Wharton Park,Supplies and Services,324117,Provisions E324,01-Sep-2022,000008475100810 - 1,HOPWELLS LTD,5811,Catering costs - provisions,171.65,,171.65
Regeneration Economy and Growth,Culture Sport and Tourism,011263,Louisa Centre 011263,Supplies and Services,324117,Provisions E324,01-Sep-2022,000008475100812,JR HOLLAND FOODSERVICE,5499,Catering costs - provisions,16.40,0.00,16.40
Regeneration Economy and Growth,Culture Sport and Tourism,054812,Gala Theatre - Catering etc,Supplies and Services,324117,Provisions E324,01-Sep-2022,000008475100814,HOPWELLS LTD,5811,Catering costs - provisions,113.06,0.00,113.06
Regeneration Economy and Growth,Culture Sport and Tourism,054812,Gala Theatre - Catering etc,Supplies and Services,324117,Provisions E324,01-Sep-2022,000008475100816,JR HOLLAND FOODSERVICE,5499,Catering costs - provisions,64.72,0.00,64.72
Regeneration Economy and Growth,Corporate Property and Land,021242,Catering - County Hall,Supplies and Services,324117,Provisions E324,01-Sep-2022,000008475100818,HOPWELLS LTD,5811,Catering costs - provisions,116.70,0.00,116.70
Regeneration Economy and Growth,Corporate Property and Land,021324,Catering - Meadowfield,Supplies and Services,324117,Provisions E324,01-Sep-2022,000008475100820,JR HOLLAND FOODSERVICE,5499,Catering costs - provisions,24.42,0.00,24.42
Regeneration Economy and Growth,Business Durham CL0850,030689,Inward Investment and Aftercare,Supplies and Services,304403,Equipment and Materials,02-Sep-2022,000008461544248,ADOBE CREATIVE CLOUD,5734,Other consumables,51.98,0.00,51.98
Children and Young Peoples Services,Head of Childrens Social Care,085300,LAC Placements,Supplies and Services,364320,Grants to Voluntary Organisations,02-Sep-2022,000008461544250,COZYPADS.CO.UK,7011,Accommodation assistance,200.00,0.00,200.00
Children and Young Peoples Services,Head of Childrens Social Care,085611,Families First Stanley,Supplies and Services,364340,Grants to Voluntary Organisations,02-Sep-2022,000008461544254,WWW.GONORTHEAST.CO.UK,4111,Contact expenses,34.00,0.00,34.00
Children and Young Peoples Services,Head of Childrens Social Care,085633,Families First Chester-Le-Street,Supplies and Services,364340,Grants to Voluntary Organisations,02-Sep-2022,000008461544256,WWW.GONORTHEAST.CO.UK,4111,Contact expenses,26.50,0.00,26.50
Children and Young Peoples Services,Head of Education and Skills,071801,Selby Cottage Childcare Centre,Supplies and Services,324117,Provisions E324,02-Sep-2022,000008461544258,ASDA GROCERIES ONLINE,5411,Catering costs - provisions,104.01,0.00,104.01
Children and Young Peoples Services,Head of Education and Skills,071801,Selby Cottage Childcare Centre,Supplies and Services,324117,Provisions E324,02-Sep-2022,000008461544260,ONE STOP 3026,5411,Catering costs - provisions,6.30,0.00,6.30
Children and Young Peoples Services,Head of Education and Skills,071801,Selby Cottage Childcare Centre,Supplies and Services,324117,Provisions E324,02-Sep-2022,000008461544262,ASDA GROCERIES ONLINE,5411,Catering costs - provisions,-1.80,0.00,-1.80
Children and Young Peoples Services,Head of Childrens Social Care,085341,High Etherley Satelite Home,Supplies and Services,324117,Provisions E324,02-Sep-2022,000008461544266,TESCO STORES 6329,5411,Catering costs - provisions,9.14,0.00,9.14
Children and Young Peoples Services,Head of Childrens Social Care,085341,High Etherley Satelite Home,Supplies and Services,324117,Provisions E324,02-Sep-2022,000008461544268,TESCO STORES 6329,5411,Catering costs - provisions,4.65,0.00,4.65
Resources BK0010,Legal & Democratic Services,069326,Practice Management,Supplies and Services,304259,Equipment and Materials,02-Sep-2022,000008461544276,SUNDERLAND CC,9399,Equipment-purchase and rental,22.00,0.00,22.00
Children and Young Peoples Services,Head of Education and Skills,075035,DurhamDirections Re-engagement,Supplies and Services,364301,Grants to Voluntary Organisations,02-Sep-2022,000008461544278,WWW.GONORTHEAST.CO.UK,4111,Hardship,16.00,0.00,16.00
Children and Young Peoples Services,Head of Education and Skills,075034,Youth Futures Foundation,Supplies and Services,364301,Grants to Voluntary Organisations,02-Sep-2022,000008461544280,WWW.GONORTHEAST.CO.UK,4111,Hardship,16.00,0.00,16.00
Children and Young Peoples Services,Head of Education and Skills,075034,Youth Futures Foundation,Supplies and Services,364301,Grants to Voluntary Organisations,02-Sep-2022,000008461544282,WWW.GONORTHEAST.CO.UK,4111,Hardship,16.00,0.00,16.00
Children and Young Peoples Services,Head of Education and Skills,075033,DurhamWorks 3,Supplies and Services,364301,Grants to Voluntary Organisations,02-Sep-2022,000008461544284,WWW.GONORTHEAST.CO.UK,4111,Hardship,4.20,0.00,4.20
Children and Young Peoples Services,Head of Education and Skills,075033,DurhamWorks 3,Supplies and Services,364301,Grants to Voluntary Organisations,02-Sep-2022,000008461544286,WWW.GONORTHEAST.CO.UK,4111,Hardship,4.20,0.00,4.20
Children and Young Peoples Services,Head of Education and Skills,075033,DurhamWorks 3,Supplies and Services,364301,Grants to Voluntary Organisations,02-Sep-2022,000008461544288,WWW.GONORTHEAST.CO.UK,4111,Hardship,5.60,0.00,5.60
Children and Young Peoples Services,Head of Education and Skills,075035,DurhamDirections Re-engagement,Supplies and Services,364301,Grants to Voluntary Organisations,02-Sep-2022,000008461544290,WWW.GONORTHEAST.CO.UK,4111,Hardship,4.20,0.00,4.20
Children and Young Peoples Services,Head of Education and Skills,075033,DurhamWorks 3,Supplies and Services,364301,Grants to Voluntary Organisations,02-Sep-2022,000008461544292,WWW.GONORTHEAST.CO.UK,4111,Hardship,16.00,0.00,16.00
Children and Young Peoples Services,Head of Education and Skills,075033,DurhamWorks 3,Supplies and Services,364301,Grants to Voluntary Organisations,02-Sep-2022,000008461544294,WWW.GONORTHEAST.CO.UK,4111,Hardship,16.00,0.00,16.00
Children and Young Peoples Services,Head of Education and Skills,075033,DurhamWorks 3,Supplies and Services,364301,Grants to Voluntary Organisations,02-Sep-2022,000008461544296,WWW.GONORTHEAST.CO.UK,4111,Hardship,21.50,0.00,21.50
Children and Young Peoples Services,Head of Education and Skills,075035,DurhamDirections Re-engagement,Supplies and Services,364301,Grants to Voluntary Organisations,02-Sep-2022,000008461544298,WWW.GONORTHEAST.CO.UK,4111,Hardship,16.00,0.00,16.00
Children and Young Peoples Services,Head of Education and Skills,075035,DurhamDirections Re-engagement,Supplies and Services,364301,Grants to Voluntary Organisations,02-Sep-2022,000008461544300,PAYPAL TOTALSPORTN,5941,Hardship,75.22,0.00,75.22
Children and Young Peoples Services,Head of Education and Skills,075033,DurhamWorks 3,Supplies and Services,364301,Grants to Voluntary Organisations,02-Sep-2022,000008461544302,WWW.GONORTHEAST.CO.UK,4111,Hardship,16.00,0.00,16.00
Children and Young Peoples Services,Head of Education and Skills,075035,DurhamDirections Re-engagement,Supplies and Services,364301,Grants to Voluntary Organisations,02-Sep-2022,000008461544304,WWW.GONORTHEAST.CO.UK,4111,Hardship,97.50,0.00,97.50
Children and Young Peoples Services,Head of Education and Skills,075024,Durham Directions,Supplies and Services,364301,Grants to Voluntary Organisations,02-Sep-2022,000008461544306,WWW.LABEEBY.CO.UK,5691,Hardship,73.59,0.00,73.59
Children and Young Peoples Services,Head of Education and Skills,075035,DurhamDirections Re-engagement,Supplies and Services,364301,Grants to Voluntary Organisations,02-Sep-2022,000008461544308,ASDA GEORGE COM LEEDS,5411,Hardship,50.50,0.00,50.50
Children and Young Peoples Services,Head of Education and Skills,075035,DurhamDirections Re-engagement,Supplies and Services,364301,Grants to Voluntary Organisations,02-Sep-2022,000008461544310,ASDA GEORGE COM LEEDS,5411,Hardship,23.50,0.00,23.50
Children and Young Peoples Services,Head of Education and Skills,075024,Durham Directions,Supplies and Services,364301,Grants to Voluntary Organisations,02-Sep-2022,000008461544312,WWW.SCREWFIX.COM,5211,Hardship,19.98,3.33,16.65
Children and Young Peoples Services,Head of Education and Skills,075024,Durham Directions,Supplies and Services,364301,Grants to Voluntary Organisations,02-Sep-2022,000008461544312 - 1,WWW.SCREWFIX.COM,5211,Hardship,34.99,,34.99
Regeneration Economy and Growth,Culture Sport and Tourism,030712,VCD - Project Delivery,Supplies and Services,384199,Miscellaneous Expenses,02-Sep-2022,000008461544320,MAILCHIMP MISC,5968,Other hired and contracted services,305.96,0.00,305.96
Children and Young Peoples Services,Head of Childrens Social Care,085342,16 Hickstead Rise (previously 9 Cedar Ave),Supplies and Services,324117,Provisions E324,02-Sep-2022,000008461544344,WILKO RETAIL LIMITED,5399,Catering costs - provisions,25.00,0.00,25.00
Children and Young Peoples Services,Head of Childrens Social Care,085342,16 Hickstead Rise (previously 9 Cedar Ave),Supplies and Services,324117,Provisions E324,02-Sep-2022,000008461544346,STARBUCKS THINFORD,5499,Catering costs - provisions,12.06,0.00,12.06
Children and Young Peoples Services,Head of Childrens Social Care,085332,Middlestone Moor CU,Supplies and Services,324117,Provisions E324,02-Sep-2022,000008461544350,TESCO STORES 2371,5411,Catering costs - provisions,205.38,0.00,205.38
Regeneration Economy and Growth,Planning & Housing,031623,Rough Sleeping,Supplies and Services,348037,Subsistence E348,02-Sep-2022,000008461544360,GREGGS,5812,Subsistence,2.75,0.00,2.75
Neighbourhoods and Climate Change,Environmental Services,031233,North Pennines - Pennine Peatlife,Supplies and Services,340001,Postages E340,02-Sep-2022,000008461544372,POST OFFICE COUNTER,9402,Postages,9.20,0.00,9.20
Children and Young Peoples Services,Head of Early Help Inclusion & Vulnerable Children.,088105,W/Close and Willington Family Centre,Supplies and Services,324117,Provisions E324,02-Sep-2022,000008461544436,ASDA GROCERIES ONLINE,5411,Catering costs - provisions,38.25,0.00,38.25
Children and Young Peoples Services,Head of Early Help Inclusion & Vulnerable Children.,088105,W/Close and Willington Family Centre,Supplies and Services,324117,Provisions E324,02-Sep-2022,000008461544438,ASDA GROCERIES ONLINE,5411,Catering costs - provisions,17.75,0.00,17.75
Children and Young Peoples Services,Head of Early Help Inclusion & Vulnerable Children.,088105,W/Close and Willington Family Centre,Supplies and Services,324117,Provisions E324,02-Sep-2022,000008461544440,ASDA GROCERIES ONLINE,5411,Catering costs - provisions,-3.00,0.00,-3.00
Children and Young Peoples Services,Head of Childrens Social Care,085623,Families First Bishop Auckland,Supplies and Services,338045,Services,02-Sep-2022,000008461544442,Durham County CNCL,9399,Legal expenses 338045,-11.00,0.00,-11.00
Children and Young Peoples Services,Head of Childrens Social Care,085332,Middlestone Moor CU,Supplies and Services,328041,Clothing uniforms and laundry E328,02-Sep-2022,000008461544444,TK MAXX,5331,Clothing uniforms and laundry,49.99,0.00,49.99
Children and Young Peoples Services,Head of Childrens Social Care,085332,Middlestone Moor CU,Supplies and Services,312009,Newspapers books and periodicals E312,02-Sep-2022,000008461544446,WH SMITH,5994,Newspapers books and periodicals,10.53,0.00,10.53
Children and Young Peoples Services,Head of Childrens Social Care,085511,Emergency Duty Team,Supplies and Services,352001,Conference Expenses,02-Sep-2022,000008461544484,TRAVELODGE,3615,Conferencesseminars fees etc,184.55,0.00,184.55
Children and Young Peoples Services,Head of Childrens Social Care,085511,Emergency Duty Team,Employees,040149,Recruitment Instruction and Training,02-Sep-2022,000008461544486,PREMIER INN,3811,Training-all costs,321.35,0.00,321.35
Children and Young Peoples Services,Head of Early Help Inclusion & Vulnerable Children.,074000,National Supporting Families Programme,Supplies and Services,304403,Equipment and Materials,02-Sep-2022,000008461544492,AMZNMktplace,5999,Other consumables,144.90,24.15,120.75
Children and Young Peoples Services,Head of Early Help Inclusion & Vulnerable Children.,074000,National Supporting Families Programme,Supplies and Services,304403,Equipment and Materials,02-Sep-2022,000008461544492 - 1,AMZNMktplace,5999,Other consumables,0.05,,0.05
Children and Young Peoples Services,Head of Early Help Inclusion & Vulnerable Children.,074000,National Supporting Families Programme,Supplies and Services,304403,Equipment and Materials,02-Sep-2022,000008461544494,AMZNMktplace,5999,Other consumables,144.90,24.15,120.75
Children and Young Peoples Services,Head of Early Help Inclusion & Vulnerable Children.,074000,National Supporting Families Programme,Supplies and Services,304403,Equipment and Materials,02-Sep-2022,000008461544494 - 1,AMZNMktplace,5999,Other consumables,0.05,,0.05
Children and Young Peoples Services,Head of Early Help Inclusion & Vulnerable Children.,074000,National Supporting Families Programme,Supplies and Services,324117,Provisions E324,02-Sep-2022,000008461544496,ASDA GEORGE COM LEEDS,5411,Catering costs - provisions,10.50,1.75,8.75
Children and Young Peoples Services,Head of Early Help Inclusion & Vulnerable Children.,074000,National Supporting Families Programme,Supplies and Services,324117,Provisions E324,02-Sep-2022,000008461544496 - 1,ASDA GEORGE COM LEEDS,5411,Catering costs - provisions,4.00,,4.00
Children and Young Peoples Services,Head of Early Help Inclusion & Vulnerable Children.,074000,National Supporting Families Programme,Supplies and Services,324117,Provisions E324,02-Sep-2022,000008461544498,ASDA GEORGE COM LEEDS,5411,Catering costs - provisions,47.52,7.92,39.60
Children and Young Peoples Services,Head of Early Help Inclusion & Vulnerable Children.,074000,National Supporting Families Programme,Supplies and Services,324117,Provisions E324,02-Sep-2022,000008461544498 - 1,ASDA GEORGE COM LEEDS,5411,Catering costs - provisions,83.98,,83.98
Neighbourhoods and Climate Change,Environmental Services,010367,C&G - South Grounds Maintenance,Supplies and Services,304999,Equipment and Materials,02-Sep-2022,000008461544504,BLACK & DECKER,5251,Misc equipment tools and materials,149.00,0.00,149.00
Children and Young Peoples Services,Head of Childrens Social Care,085331,New Lea Childrens Home,Transport,215995,Running Costs of Vehicles,02-Sep-2022,000008461544508,CHESTER ROAD SERVICE S,5541,Vehicle running expenses,11.85,0.00,11.85
Children and Young Peoples Services,Head of Childrens Social Care,085331,New Lea Childrens Home,Supplies and Services,348037,Subsistence E348,02-Sep-2022,000008461544510,DH9 CAFE,5814,Subsistence,13.60,0.00,13.60
Children and Young Peoples Services,Head of Childrens Social Care,085331,New Lea Childrens Home,Supplies and Services,304403,Equipment and Materials,02-Sep-2022,000008461544512,ZTL Phone Palace Morpe,5999,Other consumables,70.00,0.00,70.00
Children and Young Peoples Services,Head of Childrens Social Care,085331,New Lea Childrens Home,Supplies and Services,304221,Equipment and Materials,02-Sep-2022,000008461544514,B&Q MARKETPLACE,5211,Direct materials,104.99,0.00,104.99
Regeneration Economy and Growth,Culture Sport and Tourism,054967,Theatre - Technical Staffing,Supplies and Services,304403,Equipment and Materials,02-Sep-2022,000008461544538,AMZNMKTPLACE AMAZON.CO,5999,Other consumables,17.98,0.00,17.98
Regeneration Economy and Growth,Culture Sport and Tourism,054967,Theatre - Technical Staffing,Supplies and Services,304403,Equipment and Materials,02-Sep-2022,000008461544540,AMZNMKTPLACE AMAZON.CO,5999,Other consumables,13.58,0.00,13.58
Regeneration Economy and Growth,Culture Sport and Tourism,054967,Theatre - Technical Staffing,Supplies and Services,304221,Equipment and Materials,02-Sep-2022,000008461544544,B & Q 1343,5200,Direct materials,73.18,0.00,73.18
Regeneration Economy and Growth,Culture Sport and Tourism,054967,Theatre - Technical Staffing,Supplies and Services,304221,Equipment and Materials,02-Sep-2022,000008461544546,WWW.SCREWFIX.COM,5211,Direct materials,95.98,0.00,95.98
Neighbourhoods and Climate Change,Environmental Services,011060,C&G - Hardwick Park Catering,Supplies and Services,304259,Equipment and Materials,02-Sep-2022,000008461544548,AMZNMktplace,5999,Equipment-purchase and rental,11.48,1.91,9.57
Regeneration Economy and Growth,Economic Development Level C,030771,Durham Advance Flexible Fund,Supplies and Services,304221,Equipment and Materials,02-Sep-2022,000008461544566,SCREWFIX DIR LTD,5211,Direct materials,84.97,0.00,84.97
Regeneration Economy and Growth,Economic Development Level C,030771,Durham Advance Flexible Fund,Transport,235057,Public Transport,02-Sep-2022,000008461544570,WWW.GONORTHEAST.CO.UK,4111,Staff travelling,26.50,0.00,26.50
Children and Young Peoples Services,Head of Early Help Inclusion & Vulnerable Children.,085957,Secure Management,Supplies and Services,304403,Equipment and Materials,02-Sep-2022,000008461544572,AMZNMKTPLACE AMAZON.CO,5999,Other consumables,6.98,1.16,5.82
Children and Young Peoples Services,Head of Early Help Inclusion & Vulnerable Children.,085957,Secure Management,Supplies and Services,312009,Newspapers books and periodicals E312,02-Sep-2022,000008461544578,ZIG ZAG EDUCATION,5942,Newspapers books and periodicals,164.00,0.00,164.00
Children and Young Peoples Services,Head of Early Help Inclusion & Vulnerable Children.,085957,Secure Management,Supplies and Services,384999,Miscellaneous Expenses,02-Sep-2022,000008461544580,WWW.SALLYBEAUTY.CO.UK,5977,Other expenses,32.59,0.00,32.59
Children and Young Peoples Services,Head of Early Help Inclusion & Vulnerable Children.,085957,Secure Management,Supplies and Services,324117,Provisions E324,02-Sep-2022,000008461544582,TESCO STORES 6329,5411,Catering costs - provisions,69.96,0.00,69.96
Neighbourhoods and Climate Change,Environmental Services,010367,C&G - South Grounds Maintenance,Supplies and Services,304403,Equipment and Materials,02-Sep-2022,000008461544600,MAXWELLS DIY,5231,Other consumables,4.50,0.00,4.50
Resources BK0010,HR & Employee Services,010984,Training and Development,Supplies and Services,304403,Equipment and Materials,02-Sep-2022,000008461544608,TAHDAH VERIFIED,5734,Other consumables,43.50,0.00,43.50
Resources BK0010,HR & Employee Services,010984,Training and Development,Supplies and Services,304403,Equipment and Materials,02-Sep-2022,000008461544610,TAHDAH VERIFIED,5734,Other consumables,14.50,0.00,14.50
Resources BK0010,HR & Employee Services,010984,Training and Development,Supplies and Services,304403,Equipment and Materials,02-Sep-2022,000008461544612,AMZNMktplace,5999,Other consumables,89.99,0.00,89.99
Resources BK0010,HR & Employee Services,010984,Training and Development,Employees,040149,Recruitment Instruction and Training,02-Sep-2022,000008461544614,PAYPAL NPORS LTD,8699,Training-all costs,99.00,0.00,99.00
Children and Young Peoples Services,Head of Early Help Inclusion & Vulnerable Children.,088107,Wheatley Hill & N. Aycliffe Family Centre,Supplies and Services,304259,Equipment and Materials,02-Sep-2022,000008461544618,Hobbycraft Trading Lim,5970,Equipment-purchase and rental,26.95,0.00,26.95
Resources BK0010,Procurement Sales & Business Services,069800,Corporate Procurement 069800,Employees,040149,Recruitment Instruction and Training,02-Sep-2022,000008461544674,WWW.CIPS.ORG,8699,Training-all costs,191.00,0.00,191.00
Children and Young Peoples Services,Head of Early Help Inclusion & Vulnerable Children.,085957,Secure Management,Supplies and Services,304403,Equipment and Materials,02-Sep-2022,000008461544694,AMZNMKTPLACE AMAZON.CO,5999,Other consumables,110.97,18.51,92.46
Children and Young Peoples Services,Head of Childrens Social Care,085334,West Rainton Satelite Home,Supplies and Services,324117,Provisions E324,02-Sep-2022,000008461544708,TESCO STORES 2371,5411,Catering costs - provisions,121.91,0.00,121.91
Children and Young Peoples Services,Head of Childrens Social Care,085334,West Rainton Satelite Home,Supplies and Services,328041,Clothing uniforms and laundry E328,02-Sep-2022,000008461544712,NEW LOOK,5621,Clothing uniforms and laundry,20.98,0.00,20.98
Children and Young Peoples Services,Head of Childrens Social Care,085334,West Rainton Satelite Home,Supplies and Services,324117,Provisions E324,02-Sep-2022,000008461544714,TESCO STORES 2371,5411,Catering costs - provisions,196.96,0.00,196.96
Children and Young Peoples Services,Head of Childrens Social Care,085517,Supporting Solutions Service (Edge of Care),Employees,040149,Recruitment Instruction and Training,02-Sep-2022,000008461544774,EB RETURN HOME INTERV,7399,Training-all costs,374.90,0.00,374.90
Children and Young Peoples Services,Head of Childrens Social Care,085347,Solo Home The Manse,Supplies and Services,348037,Subsistence E348,02-Sep-2022,000008461544776,ZTL Rocky road,5812,Subsistence,6.00,0.00,6.00
Children and Young Peoples Services,Head of Childrens Social Care,085347,Solo Home The Manse,Supplies and Services,324117,Provisions E324,02-Sep-2022,000008461544778,CO-OP GROUP 010993,5411,Catering costs - provisions,2.70,0.00,2.70
Neighbourhoods and Climate Change,Community Protection,010809,Community Protection Management,Supplies and Services,304403,Equipment and Materials,02-Sep-2022,000008461544796,AMZNMKTPLACE AMAZON.CO,5999,Other consumables,-69.98,-11.66,-58.32
Children and Young Peoples Services,Head of Early Help Inclusion & Vulnerable Children.,085801,CDYJS - Support,Supplies and Services,304403,Equipment and Materials,02-Sep-2022,000008461544804,AMZNMKTPLACE AMAZON.CO,5999,Other consumables,14.98,0.00,14.98
Children and Young Peoples Services,Head of Early Help Inclusion & Vulnerable Children.,085801,CDYJS - Support,Supplies and Services,332047,Printing Stationery and Gen Off Exps,02-Sep-2022,000008461544806,VUE BSL LTD,7832,Stationery,31.50,0.00,31.50
Children and Young Peoples Services,Head of Education and Skills,071802,Louisa Cent Nursery,Supplies and Services,324117,Provisions E324,02-Sep-2022,000008461544822,ASDA GROCERIES ONLINE,5411,Catering costs - provisions,154.84,0.00,154.84
Children and Young Peoples Services,Head of Education and Skills,071802,Louisa Cent Nursery,Supplies and Services,324117,Provisions E324,02-Sep-2022,000008461544824,ASDA GROCERIES ONLINE,5411,Catering costs - provisions,-9.95,0.00,-9.95
Regeneration Economy and Growth,Economic Development Level C,030772,CLLD South,Transport,235057,Public Transport,02-Sep-2022,000008461544854,WALKERGATE CAR PAR,7523,Staff travelling,2.00,0.00,2.00
Children and Young Peoples Services,Head of Childrens Social Care,085332,Middlestone Moor CU,Supplies and Services,304999,Equipment and Materials,02-Sep-2022,000008461544862,BOOTS 1966,5912,Misc equipment tools and materials,14.79,0.00,14.79
Children and Young Peoples Services,Head of Childrens Social Care,085332,Middlestone Moor CU,Supplies and Services,348037,Subsistence E348,02-Sep-2022,000008461544864,BURGER KING,5814,Subsistence,35.11,0.00,35.11
Children and Young Peoples Services,Head of Childrens Social Care,085358,Orchard House Sacriston Solo Home,Supplies and Services,348037,Subsistence E348,02-Sep-2022,000008461544952,PIZZA TIME,5814,Subsistence,54.50,0.00,54.50
Children and Young Peoples Services,Head of Childrens Social Care,085332,Middlestone Moor CU,Supplies and Services,304403,Equipment and Materials,02-Sep-2022,000008461544956,AMZNMktplace,5999,Other consumables,20.98,0.00,20.98
Children and Young Peoples Services,Head of Childrens Social Care,085624,Families First Crook and Barnard Castle,Supplies and Services,364301,Grants to Voluntary Organisations,02-Sep-2022,000008461544968,ARGOS LTD,5310,Hardship,97.00,0.00,97.00
Children and Young Peoples Services,Head of Childrens Social Care,085624,Families First Crook and Barnard Castle,Supplies and Services,364301,Grants to Voluntary Organisations,02-Sep-2022,000008461544970,ARGOS LTD,5310,Hardship,241.95,0.00,241.95
Adult and Health Services,Head of Adults,055310,Positive Journeys (Tudhoe),Supplies and Services,324117,Provisions E324,02-Sep-2022,000008461545036,ASDA SUPERSTORE 4987,5411,Catering costs - provisions,1.44,0.00,1.44
Regeneration Economy and Growth,Corporate Property and Land,011296,Catering - Dunes,Supplies and Services,324117,Provisions E324,02-Sep-2022,000008461657446,JR HOLLAND FOODSERVICE,5499,Catering costs - provisions,77.20,0.00,77.20
Regeneration Economy and Growth,Corporate Property and Land,011296,Catering - Dunes,Supplies and Services,384999,Miscellaneous Expenses,02-Sep-2022,000008461657448,G M PACKAGING UK LIMIT,5046,Other expenses,141.23,0.00,141.23
Regeneration Economy and Growth,Corporate Property and Land,030691,Catering - Durham Dales Centre,Supplies and Services,324117,Provisions E324,02-Sep-2022,000008461657450,JR HOLLAND FOODSERVICE,5499,Catering costs - provisions,137.78,0.00,137.78
Regeneration Economy and Growth,Corporate Property and Land,030691,Catering - Durham Dales Centre,Supplies and Services,324117,Provisions E324,02-Sep-2022,000008461657452,JR HOLLAND FOODSERVICE,5499,Catering costs - provisions,1.51,0.00,1.51
Regeneration Economy and Growth,Corporate Property and Land,030691,Catering - Durham Dales Centre,Supplies and Services,324117,Provisions E324,02-Sep-2022,000008461657454,JR HOLLAND FOODSERVICE,5499,Catering costs - provisions,683.00,0.00,683.00
Adult and Health Services,Head of Adults,055643,Hawthorn House LD Respite Unit,Supplies and Services,324117,Provisions E324,02-Sep-2022,000008461657456,JR HOLLAND FOODSERVICE,5499,Catering costs - provisions,34.27,0.00,34.27
Adult and Health Services,Head of Adults,055643,Hawthorn House LD Respite Unit,Supplies and Services,324117,Provisions E324,02-Sep-2022,000008461657460,JR HOLLAND FOODSERVICE,5499,Catering costs - provisions,24.84,0.00,24.84
Neighbourhoods and Climate Change,Environmental Services,011060,C&G - Hardwick Park Catering,Supplies and Services,324117,Provisions E324,02-Sep-2022,000008461657472,JR HOLLAND FOODSERVICE,5499,Catering costs - provisions,76.37,0.00,76.37
Neighbourhoods and Climate Change,Environmental Services,011060,C&G - Hardwick Park Catering,Supplies and Services,324117,Provisions E324,02-Sep-2022,000008461657476,JR HOLLAND FOODSERVICE,5499,Catering costs - provisions,30.49,0.00,30.49
Regeneration Economy and Growth,Corporate Property and Land,021234,Catering - Locomotion,Supplies and Services,324117,Provisions E324,02-Sep-2022,000008461657480,JR HOLLAND FOODSERVICE,5499,Catering costs - provisions,62.02,0.00,62.02
Regeneration Economy and Growth,Corporate Property and Land,021234,Catering - Locomotion,Supplies and Services,384999,Miscellaneous Expenses,02-Sep-2022,000008461657482,G M PACKAGING UK LIMIT,5046,Other expenses,92.09,0.00,92.09
Regeneration Economy and Growth,Corporate Property and Land,021242,Catering - County Hall,Supplies and Services,324117,Provisions E324,02-Sep-2022,000008461657492,JR HOLLAND FOODSERVICE,5499,Catering costs - provisions,72.52,0.00,72.52
Regeneration Economy and Growth,Corporate Property and Land,021242,Catering - County Hall,Supplies and Services,384999,Miscellaneous Expenses,02-Sep-2022,000008461657496,G M PACKAGING UK LIMIT,5046,Other expenses,108.31,0.00,108.31
Regeneration Economy and Growth,Corporate Property and Land,021324,Catering - Meadowfield,Supplies and Services,324117,Provisions E324,02-Sep-2022,000008461657498,JR HOLLAND FOODSERVICE,5499,Catering costs - provisions,-24.42,0.00,-24.42
Regeneration Economy and Growth,Business Durham CL0850,030689,Inward Investment and Aftercare,Supplies and Services,342222,Computers and Communications,02-Sep-2022,000008467757988,FASTHOSTS,4816,Comp hardware purch-network servers,75.06,0.00,75.06
Regeneration Economy and Growth,Business Durham CL0850,030689,Inward Investment and Aftercare,Supplies and Services,342222,Computers and Communications,02-Sep-2022,000008467757992,FASTHOSTS,4816,Comp hardware purch-network servers,63.00,0.00,63.00
Regeneration Economy and Growth,Corporate Property and Land,010525,Catering - Green Lane,Supplies and Services,324117,Provisions E324,02-Sep-2022,000008467847910,BATLEYS PERTH,5300,Catering costs - provisions,100.68,16.78,83.90
Regeneration Economy and Growth,Corporate Property and Land,010525,Catering - Green Lane,Supplies and Services,324117,Provisions E324,02-Sep-2022,000008467847910 - 1,BATLEYS PERTH,5300,Catering costs - provisions,74.18,,74.18
Adult and Health Services,Head of Adults,055643,Hawthorn House LD Respite Unit,Supplies and Services,324117,Provisions E324,02-Sep-2022,000008467847944,BATLEYS PERTH,5300,Catering costs - provisions,37.86,6.31,31.55
Adult and Health Services,Head of Adults,055643,Hawthorn House LD Respite Unit,Supplies and Services,324117,Provisions E324,02-Sep-2022,000008467847944 - 1,BATLEYS PERTH,5300,Catering costs - provisions,119.18,,119.18
Children and Young Peoples Services,Head of Childrens Social Care,085364,Children Looked After Team 1,Supplies and Services,384999,Miscellaneous Expenses,02-Sep-2022,000008475041916,AMZNMktplace,5999,Other expenses,21.99,3.67,18.32
Children and Young Peoples Services,Head of Early Help Inclusion & Vulnerable Children.,085957,Secure Management,Supplies and Services,328041,Clothing uniforms and laundry E328,02-Sep-2022,000008475042094,HOUSE OF FRASER,5311,Clothing uniforms and laundry,97.99,0.00,97.99
Children and Young Peoples Services,Head of Early Help Inclusion & Vulnerable Children.,088103,Stanley & Moorside Family Centre,Supplies and Services,304259,Equipment and Materials,02-Sep-2022,000008475042172,AMZNMktplace,5999,Equipment-purchase and rental,67.92,11.32,56.60
Children and Young Peoples Services,Head of Early Help Inclusion & Vulnerable Children.,088103,Stanley & Moorside Family Centre,Supplies and Services,304259,Equipment and Materials,02-Sep-2022,000008475042172 - 1,AMZNMktplace,5999,Equipment-purchase and rental,0.04,,0.04
Children and Young Peoples Services,Head of Early Help Inclusion & Vulnerable Children.,088103,Stanley & Moorside Family Centre,Supplies and Services,304259,Equipment and Materials,02-Sep-2022,000008475042174,AMZNMktplace,5999,Equipment-purchase and rental,92.93,15.49,77.44
Regeneration Economy and Growth,Culture Sport and Tourism,030705,Visit County Durham 030705,Supplies and Services,304259,Equipment and Materials,03-Sep-2022,000008461544322,FASTHOSTS,4816,Equipment-purchase and rental,7.54,0.00,7.54
Children and Young Peoples Services,Head of Childrens Social Care,085332,Middlestone Moor CU,Supplies and Services,324117,Provisions E324,03-Sep-2022,000008461544448,NYA LA MAISON LYOVEL,5499,Catering costs - provisions,3.21,0.00,3.21
Children and Young Peoples Services,Head of Childrens Social Care,085332,Middlestone Moor CU,Supplies and Services,352001,Conference Expenses,03-Sep-2022,000008461544456,H EXPLORERS,7011,Conferencesseminars fees etc,619.00,0.00,619.00
Children and Young Peoples Services,Head of Childrens Social Care,085332,Middlestone Moor CU,Supplies and Services,352001,Conference Expenses,03-Sep-2022,000008461544458,H EXPLORERS,7011,Conferencesseminars fees etc,614.10,0.00,614.10
Regeneration Economy and Growth,Corporate Property and Land,021242,Catering - County Hall,Supplies and Services,304403,Equipment and Materials,03-Sep-2022,000008461544482,AMZNMktplace,5999,Other consumables,38.32,0.00,38.32
Resources BK0010,Procurement Sales & Business Services,065501,Business Support - Executive Support,Transport,235057,Public Transport,03-Sep-2022,000008461544488,National Express Limit,4131,Staff travelling,17.20,0.00,17.20
Children and Young Peoples Services,Head of Childrens Social Care,085342,16 Hickstead Rise (previously 9 Cedar Ave),Supplies and Services,324117,Provisions E324,03-Sep-2022,000008461544502,WILKO RETAIL LIMITED,5399,Catering costs - provisions,33.00,0.00,33.00
Regeneration Economy and Growth,Culture Sport and Tourism,054967,Theatre - Technical Staffing,Supplies and Services,304999,Equipment and Materials,03-Sep-2022,000008461544542,Soundtrack Your Brand,5815,Misc equipment tools and materials,291.48,0.00,291.48
Regeneration Economy and Growth,Business Durham CL0850,030690,Durham Dales Centre - Tourist Information Centre,Supplies and Services,324117,Provisions E324,03-Sep-2022,000008461544550,WWW.HARRISONSDIRECT.CO,5300,Catering costs - provisions,429.58,0.00,429.58
Children and Young Peoples Services,Head of Early Help Inclusion & Vulnerable Children.,085957,Secure Management,Supplies and Services,324117,Provisions E324,03-Sep-2022,000008461544584,TESCO STORES 6329,5411,Catering costs - provisions,111.08,0.00,111.08
Children and Young Peoples Services,Head of Early Help Inclusion & Vulnerable Children.,085957,Secure Management,Supplies and Services,384999,Miscellaneous Expenses,03-Sep-2022,000008461544586,AMZ Amazon.co.uk,5969,Other expenses,-77.01,-12.84,-64.17
Children and Young Peoples Services,Head of Childrens Social Care,085334,West Rainton Satelite Home,Supplies and Services,328041,Clothing uniforms and laundry E328,03-Sep-2022,000008461544592,POUNDLAND,5310,Clothing uniforms and laundry,7.00,0.00,7.00
Children and Young Peoples Services,Head of Childrens Social Care,085342,16 Hickstead Rise (previously 9 Cedar Ave),Supplies and Services,324117,Provisions E324,03-Sep-2022,000008461544616,TESCO STORES 2916,5411,Catering costs - provisions,16.08,0.00,16.08
Adult and Health Services,Head of Adults,055643,Hawthorn House LD Respite Unit,Supplies and Services,304403,Equipment and Materials,03-Sep-2022,000008461544658,AMZNMktplace,5999,Other consumables,8.99,1.50,7.49
Adult and Health Services,Head of Adults,055643,Hawthorn House LD Respite Unit,Supplies and Services,324117,Provisions E324,03-Sep-2022,000008461544660,CO-OP GROUP 010465,5411,Catering costs - provisions,8.50,0.00,8.50
Children and Young Peoples Services,Head of Childrens Social Care,085347,Solo Home The Manse,Supplies and Services,348037,Subsistence E348,03-Sep-2022,000008461544670,WYNDENWELL,5812,Subsistence,7.60,0.00,7.60
Children and Young Peoples Services,Head of Childrens Social Care,085341,High Etherley Satelite Home,Supplies and Services,348037,Subsistence E348,03-Sep-2022,000008461544700,Mr.Bs Bakery,5814,Subsistence,15.00,0.00,15.00
Children and Young Peoples Services,Head of Childrens Social Care,085341,High Etherley Satelite Home,Supplies and Services,304403,Equipment and Materials,03-Sep-2022,000008461544702,AMZNMKTPLACE AMAZON.CO,5999,Other consumables,11.99,2.00,9.99
Children and Young Peoples Services,Head of Childrens Social Care,085334,West Rainton Satelite Home,Supplies and Services,324117,Provisions E324,03-Sep-2022,000008461544710,TESCO STORES 2371,5411,Catering costs - provisions,21.00,0.00,21.00
Children and Young Peoples Services,Head of Early Help Inclusion & Vulnerable Children.,088115,Young Parents Programme 088115,Supplies and Services,384302,Miscellaneous Expenses,03-Sep-2022,000008461544726,AMZNMktplace,5999,Activity expenses,31.68,5.28,26.40
Children and Young Peoples Services,Head of Early Help Inclusion & Vulnerable Children.,088115,Young Parents Programme 088115,Supplies and Services,384302,Miscellaneous Expenses,03-Sep-2022,000008461544726 - 1,AMZNMktplace,5999,Activity expenses,0.06,,0.06
Resources BK0010,Digital Services,065335,School Services - Implementations,Supplies and Services,304639,Equipment and Materials,03-Sep-2022,000008461544744,APPLE.COM/UK,5732,Technicians-supplies,179.00,0.00,179.00
Neighbourhoods and Climate Change,Environmental Services,031200,North Pennines Core,Supplies and Services,304259,Equipment and Materials,03-Sep-2022,000008461544838,CANVA I03532-9877655,7221,Equipment-purchase and rental,99.99,0.00,99.99
Regeneration Economy and Growth,Culture Sport and Tourism,054812,Gala Theatre - Catering etc,Supplies and Services,324117,Provisions E324,03-Sep-2022,000008461544842,TESCO STORES,5411,Catering costs - provisions,4.95,0.00,4.95
Children and Young Peoples Services,Head of Childrens Social Care,085332,Middlestone Moor CU,Supplies and Services,328041,Clothing uniforms and laundry E328,03-Sep-2022,000008461544868,DISNEY CONTACTLE,7996,Clothing uniforms and laundry,12.76,0.00,12.76
Children and Young Peoples Services,Head of Childrens Social Care,085332,Middlestone Moor CU,Supplies and Services,328041,Clothing uniforms and laundry E328,03-Sep-2022,000008461544870,DISNEY CONTACTLE,7996,Clothing uniforms and laundry,12.76,0.00,12.76
Children and Young Peoples Services,Head of Childrens Social Care,085332,Middlestone Moor CU,Supplies and Services,328041,Clothing uniforms and laundry E328,03-Sep-2022,000008461544872,DISNEY CONTACTLE,7996,Clothing uniforms and laundry,55.54,0.00,55.54
Children and Young Peoples Services,Head of Childrens Social Care,085332,Middlestone Moor CU,Supplies and Services,352001,Conference Expenses,03-Sep-2022,000008461544878,H EXPLORERS,7011,Conferencesseminars fees etc,8.85,0.00,8.85
Children and Young Peoples Services,Head of Childrens Social Care,085332,Middlestone Moor CU,Supplies and Services,352001,Conference Expenses,03-Sep-2022,000008461544880,H EXPLORERS,7011,Conferencesseminars fees etc,7.45,0.00,7.45
Children and Young Peoples Services,Head of Childrens Social Care,085332,Middlestone Moor CU,Supplies and Services,352001,Conference Expenses,03-Sep-2022,000008461544882,H EXPLORERS,7011,Conferencesseminars fees etc,51.90,0.00,51.90
Children and Young Peoples Services,Head of Childrens Social Care,085332,Middlestone Moor CU,Supplies and Services,324117,Provisions E324,03-Sep-2022,000008461544884,NYA LA MAISON LYOVEL,5499,Catering costs - provisions,2.60,0.00,2.60
Children and Young Peoples Services,Head of Childrens Social Care,085332,Middlestone Moor CU,Supplies and Services,324117,Provisions E324,03-Sep-2022,000008461544886,NYA LA MAISON LYOVEL,5499,Catering costs - provisions,2.17,0.00,2.17
Regeneration Economy and Growth,Culture Sport and Tourism,054233,Bishop Auckland Town Hall Library,Supplies and Services,324117,Provisions E324,03-Sep-2022,000008461544938,HERON FOODS,5411,Catering costs - provisions,31.44,0.00,31.44
Regeneration Economy and Growth,Culture Sport and Tourism,054233,Bishop Auckland Town Hall Library,Supplies and Services,304403,Equipment and Materials,03-Sep-2022,000008461544940,HOLLAND & BARRETT,5999,Other consumables,4.88,0.00,4.88
Children and Young Peoples Services,Head of Childrens Social Care,085358,Orchard House Sacriston Solo Home,Supplies and Services,324117,Provisions E324,03-Sep-2022,000008461544946,ASDA GROCERIES ONLINE,5411,Catering costs - provisions,171.08,0.00,171.08
Children and Young Peoples Services,Head of Childrens Social Care,085358,Orchard House Sacriston Solo Home,Supplies and Services,324117,Provisions E324,03-Sep-2022,000008461544948,ASDA GROCERIES ONLINE,5411,Catering costs - provisions,2.16,0.00,2.16
Children and Young Peoples Services,Head of Childrens Social Care,085551,Short Break Services-Park Hse Sher,Supplies and Services,324117,Provisions E324,03-Sep-2022,000008461545012,B&M 681 - DURHAM,5399,Catering costs - provisions,3.00,0.00,3.00
Regeneration Economy and Growth,Culture Sport and Tourism,054106,Pelton Library 054106,Supplies and Services,304252,Equipment and Materials,04-Sep-2022,000008461544318,AMZNMktplace,5999,Equipment-repairsserviceinsurance,3.68,0.61,3.07
Children and Young Peoples Services,Head of Childrens Social Care,085342,16 Hickstead Rise (previously 9 Cedar Ave),Supplies and Services,324117,Provisions E324,04-Sep-2022,000008461544348,TESCO STORES 2916,5411,Catering costs - provisions,15.30,0.00,15.30
Children and Young Peoples Services,Head of Childrens Social Care,085332,Middlestone Moor CU,Supplies and Services,348037,Subsistence E348,04-Sep-2022,000008461544450,iZ A M A DISTRIBU,5814,Subsistence,12.76,0.00,12.76
Children and Young Peoples Services,Head of Childrens Social Care,085332,Middlestone Moor CU,Supplies and Services,348037,Subsistence E348,04-Sep-2022,000008461544452,iZ A M A DISTRIBU,5814,Subsistence,3.04,0.00,3.04
Children and Young Peoples Services,Head of Childrens Social Care,085332,Middlestone Moor CU,Supplies and Services,304999,Equipment and Materials,04-Sep-2022,000008461544454,ATMOSFEERIC,7991,Misc equipment tools and materials,17.36,0.00,17.36
Resources BK0010,Procurement Sales & Business Services,065501,Business Support - Executive Support,Supplies and Services,304403,Equipment and Materials,04-Sep-2022,000008461544490,AMZNMKTPLACE AMAZON.CO,5999,Other consumables,9.28,1.55,7.73
Children and Young Peoples Services,Head of Childrens Social Care,085358,Orchard House Sacriston Solo Home,Supplies and Services,344033,Telephones,04-Sep-2022,000008461544506,giffgaff,4814,Telephones general-all costs,10.00,0.00,10.00
Children and Young Peoples Services,Head of Early Help Inclusion & Vulnerable Children.,085957,Secure Management,Supplies and Services,304403,Equipment and Materials,04-Sep-2022,000008461544588,AMZNMKTPLACE AMAZON.CO,5999,Other consumables,5.76,0.96,4.80
Children and Young Peoples Services,Head of Early Help Inclusion & Vulnerable Children.,085957,Secure Management,Supplies and Services,324117,Provisions E324,04-Sep-2022,000008461544590,TESCO STORES 6329,5411,Catering costs - provisions,104.41,0.00,104.41
Children and Young Peoples Services,Head of Childrens Social Care,085341,High Etherley Satelite Home,Supplies and Services,304403,Equipment and Materials,04-Sep-2022,000008461544704,AMZNMktplace,5999,Other consumables,6.94,1.16,5.78
Children and Young Peoples Services,Head of Early Help Inclusion & Vulnerable Children.,088102,Consett & Stanley Intensive Family Support Team,Supplies and Services,304403,Equipment and Materials,04-Sep-2022,000008461544728,AMZNBusiness RG4UV2R55,5999,Other consumables,33.40,5.57,27.83
Children and Young Peoples Services,Head of Early Help Inclusion & Vulnerable Children.,088115,Young Parents Programme 088115,Supplies and Services,384302,Miscellaneous Expenses,04-Sep-2022,000008461544730,AMZNMktplace,5999,Activity expenses,203.65,33.97,169.68
Children and Young Peoples Services,Head of Early Help Inclusion & Vulnerable Children.,088115,Young Parents Programme 088115,Supplies and Services,384302,Miscellaneous Expenses,04-Sep-2022,000008461544732,AMZNMktplace,5999,Activity expenses,15.20,2.56,12.64
Children and Young Peoples Services,Head of Early Help Inclusion & Vulnerable Children.,088115,Young Parents Programme 088115,Supplies and Services,384302,Miscellaneous Expenses,04-Sep-2022,000008461544734,AMZNMktplace,5999,Activity expenses,6.95,1.16,5.79
Children and Young Peoples Services,Head of Early Help Inclusion & Vulnerable Children.,088115,Young Parents Programme 088115,Supplies and Services,384302,Miscellaneous Expenses,04-Sep-2022,000008461544736,AMZNMktplace,5999,Activity expenses,41.94,7.02,34.92
Children and Young Peoples Services,Head of Early Help Inclusion & Vulnerable Children.,088115,Young Parents Programme 088115,Supplies and Services,384302,Miscellaneous Expenses,04-Sep-2022,000008461544738,AMZNMktplace,5999,Activity expenses,42.78,7.14,35.64
Children and Young Peoples Services,Head of Childrens Social Care,085347,Solo Home The Manse,Supplies and Services,324117,Provisions E324,04-Sep-2022,000008461544780,LIDL GB DURHAM,5411,Catering costs - provisions,11.52,0.00,11.52
Children and Young Peoples Services,Head of Childrens Social Care,085347,Solo Home The Manse,Supplies and Services,324117,Provisions E324,04-Sep-2022,000008461544782,TESCO STORES 2371,5411,Catering costs - provisions,54.70,0.00,54.70
Children and Young Peoples Services,Head of Childrens Social Care,085332,Middlestone Moor CU,Supplies and Services,304999,Equipment and Materials,04-Sep-2022,000008461544866,ATMOSFEERIC,7991,Misc equipment tools and materials,20.83,0.00,20.83
Children and Young Peoples Services,Head of Childrens Social Care,085332,Middlestone Moor CU,Supplies and Services,328041,Clothing uniforms and laundry E328,04-Sep-2022,000008461544874,STUDIO STORE WDS,7996,Clothing uniforms and laundry,31.24,0.00,31.24
Children and Young Peoples Services,Head of Childrens Social Care,085332,Middlestone Moor CU,Supplies and Services,328041,Clothing uniforms and laundry E328,04-Sep-2022,000008461544876,WORLD OF DISNEY,7996,Clothing uniforms and laundry,34.71,0.00,34.71
Children and Young Peoples Services,Head of Childrens Social Care,085332,Middlestone Moor CU,Supplies and Services,328041,Clothing uniforms and laundry E328,04-Sep-2022,000008461544888,DISNEY CONTACTLE,7996,Clothing uniforms and laundry,12.76,0.00,12.76
Children and Young Peoples Services,Head of Childrens Social Care,085332,Middlestone Moor CU,Supplies and Services,328041,Clothing uniforms and laundry E328,04-Sep-2022,000008461544890,DISNEY CONTACTLE,7996,Clothing uniforms and laundry,17.36,0.00,17.36
Children and Young Peoples Services,Head of Childrens Social Care,085332,Middlestone Moor CU,Supplies and Services,328041,Clothing uniforms and laundry E328,04-Sep-2022,000008461544892,DISNEY CONTACTLE,7996,Clothing uniforms and laundry,27.94,0.00,27.94
Children and Young Peoples Services,Head of Childrens Social Care,085332,Middlestone Moor CU,Supplies and Services,328041,Clothing uniforms and laundry E328,04-Sep-2022,000008461544894,DISNEY CONTACTLE,7996,Clothing uniforms and laundry,15.62,0.00,15.62
Children and Young Peoples Services,Head of Childrens Social Care,085332,Middlestone Moor CU,Supplies and Services,328041,Clothing uniforms and laundry E328,04-Sep-2022,000008461544896,DISNEY CONTACTLE,7996,Clothing uniforms and laundry,26.03,0.00,26.03
Children and Young Peoples Services,Head of Childrens Social Care,085332,Middlestone Moor CU,Supplies and Services,324117,Provisions E324,04-Sep-2022,000008461544898,NYA LA MAISON LYOVEL,5499,Catering costs - provisions,2.17,0.00,2.17
Regeneration Economy and Growth,Business Durham CL0850,030689,Inward Investment and Aftercare,Supplies and Services,342222,Computers and Communications,04-Sep-2022,000008467757984,FASTHOSTS,4816,Comp hardware purch-network servers,7.54,0.00,7.54
Resources BK0010,Procurement Sales & Business Services,065501,Business Support - Executive Support,Supplies and Services,304403,Equipment and Materials,04-Sep-2022,000008467758228,AMZNMKTPLACE AMAZON.CO,5999,Other consumables,11.65,1.94,9.71
Resources BK0010,Procurement Sales & Business Services,065501,Business Support - Executive Support,Supplies and Services,304403,Equipment and Materials,04-Sep-2022,000008467758230,AMZNMKTPLACE AMAZON.CO,5999,Other consumables,13.45,2.24,11.21
Children and Young Peoples Services,Head of Childrens Social Care,085334,West Rainton Satelite Home,Supplies and Services,308011,Furniture,04-Sep-2022,000008467758402,The Range,5719,Furniture repair and replacement,46.93,0.00,46.93
Children and Young Peoples Services,Head of Childrens Social Care,085334,West Rainton Satelite Home,Supplies and Services,304403,Equipment and Materials,04-Sep-2022,000008467758406,AMZNMKTPLACE AMAZON.CO,5999,Other consumables,19.98,0.00,19.98
Children and Young Peoples Services,Head of Childrens Social Care,085334,West Rainton Satelite Home,Supplies and Services,348037,Subsistence E348,04-Sep-2022,000008467758638,STACK SEABURN,5812,Subsistence,24.35,0.00,24.35
Children and Young Peoples Services,Head of Early Help Inclusion & Vulnerable Children.,085957,Secure Management,Supplies and Services,304405,Equipment and Materials,04-Sep-2022,000008467758754,AMZNMKTPLACE AMAZON.CO,5999,Medical supplies,6.45,1.08,5.37
Children and Young Peoples Services,Head of Early Help Inclusion & Vulnerable Children.,085956,Lumley,Supplies and Services,304259,Equipment and Materials,04-Sep-2022,000008467758756,AMZNMKTPLACE AMAZON.CO,5999,Equipment-purchase and rental,17.99,3.00,14.99
Children and Young Peoples Services,Head of Childrens Social Care,085332,Middlestone Moor CU,Supplies and Services,348037,Subsistence E348,04-Sep-2022,000008467758904,P.H. DISNEYLAND,5812,Subsistence,82.57,0.00,82.57
Children and Young Peoples Services,Head of Childrens Social Care,085332,Middlestone Moor CU,Supplies and Services,324117,Provisions E324,04-Sep-2022,000008467758908,NYA LA MAISON LYOVEL,5499,Catering costs - provisions,3.21,0.00,3.21
Children and Young Peoples Services,Head of Childrens Social Care,085332,Middlestone Moor CU,Supplies and Services,324117,Provisions E324,04-Sep-2022,000008467758926,ALDI 774-018,5411,Catering costs - provisions,10.66,0.00,10.66
Neighbourhoods and Climate Change,Environmental Services,011060,C&G - Hardwick Park Catering,Supplies and Services,324117,Provisions E324,04-Sep-2022,000008467847954,BATLEYS PERTH,5300,Catering costs - provisions,335.82,55.97,279.85
Neighbourhoods and Climate Change,Environmental Services,011060,C&G - Hardwick Park Catering,Supplies and Services,324117,Provisions E324,04-Sep-2022,000008467847954 - 1,BATLEYS PERTH,5300,Catering costs - provisions,153.88,,153.88
Children and Young Peoples Services,Head of Childrens Social Care,085332,Middlestone Moor CU,Supplies and Services,324117,Provisions E324,05-Sep-2022,000008461544460,NYA LA MAISON LYOVEL,5499,Catering costs - provisions,0.09,0.00,0.09
Children and Young Peoples Services,Head of Childrens Social Care,085332,Middlestone Moor CU,Supplies and Services,348037,Subsistence E348,05-Sep-2022,000008461544462,iZ A M A DISTRIBU,5814,Subsistence,0.35,0.00,0.35
Children and Young Peoples Services,Head of Childrens Social Care,085332,Middlestone Moor CU,Supplies and Services,348037,Subsistence E348,05-Sep-2022,000008461544464,iZ A M A DISTRIBU,5814,Subsistence,0.08,0.00,0.08
Children and Young Peoples Services,Head of Childrens Social Care,085332,Middlestone Moor CU,Supplies and Services,304999,Equipment and Materials,05-Sep-2022,000008461544466,ATMOSFEERIC,7991,Misc equipment tools and materials,0.48,0.00,0.48
Children and Young Peoples Services,Head of Childrens Social Care,085332,Middlestone Moor CU,Supplies and Services,352001,Conference Expenses,05-Sep-2022,000008461544468,H EXPLORERS,7011,Conferencesseminars fees etc,17.02,0.00,17.02
Children and Young Peoples Services,Head of Childrens Social Care,085332,Middlestone Moor CU,Supplies and Services,352001,Conference Expenses,05-Sep-2022,000008461544470,H EXPLORERS,7011,Conferencesseminars fees etc,16.89,0.00,16.89
Children and Young Peoples Services,Head of Childrens Social Care,085332,Middlestone Moor CU,Supplies and Services,304999,Equipment and Materials,05-Sep-2022,000008461544900,ATMOSFEERIC,7991,Misc equipment tools and materials,0.57,0.00,0.57
Children and Young Peoples Services,Head of Childrens Social Care,085332,Middlestone Moor CU,Supplies and Services,328041,Clothing uniforms and laundry E328,05-Sep-2022,000008461544902,DISNEY CONTACTLE,7996,Clothing uniforms and laundry,0.35,0.00,0.35
Children and Young Peoples Services,Head of Childrens Social Care,085332,Middlestone Moor CU,Supplies and Services,328041,Clothing uniforms and laundry E328,05-Sep-2022,000008461544904,DISNEY CONTACTLE,7996,Clothing uniforms and laundry,0.35,0.00,0.35
Children and Young Peoples Services,Head of Childrens Social Care,085332,Middlestone Moor CU,Supplies and Services,328041,Clothing uniforms and laundry E328,05-Sep-2022,000008461544906,DISNEY CONTACTLE,7996,Clothing uniforms and laundry,1.53,0.00,1.53
Children and Young Peoples Services,Head of Childrens Social Care,085332,Middlestone Moor CU,Supplies and Services,328041,Clothing uniforms and laundry E328,05-Sep-2022,000008461544908,STUDIO STORE WDS,7996,Clothing uniforms and laundry,0.86,0.00,0.86
Children and Young Peoples Services,Head of Childrens Social Care,085332,Middlestone Moor CU,Supplies and Services,328041,Clothing uniforms and laundry E328,05-Sep-2022,000008461544910,WORLD OF DISNEY,7996,Clothing uniforms and laundry,0.95,0.00,0.95
Children and Young Peoples Services,Head of Childrens Social Care,085332,Middlestone Moor CU,Supplies and Services,352001,Conference Expenses,05-Sep-2022,000008461544912,H EXPLORERS,7011,Conferencesseminars fees etc,0.24,0.00,0.24
Children and Young Peoples Services,Head of Childrens Social Care,085332,Middlestone Moor CU,Supplies and Services,352001,Conference Expenses,05-Sep-2022,000008461544914,H EXPLORERS,7011,Conferencesseminars fees etc,0.20,0.00,0.20
Children and Young Peoples Services,Head of Childrens Social Care,085332,Middlestone Moor CU,Supplies and Services,352001,Conference Expenses,05-Sep-2022,000008461544916,H EXPLORERS,7011,Conferencesseminars fees etc,1.43,0.00,1.43
Children and Young Peoples Services,Head of Childrens Social Care,085332,Middlestone Moor CU,Supplies and Services,324117,Provisions E324,05-Sep-2022,000008461544918,NYA LA MAISON LYOVEL,5499,Catering costs - provisions,0.07,0.00,0.07
Children and Young Peoples Services,Head of Childrens Social Care,085332,Middlestone Moor CU,Supplies and Services,304999,Equipment and Materials,05-Sep-2022,000008461544920,ATMOSFEERIC,7991,Misc equipment tools and materials,0.06,0.00,0.06
Children and Young Peoples Services,Head of Childrens Social Care,085332,Middlestone Moor CU,Supplies and Services,328041,Clothing uniforms and laundry E328,05-Sep-2022,000008461544922,DISNEY CONTACTLE,7996,Clothing uniforms and laundry,0.35,0.00,0.35
Children and Young Peoples Services,Head of Childrens Social Care,085332,Middlestone Moor CU,Supplies and Services,328041,Clothing uniforms and laundry E328,05-Sep-2022,000008461544924,DISNEY CONTACTLE,7996,Clothing uniforms and laundry,0.48,0.00,0.48
Children and Young Peoples Services,Head of Childrens Social Care,085332,Middlestone Moor CU,Supplies and Services,328041,Clothing uniforms and laundry E328,05-Sep-2022,000008461544926,DISNEY CONTACTLE,7996,Clothing uniforms and laundry,0.77,0.00,0.77
Children and Young Peoples Services,Head of Childrens Social Care,085332,Middlestone Moor CU,Supplies and Services,328041,Clothing uniforms and laundry E328,05-Sep-2022,000008461544928,STUDIO STORE WDS,7996,Clothing uniforms and laundry,0.43,0.00,0.43
Children and Young Peoples Services,Head of Childrens Social Care,085332,Middlestone Moor CU,Supplies and Services,328041,Clothing uniforms and laundry E328,05-Sep-2022,000008461544930,DISNEY CONTACTLE,7996,Clothing uniforms and laundry,0.72,0.00,0.72
Children and Young Peoples Services,Head of Childrens Social Care,085332,Middlestone Moor CU,Supplies and Services,324117,Provisions E324,05-Sep-2022,000008461544932,NYA LA MAISON LYOVEL,5499,Catering costs - provisions,0.06,0.00,0.06
Children and Young Peoples Services,Head of Childrens Social Care,085633,Families First Chester-Le-Street,Transport,235073,Public Transport,05-Sep-2022,000008467758002,WWW.GONORTHEAST.CO.UK,4111,Travel-clients/students/children,26.50,0.00,26.50
Children and Young Peoples Services,Head of Childrens Social Care,085611,Families First Stanley,Supplies and Services,364301,Grants to Voluntary Organisations,05-Sep-2022,000008467758006,ontopup.com,8699,Hardship,11.89,0.00,11.89
Dedicated Schools Grant BG0015,DSG Schools Block,417611,Greenfield Community College 004176 - Technology,Supplies and Services,304403,Equipment and Materials,05-Sep-2022,000008467758010,AMZNMktplace,5999,Other consumables,71.91,12.00,59.91
Dedicated Schools Grant BG0015,DSG Schools Block,417611,Greenfield Community College 004176 - Technology,Supplies and Services,304403,Equipment and Materials,05-Sep-2022,000008467758016,METALS4U,5072,Other consumables,12.90,2.15,10.75
Dedicated Schools Grant BG0015,DSG Schools Block,417611,Greenfield Community College 004176 - Technology,Supplies and Services,304403,Equipment and Materials,05-Sep-2022,000008467758016 - 1,METALS4U,5072,Other consumables,6.01,,6.01
Children and Young Peoples Services,Head of Childrens Social Care,085341,High Etherley Satelite Home,Supplies and Services,304403,Equipment and Materials,05-Sep-2022,000008467758034,MAX SPIELMANN LTD,5999,Other consumables,11.99,0.00,11.99
Children and Young Peoples Services,Head of Childrens Social Care,085341,High Etherley Satelite Home,Supplies and Services,324117,Provisions E324,05-Sep-2022,000008467758036,ASDA STORES,5411,Catering costs - provisions,11.26,0.00,11.26
Children and Young Peoples Services,Head of Childrens Social Care,085341,High Etherley Satelite Home,Supplies and Services,324117,Provisions E324,05-Sep-2022,000008467758038,ASDA STORES,5411,Catering costs - provisions,7.60,0.00,7.60
Children and Young Peoples Services,Head of Education and Skills,075035,DurhamDirections Re-engagement,Supplies and Services,364301,Grants to Voluntary Organisations,05-Sep-2022,000008467758054,WWW.DAVINESONLINE.COM,7230,Hardship,183.39,0.00,183.39
Regeneration Economy and Growth,Culture Sport and Tourism,054004,Newton Aycliffe New Library,Supplies and Services,332047,Printing Stationery and Gen Off Exps,05-Sep-2022,000008467758066,AMZNMktplace,5999,Stationery,17.99,3.00,14.99
Regeneration Economy and Growth,Culture Sport and Tourism,054004,Newton Aycliffe New Library,Supplies and Services,332047,Printing Stationery and Gen Off Exps,05-Sep-2022,000008467758072,AMZNMktplace,5999,Stationery,6.98,1.16,5.82
Neighbourhoods and Climate Change,Environmental Services,031233,North Pennines - Pennine Peatlife,Supplies and Services,352001,Conference Expenses,05-Sep-2022,000008467758106,BOOK.PASSTHEKEYS.COM,7011,Conferencesseminars fees etc,350.00,0.00,350.00
Children and Young Peoples Services,Head of Education and Skills,054640,Durham Learning Resources 054640,Supplies and Services,304403,Equipment and Materials,05-Sep-2022,000008467758116,AMZNBUSINESS Z94HC3A85,5999,Other consumables,59.50,0.00,59.50
Children and Young Peoples Services,Head of Childrens Social Care,085623,Families First Bishop Auckland,Supplies and Services,338045,Services,05-Sep-2022,000008467758168,DARLINGTON BC INTERNET,9399,Legal expenses 338045,11.00,0.00,11.00
Neighbourhoods and Climate Change,Environmental Services,010367,C&G - South Grounds Maintenance,Supplies and Services,304221,Equipment and Materials,05-Sep-2022,000008467758188,S&A BUILDERS MERCHANTS,5211,Direct materials,37.55,0.00,37.55
Children and Young Peoples Services,Head of Early Help Inclusion & Vulnerable Children.,074000,National Supporting Families Programme,Supplies and Services,308011,Furniture,05-Sep-2022,000008467758244,J DODDS CARPETS LTD,5713,Furniture repair and replacement,250.00,0.00,250.00
Children and Young Peoples Services,Head of Childrens Social Care,085347,Solo Home The Manse,Supplies and Services,304999,Equipment and Materials,05-Sep-2022,000008467758258,Amazon Prime LG4JO5T55,5968,Misc equipment tools and materials,7.99,0.00,7.99
Children and Young Peoples Services,Head of Childrens Social Care,085331,New Lea Childrens Home,Supplies and Services,304999,Equipment and Materials,05-Sep-2022,000008467758276,HOME BARGAINS,5251,Misc equipment tools and materials,28.98,0.00,28.98
Children and Young Peoples Services,Head of Childrens Social Care,085331,New Lea Childrens Home,Supplies and Services,324117,Provisions E324,05-Sep-2022,000008467758282,ASDA SUPERSTORE,5411,Catering costs - provisions,48.27,0.00,48.27
Adult and Health Services,Head of Adults,055302,Durham Pathways,Supplies and Services,340001,Postages E340,05-Sep-2022,000008467758290,POST OFFICE COUNTER,9402,Postages,0.95,0.00,0.95
Adult and Health Services,Head of Adults,055302,Durham Pathways,Supplies and Services,304403,Equipment and Materials,05-Sep-2022,000008467758292,AMZNMKTPLACE AMAZON.CO,5999,Other consumables,8.98,1.50,7.48
Adult and Health Services,Head of Adults,055302,Durham Pathways,Supplies and Services,304403,Equipment and Materials,05-Sep-2022,000008467758296,AMZNMKTPLACE AMAZON.CO,5999,Other consumables,4.49,0.75,3.74
Adult and Health Services,Head of Adults,055302,Durham Pathways,Supplies and Services,304259,Equipment and Materials,05-Sep-2022,000008467758298,HALFORDS 0550,5940,Equipment-purchase and rental,4.99,0.00,4.99
Adult and Health Services,Head of Adults,055302,Durham Pathways,Supplies and Services,304403,Equipment and Materials,05-Sep-2022,000008467758302,AMZNMktplace,5999,Other consumables,8.98,1.50,7.48
Adult and Health Services,Head of Adults,055302,Durham Pathways,Supplies and Services,304403,Equipment and Materials,05-Sep-2022,000008467758304,AMZNMktplace,5999,Other consumables,17.96,3.00,14.96
Regeneration Economy and Growth,Business Durham CL0850,030674,Business Services General,Third Party Payments,430100,Rendered by Private Contractors,05-Sep-2022,000008467758310,BUILT ENVIRONMENT NETW,7399,Payments to sub-contractors,118.80,0.00,118.80
Children and Young Peoples Services,Head of Early Help Inclusion & Vulnerable Children.,085962,Aycliffe Secure - Durham,Supplies and Services,312009,Newspapers books and periodicals E312,05-Sep-2022,000008467758332,AMZ Amazon Warehouse,5942,Newspapers books and periodicals,-47.08,-7.85,-39.23
Regeneration Economy and Growth,Economic Development Level C,030770,Durham Advance,Supplies and Services,372009,Subscriptions E372,05-Sep-2022,000008467758336,SQ JOJOZ REIKI MAGICK,7299,Subscriptions 372009,170.00,0.00,170.00
Children and Young Peoples Services,Head of Early Help Inclusion & Vulnerable Children.,085957,Secure Management,Supplies and Services,324117,Provisions E324,05-Sep-2022,000008467758398,TESCO STORES 6329,5411,Catering costs - provisions,63.95,0.00,63.95
Neighbourhoods and Climate Change,Environmental Services,010919,C&G - Countryside Site Management,Supplies and Services,304221,Equipment and Materials,05-Sep-2022,000008467758414,WWW.SUIGENERIS.CO.UK,5085,Direct materials,44.06,7.34,36.72
Adult and Health Services,Head of Adults,055643,Hawthorn House LD Respite Unit,Supplies and Services,304403,Equipment and Materials,05-Sep-2022,000008467758520,AMZNMktplace,5999,Other consumables,11.99,2.00,9.99
Regeneration Economy and Growth,Corporate Property and Land,011003,FM-Civic Bldgs-County Hall Durham,Supplies and Services,304221,Equipment and Materials,05-Sep-2022,000008467758524,SP PIPEWORK SUPPLIER,5074,Direct materials,55.97,0.00,55.97
Neighbourhoods and Climate Change,Environmental Services,010367,C&G - South Grounds Maintenance,Supplies and Services,304999,Equipment and Materials,05-Sep-2022,000008467758548,NEW ROW FARM NURSERIES,780,Misc equipment tools and materials,228.00,0.00,228.00
Children and Young Peoples Services,Head of Childrens Social Care,085341,High Etherley Satelite Home,Supplies and Services,304999,Equipment and Materials,05-Sep-2022,000008467758582,HOME BARGAINS SPENNYMO,5251,Misc equipment tools and materials,12.58,0.00,12.58
Children and Young Peoples Services,Head of Childrens Social Care,085341,High Etherley Satelite Home,Supplies and Services,324117,Provisions E324,05-Sep-2022,000008467758586,ASDA SUPERSTORE 4987,5411,Catering costs - provisions,5.88,0.00,5.88
Children and Young Peoples Services,Head of Early Help Inclusion & Vulnerable Children.,088115,Young Parents Programme 088115,Supplies and Services,384302,Miscellaneous Expenses,05-Sep-2022,000008467758660,AMZNMktplace,5999,Activity expenses,12.65,2.11,10.54
Children and Young Peoples Services,Head of Childrens Social Care,085357,LAC Bespoke Placements,Supplies and Services,304999,Equipment and Materials,05-Sep-2022,000008467758768,YPS CHESTER LE STREETS,6513,Misc equipment tools and materials,"10,000.00",0.00,10000.00
Children and Young Peoples Services,Head of Childrens Social Care,085357,LAC Bespoke Placements,Supplies and Services,304999,Equipment and Materials,05-Sep-2022,000008467758772,YPS CHESTER LE STREETS,6513,Misc equipment tools and materials,"4,399.00",0.00,4399.00
Children and Young Peoples Services,Head of Childrens Social Care,085347,Solo Home The Manse,Supplies and Services,324117,Provisions E324,05-Sep-2022,000008467758786,B&M 740 SEAHAM,5399,Catering costs - provisions,18.07,0.00,18.07
Children and Young Peoples Services,Head of Childrens Social Care,085347,Solo Home The Manse,Supplies and Services,324117,Provisions E324,05-Sep-2022,000008467758788,ASDA STORES,5411,Catering costs - provisions,24.04,0.00,24.04
Neighbourhoods and Climate Change,Environmental Services,010301,C&G - North Grounds Maintenance,Supplies and Services,304999,Equipment and Materials,05-Sep-2022,000008467758816,GUSTHARTS,5072,Misc equipment tools and materials,481.85,0.00,481.85
Children and Young Peoples Services,Head of Early Help Inclusion & Vulnerable Children.,088107,Wheatley Hill & N. Aycliffe Family Centre,Supplies and Services,324117,Provisions E324,05-Sep-2022,000008467758916,ASDA GROCERIES ONLINE,5411,Catering costs - provisions,58.75,0.00,58.75
Regeneration Economy and Growth,Culture Sport and Tourism,054233,Bishop Auckland Town Hall Library,Supplies and Services,324117,Provisions E324,05-Sep-2022,000008467758958,HERON FOODS,5411,Catering costs - provisions,12.72,0.00,12.72
Regeneration Economy and Growth,Culture Sport and Tourism,054233,Bishop Auckland Town Hall Library,Supplies and Services,324117,Provisions E324,05-Sep-2022,000008467758964,HERON FOODS,5411,Catering costs - provisions,10.90,0.00,10.90
Regeneration Economy and Growth,Culture Sport and Tourism,054233,Bishop Auckland Town Hall Library,Supplies and Services,324117,Provisions E324,05-Sep-2022,000008467758966,HERON FOODS,5411,Catering costs - provisions,12.72,0.00,12.72
Resources BK0010,Procurement Sales & Business Services,065504,Business Support - Meadowfield,Supplies and Services,304403,Equipment and Materials,05-Sep-2022,000008467759044,AMZNMktplace,5999,Other consumables,8.99,1.50,7.49
Children and Young Peoples Services,Head of Childrens Social Care,085332,Middlestone Moor CU,Transport,235057,Public Transport,05-Sep-2022,000008467759052,NEWCASTLE PARK AND FLY,7523,Staff travelling,4.00,0.00,4.00
Regeneration Economy and Growth,Communications Management,060270,Communications and Marketing,Supplies and Services,336005,Advertising E336,05-Sep-2022,000008467759076,FACEBK 3MT7SE74B2,7311,Advertising other than for staff,500.00,0.00,500.00
Regeneration Economy and Growth,Corporate Property and Land,010525,Catering - Green Lane,Supplies and Services,324117,Provisions E324,05-Sep-2022,000008467847916,JR HOLLAND FOODSERVICE,5499,Catering costs - provisions,36.59,0.00,36.59
Regeneration Economy and Growth,Corporate Property and Land,011275,Catering -Durham Leadership Centre,Supplies and Services,324117,Provisions E324,05-Sep-2022,000008467847920,JR HOLLAND FOODSERVICE,5499,Catering costs - provisions,9.80,0.00,9.80
Regeneration Economy and Growth,Corporate Property and Land,011275,Catering -Durham Leadership Centre,Supplies and Services,324117,Provisions E324,05-Sep-2022,000008467847924,JR HOLLAND FOODSERVICE,5499,Catering costs - provisions,81.90,0.00,81.90
Regeneration Economy and Growth,Corporate Property and Land,011296,Catering - Dunes,Supplies and Services,324117,Provisions E324,05-Sep-2022,000008467847930,JR HOLLAND FOODSERVICE,5499,Catering costs - provisions,114.56,0.00,114.56
Regeneration Economy and Growth,Corporate Property and Land,011296,Catering - Dunes,Supplies and Services,324117,Provisions E324,05-Sep-2022,000008467847934,JR HOLLAND FOODSERVICE,5499,Catering costs - provisions,-7.42,0.00,-7.42
Regeneration Economy and Growth,Culture Sport and Tourism,054235,Bishop Auckland Town Hall Cafe,Supplies and Services,324117,Provisions E324,05-Sep-2022,000008467847940,JR HOLLAND FOODSERVICE,5499,Catering costs - provisions,602.01,0.00,602.01
Adult and Health Services,Head of Adults,055643,Hawthorn House LD Respite Unit,Supplies and Services,324117,Provisions E324,05-Sep-2022,000008467847948,JR HOLLAND FOODSERVICE,5499,Catering costs - provisions,23.70,0.00,23.70
Neighbourhoods and Climate Change,Environmental Services,011060,C&G - Hardwick Park Catering,Supplies and Services,324117,Provisions E324,05-Sep-2022,000008467847960,JR HOLLAND FOODSERVICE,5499,Catering costs - provisions,77.45,0.00,77.45
Neighbourhoods and Climate Change,Environmental Services,011060,C&G - Hardwick Park Catering,Supplies and Services,324117,Provisions E324,05-Sep-2022,000008467847962,JR HOLLAND FOODSERVICE,5499,Catering costs - provisions,98.78,0.00,98.78
Regeneration Economy and Growth,Corporate Property and Land,021242,Catering - County Hall,Supplies and Services,324117,Provisions E324,05-Sep-2022,000008467847964,JR HOLLAND FOODSERVICE,5499,Catering costs - provisions,48.40,0.00,48.40
Regeneration Economy and Growth,Corporate Property and Land,021242,Catering - County Hall,Supplies and Services,324117,Provisions E324,05-Sep-2022,000008467847968,JR HOLLAND FOODSERVICE,5499,Catering costs - provisions,63.40,0.00,63.40
Regeneration Economy and Growth,Corporate Property and Land,021242,Catering - County Hall,Supplies and Services,324117,Provisions E324,05-Sep-2022,000008467847970,JR HOLLAND FOODSERVICE,5499,Catering costs - provisions,31.16,0.00,31.16
Children and Young Peoples Services,Head of Childrens Social Care,085341,High Etherley Satelite Home,Supplies and Services,348037,Subsistence E348,05-Sep-2022,000008470609998,MCDONALD`S,5812,Subsistence,9.98,0.00,9.98
Children and Young Peoples Services,Head of Education and Skills,075033,DurhamWorks 3,Supplies and Services,364301,Grants to Voluntary Organisations,05-Sep-2022,000008470610034,WWW.DURHAM.GOV.UK,9399,Hardship,11.00,0.00,11.00
Children and Young Peoples Services,Head of Education and Skills,075035,DurhamDirections Re-engagement,Supplies and Services,364301,Grants to Voluntary Organisations,05-Sep-2022,000008470610040,WWW.DURHAM.GOV.UK,9399,Hardship,11.00,0.00,11.00
Regeneration Economy and Growth,Culture Sport and Tourism,011056,AAP Funding - Sport & Leisure,Supplies and Services,332047,Printing Stationery and Gen Off Exps,05-Sep-2022,000008470610092,AMZNMKTPLACE AMAZON.CO,5999,Stationery,36.36,6.06,30.30
Regeneration Economy and Growth,Culture Sport and Tourism,011056,AAP Funding - Sport & Leisure,Supplies and Services,332047,Printing Stationery and Gen Off Exps,05-Sep-2022,000008470610092 - 1,AMZNMKTPLACE AMAZON.CO,5999,Stationery,14.96,,14.96
Regeneration Economy and Growth,Culture Sport and Tourism,011056,AAP Funding - Sport & Leisure,Supplies and Services,332047,Printing Stationery and Gen Off Exps,05-Sep-2022,000008470610094,AMZNMKTPLACE AMAZON.CO,5999,Stationery,34.74,5.79,28.95
Regeneration Economy and Growth,Culture Sport and Tourism,011056,AAP Funding - Sport & Leisure,Supplies and Services,332047,Printing Stationery and Gen Off Exps,05-Sep-2022,000008470610100,AMZNMKTPLACE AMAZON.CO,5999,Stationery,9.48,1.58,7.90
Regeneration Economy and Growth,Culture Sport and Tourism,011056,AAP Funding - Sport & Leisure,Supplies and Services,332047,Printing Stationery and Gen Off Exps,05-Sep-2022,000008470610106,AMZNMKTPLACE AMAZON.CO,5999,Stationery,4.99,0.83,4.16
Regeneration Economy and Growth,Culture Sport and Tourism,011056,AAP Funding - Sport & Leisure,Supplies and Services,332047,Printing Stationery and Gen Off Exps,05-Sep-2022,000008470610110,AMZNMKTPLACE AMAZON.CO,5999,Stationery,19.49,3.26,16.23
Regeneration Economy and Growth,Culture Sport and Tourism,011056,AAP Funding - Sport & Leisure,Supplies and Services,332047,Printing Stationery and Gen Off Exps,05-Sep-2022,000008470610112,AMZNMKTPLACE AMAZON.CO,5999,Stationery,25.66,4.28,21.38
Regeneration Economy and Growth,Culture Sport and Tourism,030705,Visit County Durham 030705,Transport,235057,Public Transport,05-Sep-2022,000008470610138,OMNI SHOREHAM ONLINE S,7399,Staff travelling,178.54,0.00,178.54
Children and Young Peoples Services,Head of Childrens Social Care,085332,Middlestone Moor CU,Supplies and Services,312009,Newspapers books and periodicals E312,05-Sep-2022,000008470610302,RELAY 362209SV,5942,Newspapers books and periodicals,15.23,0.00,15.23
Children and Young Peoples Services,Head of Childrens Social Care,085332,Middlestone Moor CU,Supplies and Services,312009,Newspapers books and periodicals E312,05-Sep-2022,000008470610306,RELAY362221SC,5942,Newspapers books and periodicals,2.30,0.00,2.30
Adult and Health Services,Head of Adults,055302,Durham Pathways,Supplies and Services,304403,Equipment and Materials,05-Sep-2022,000008470610452,AMZNMKTPLACE AMAZON.CO,5999,Other consumables,4.49,0.75,3.74
Adult and Health Services,Head of Adults,055302,Durham Pathways,Supplies and Services,304403,Equipment and Materials,05-Sep-2022,000008470610454,AMZNMKTPLACE AMAZON.CO,5999,Other consumables,4.49,0.75,3.74
Regeneration Economy and Growth,Culture Sport and Tourism,054967,Theatre - Technical Staffing,Supplies and Services,328041,Clothing uniforms and laundry E328,05-Sep-2022,000008470610460,ARGOS LTD,5310,Clothing uniforms and laundry,429.00,0.00,429.00
Children and Young Peoples Services,Head of Childrens Social Care,085551,Short Break Services-Park Hse Sher,Supplies and Services,324117,Provisions E324,05-Sep-2022,000008470610680,ALDI 15 774,5411,Catering costs - provisions,51.71,0.00,51.71
Regeneration Economy and Growth,Economic Development Level C,030772,CLLD South,Supplies and Services,304221,Equipment and Materials,05-Sep-2022,000008470611250,SCREWFIX DIR LTD,5211,Direct materials,90.86,0.00,90.86
Resources BK0010,Corporate Policy Planning & Performance,060290,Riep - Modern ways of working,Supplies and Services,312009,Newspapers books and periodicals E312,05-Sep-2022,000008470611396,APM,8699,Newspapers books and periodicals,-52.92,0.00,-52.92
Regeneration Economy and Growth,Corporate Property and Land,011296,Catering - Dunes,Supplies and Services,324117,Provisions E324,05-Sep-2022,000008470759388,BATLEYS PERTH,5300,Catering costs - provisions,154.92,25.82,129.10
Regeneration Economy and Growth,Corporate Property and Land,011296,Catering - Dunes,Supplies and Services,324117,Provisions E324,05-Sep-2022,000008470759388 - 1,BATLEYS PERTH,5300,Catering costs - provisions,17.78,,17.78
Regeneration Economy and Growth,Corporate Property and Land,030691,Catering - Durham Dales Centre,Supplies and Services,324117,Provisions E324,05-Sep-2022,000008470759398,BATLEYS PERTH,5300,Catering costs - provisions,93.48,15.58,77.90
Regeneration Economy and Growth,Corporate Property and Land,030691,Catering - Durham Dales Centre,Supplies and Services,324117,Provisions E324,05-Sep-2022,000008470759398 - 1,BATLEYS PERTH,5300,Catering costs - provisions,121.77,,121.77
Regeneration Economy and Growth,Corporate Property and Land,021235,Catering - Wharton Park,Supplies and Services,324117,Provisions E324,05-Sep-2022,000008470759410,BATLEYS PERTH,5300,Catering costs - provisions,82.26,13.71,68.55
Regeneration Economy and Growth,Corporate Property and Land,021235,Catering - Wharton Park,Supplies and Services,324117,Provisions E324,05-Sep-2022,000008470759410 - 1,BATLEYS PERTH,5300,Catering costs - provisions,35.60,,35.60
Regeneration Economy and Growth,Culture Sport and Tourism,054812,Gala Theatre - Catering etc,Supplies and Services,324117,Provisions E324,05-Sep-2022,000008470759424,BATLEYS PERTH,5300,Catering costs - provisions,42.12,7.02,35.10
Regeneration Economy and Growth,Culture Sport and Tourism,054812,Gala Theatre - Catering etc,Supplies and Services,324117,Provisions E324,05-Sep-2022,000008470759424 - 1,BATLEYS PERTH,5300,Catering costs - provisions,141.14,,141.14
Children and Young Peoples Services,Head of Early Help Inclusion & Vulnerable Children.,088107,Wheatley Hill & N. Aycliffe Family Centre,Supplies and Services,384302,Miscellaneous Expenses,06-Sep-2022,000008467758456,AMZ Amazon.co.uk,5999,Activity expenses,-7.68,-1.28,-6.40
Children and Young Peoples Services,Head of Childrens Social Care,085332,Middlestone Moor CU,Supplies and Services,348037,Subsistence E348,06-Sep-2022,000008467758910,P.H. DISNEYLAND,5812,Subsistence,2.27,0.00,2.27
Children and Young Peoples Services,Head of Childrens Social Care,085332,Middlestone Moor CU,Supplies and Services,324117,Provisions E324,06-Sep-2022,000008467758912,NYA LA MAISON LYOVEL,5499,Catering costs - provisions,0.09,0.00,0.09
Regeneration Economy and Growth,Business Durham CL0850,030689,Inward Investment and Aftercare,Supplies and Services,342033,Computers and Communications,06-Sep-2022,000008470609914,STK Shutterstock,7333,Computer hardware,19.00,0.00,19.00
Regeneration Economy and Growth,Business Durham CL0850,030689,Inward Investment and Aftercare,Supplies and Services,342033,Computers and Communications,06-Sep-2022,000008470609918,"FORMSTACK, LLC",7372,Computer hardware,275.64,0.00,275.64
Regeneration Economy and Growth,Business Durham CL0850,030689,Inward Investment and Aftercare,Employees,040149,Recruitment Instruction and Training,06-Sep-2022,000008470609922,PAYPAL QR GMBH YOUR O,8999,Training-all costs,86.74,0.00,86.74
Children and Young Peoples Services,Head of Childrens Social Care,085611,Families First Stanley,Supplies and Services,364301,Grants to Voluntary Organisations,06-Sep-2022,000008470609928,THE FLOORING STORE,5713,Hardship,45.00,0.00,45.00
Children and Young Peoples Services,Head of Childrens Social Care,085300,LAC Placements,Supplies and Services,364320,Grants to Voluntary Organisations,06-Sep-2022,000008470609930,COZYPADS.CO.UK,7011,Accommodation assistance,-200.00,0.00,-200.00
Children and Young Peoples Services,Head of Education and Skills,071801,Selby Cottage Childcare Centre,Supplies and Services,324117,Provisions E324,06-Sep-2022,000008470609944,LIDL GB WASHINGTON,5411,Catering costs - provisions,37.05,0.00,37.05
Children and Young Peoples Services,Head of Childrens Social Care,085347,Solo Home The Manse,Supplies and Services,304403,Equipment and Materials,06-Sep-2022,000008470610008,AMZNMktplace,5999,Other consumables,41.70,0.00,41.70
Children and Young Peoples Services,Head of Childrens Social Care,085347,Solo Home The Manse,Supplies and Services,304999,Equipment and Materials,06-Sep-2022,000008470610016,SAVERS HEALTH & BEAUTY,5912,Misc equipment tools and materials,16.65,0.00,16.65
Children and Young Peoples Services,Head of Education and Skills,075035,DurhamDirections Re-engagement,Supplies and Services,364301,Grants to Voluntary Organisations,06-Sep-2022,000008470610042,WWW.GONORTHEAST.CO.UK,4111,Hardship,16.00,0.00,16.00
Children and Young Peoples Services,Head of Education and Skills,075035,DurhamDirections Re-engagement,Supplies and Services,364301,Grants to Voluntary Organisations,06-Sep-2022,000008470610046,WWW.GONORTHEAST.CO.UK,4111,Hardship,16.00,0.00,16.00
Children and Young Peoples Services,Head of Education and Skills,075033,DurhamWorks 3,Supplies and Services,364301,Grants to Voluntary Organisations,06-Sep-2022,000008470610050,WWW.GONORTHEAST.CO.UK,4111,Hardship,21.50,0.00,21.50
Children and Young Peoples Services,Head of Education and Skills,075035,DurhamDirections Re-engagement,Supplies and Services,364301,Grants to Voluntary Organisations,06-Sep-2022,000008470610052,GATESHEAD COUNCIL INT,9399,Hardship,11.00,0.00,11.00
Children and Young Peoples Services,Head of Education and Skills,075034,Youth Futures Foundation,Supplies and Services,364301,Grants to Voluntary Organisations,06-Sep-2022,000008470610054,AMZNMktplace,5999,Hardship,32.94,5.49,27.45
Children and Young Peoples Services,Head of Education and Skills,075034,Youth Futures Foundation,Supplies and Services,364301,Grants to Voluntary Organisations,06-Sep-2022,000008470610054 - 1,AMZNMktplace,5999,Hardship,22.01,,22.01
Regeneration Economy and Growth,Culture Sport and Tourism,054004,Newton Aycliffe New Library,Supplies and Services,332047,Printing Stationery and Gen Off Exps,06-Sep-2022,000008470610082,AMZNMktplace,5999,Stationery,31.58,0.00,31.58
Regeneration Economy and Growth,Culture Sport and Tourism,011056,AAP Funding - Sport & Leisure,Supplies and Services,332047,Printing Stationery and Gen Off Exps,06-Sep-2022,000008470610114,AMZNMKTPLACE AMAZON.CO,5999,Stationery,7.49,1.25,6.24
Regeneration Economy and Growth,Culture Sport and Tourism,054004,Newton Aycliffe New Library,Supplies and Services,332047,Printing Stationery and Gen Off Exps,06-Sep-2022,000008470610116,AMZNMktplace,5999,Stationery,19.95,3.33,16.62
Regeneration Economy and Growth,Culture Sport and Tourism,054004,Newton Aycliffe New Library,Supplies and Services,332047,Printing Stationery and Gen Off Exps,06-Sep-2022,000008470610120,AMZNMktplace,5999,Stationery,9.96,1.66,8.30
Regeneration Economy and Growth,Culture Sport and Tourism,054004,Newton Aycliffe New Library,Supplies and Services,332047,Printing Stationery and Gen Off Exps,06-Sep-2022,000008470610120 - 1,AMZNMktplace,5999,Stationery,13.01,,13.01
Regeneration Economy and Growth,Culture Sport and Tourism,054004,Newton Aycliffe New Library,Supplies and Services,332047,Printing Stationery and Gen Off Exps,06-Sep-2022,000008470610122,AMZNMktplace,5999,Stationery,8.99,1.50,7.49
Regeneration Economy and Growth,Culture Sport and Tourism,054731,Killhope Lead Mining Centre,Supplies and Services,304337,Equipment and Materials,06-Sep-2022,000008470610126,WWW.POWDER-UK.COM,5631,Consumables/items for resale,204.57,0.00,204.57
Regeneration Economy and Growth,Culture Sport and Tourism,054004,Newton Aycliffe New Library,Supplies and Services,332047,Printing Stationery and Gen Off Exps,06-Sep-2022,000008470610128,AMZNMktplace,5999,Stationery,65.97,11.01,54.96
Regeneration Economy and Growth,Culture Sport and Tourism,054004,Newton Aycliffe New Library,Supplies and Services,332047,Printing Stationery and Gen Off Exps,06-Sep-2022,000008470610132,AMZNMktplace,5999,Stationery,5.99,1.00,4.99
Regeneration Economy and Growth,Culture Sport and Tourism,030712,VCD - Project Delivery,Supplies and Services,384199,Miscellaneous Expenses,06-Sep-2022,000008470610140,WWW.DURHAMCATHEDRAL.CO,8661,Other hired and contracted services,31.00,0.00,31.00
Children and Young Peoples Services,Head of Childrens Social Care,085342,16 Hickstead Rise (previously 9 Cedar Ave),Supplies and Services,348037,Subsistence E348,06-Sep-2022,000008470610146,43027395 COSTA COFFEE,5814,Subsistence,12.05,0.00,12.05
Children and Young Peoples Services,Head of Childrens Social Care,085342,16 Hickstead Rise (previously 9 Cedar Ave),Supplies and Services,304999,Equipment and Materials,06-Sep-2022,000008470610150,SUPERDRUG STORES PLC,5912,Misc equipment tools and materials,13.09,0.00,13.09
Children and Young Peoples Services,Head of Childrens Social Care,085342,16 Hickstead Rise (previously 9 Cedar Ave),Supplies and Services,304999,Equipment and Materials,06-Sep-2022,000008470610152,SUPERDRUG STORES PLC,5912,Misc equipment tools and materials,4.18,0.00,4.18
Children and Young Peoples Services,Head of Childrens Social Care,085332,Middlestone Moor CU,Supplies and Services,324117,Provisions E324,06-Sep-2022,000008470610162,TESCO STORES 2371,5411,Catering costs - provisions,143.72,0.00,143.72
Neighbourhoods and Climate Change,Environmental Services,010383,C&G - South Street Cleansing,Supplies and Services,304403,Equipment and Materials,06-Sep-2022,000008470610214,MAXWELLS DIY,5231,Other consumables,85.00,14.17,70.83
Regeneration Economy and Growth,Economic Development Level C,030776,LINKCD Flexible Fund,Supplies and Services,340001,Postages E340,06-Sep-2022,000008470610280,POST OFFICE COUNTER,9402,Postages,5.70,0.00,5.70
Regeneration Economy and Growth,Economic Development Level C,030776,LINKCD Flexible Fund,Transport,235057,Public Transport,06-Sep-2022,000008470610282,WWW.GONORTHEAST.CO.UK,4111,Staff travelling,6.30,0.00,6.30
Children and Young Peoples Services,Head of Childrens Social Care,085365,Children Looked After Team 2,Supplies and Services,338045,Services,06-Sep-2022,000008470610288,HM PASSPORT OFFICE,9399,Legal expenses 338045,49.00,0.00,49.00
Regeneration Economy and Growth,Economic Development Level C,030772,CLLD South,Supplies and Services,304403,Equipment and Materials,06-Sep-2022,000008470610394,AMZNMKTPLACE AMAZON.CO,5999,Other consumables,15.90,2.65,13.25
Resources BK0010,Procurement Sales & Business Services,065501,Business Support - Executive Support,Supplies and Services,340001,Postages E340,06-Sep-2022,000008470610408,PARCELFORCE WL,4215,Postages,16.20,0.00,16.20
Regeneration Economy and Growth,Culture Sport and Tourism,011198,Culture & Sport Management 011198,Supplies and Services,304403,Equipment and Materials,06-Sep-2022,000008470610416,MENTIMETER PRO,5734,Other consumables,262.09,0.00,262.09
Neighbourhoods and Climate Change,Environmental Services,026591,C&G - Hardwick Park,Supplies and Services,332047,Printing Stationery and Gen Off Exps,06-Sep-2022,000008470610476,AMZNMktplace,5999,Stationery,164.95,27.50,137.45
Neighbourhoods and Climate Change,Environmental Services,011060,C&G - Hardwick Park Catering,Supplies and Services,304259,Equipment and Materials,06-Sep-2022,000008470610478,AMZNMKTPLACE AMAZON.CO,5999,Equipment-purchase and rental,94.98,15.83,79.15
Children and Young Peoples Services,Head of Childrens Social Care,085341,High Etherley Satelite Home,Supplies and Services,324117,Provisions E324,06-Sep-2022,000008470610482,TESCO STORES 6329,5411,Catering costs - provisions,200.67,0.00,200.67
Regeneration Economy and Growth,Business Durham CL0850,030690,Durham Dales Centre - Tourist Information Centre,Supplies and Services,328041,Clothing uniforms and laundry E328,06-Sep-2022,000008470610490,GOOSE ISLAND,7296,Clothing uniforms and laundry,738.84,0.00,738.84
Children and Young Peoples Services,Head of Childrens Social Care,085364,Children Looked After Team 1,Transport,235057,Public Transport,06-Sep-2022,000008470610524,National Express Limit,4131,Staff travelling,36.20,0.00,36.20
Children and Young Peoples Services,Head of Early Help Inclusion & Vulnerable Children.,085957,Secure Management,Supplies and Services,328041,Clothing uniforms and laundry E328,06-Sep-2022,000008470610528,Footasylum Limited,5651,Clothing uniforms and laundry,94.99,0.00,94.99
Children and Young Peoples Services,Head of Early Help Inclusion & Vulnerable Children.,085957,Secure Management,Supplies and Services,328041,Clothing uniforms and laundry E328,06-Sep-2022,000008470610532,Footasylum Limited,5651,Clothing uniforms and laundry,124.99,0.00,124.99
Children and Young Peoples Services,Head of Early Help Inclusion & Vulnerable Children.,085957,Secure Management,Supplies and Services,328041,Clothing uniforms and laundry E328,06-Sep-2022,000008470610534,SP GLAMDOLL FASHION,5631,Clothing uniforms and laundry,124.93,0.00,124.93
Children and Young Peoples Services,Head of Early Help Inclusion & Vulnerable Children.,085957,Secure Management,Supplies and Services,304403,Equipment and Materials,06-Sep-2022,000008470610538,SP DRESSMEDOLLY,5734,Other consumables,23.99,0.00,23.99
Children and Young Peoples Services,Head of Early Help Inclusion & Vulnerable Children.,085957,Secure Management,Supplies and Services,304403,Equipment and Materials,06-Sep-2022,000008470610540,SP DRESSMEDOLLY,5734,Other consumables,56.97,0.00,56.97
Children and Young Peoples Services,Head of Early Help Inclusion & Vulnerable Children.,085957,Secure Management,Supplies and Services,384999,Miscellaneous Expenses,06-Sep-2022,000008470610546,SP STERLING & WILDE,5944,Other expenses,139.00,0.00,139.00
Children and Young Peoples Services,Head of Early Help Inclusion & Vulnerable Children.,085957,Secure Management,Supplies and Services,304403,Equipment and Materials,06-Sep-2022,000008470610548,AMZNMktplace,5999,Other consumables,7.99,1.33,6.66
Children and Young Peoples Services,Head of Early Help Inclusion & Vulnerable Children.,085957,Secure Management,Supplies and Services,304403,Equipment and Materials,06-Sep-2022,000008470610550,AMZNMktplace,5999,Other consumables,7.99,1.33,6.66
Children and Young Peoples Services,Head of Early Help Inclusion & Vulnerable Children.,085957,Secure Management,Supplies and Services,304403,Equipment and Materials,06-Sep-2022,000008470610552,AMZNMktplace,5999,Other consumables,11.39,0.00,11.39
Children and Young Peoples Services,Head of Childrens Social Care,085334,West Rainton Satelite Home,Supplies and Services,324117,Provisions E324,06-Sep-2022,000008470610566,TESCO STORES 2278,5411,Catering costs - provisions,144.88,0.00,144.88
Regeneration Economy and Growth,Culture Sport and Tourism,054399,Local Delivery-Libraries,Supplies and Services,304403,Equipment and Materials,06-Sep-2022,000008470610588,AMZNBusiness 4561G9RQ5,5999,Other consumables,8.99,0.00,8.99
Resources BK0010,HR & Employee Services,010984,Training and Development,Employees,040149,Recruitment Instruction and Training,06-Sep-2022,000008470610600,PAYPAL NPORS LTD,8699,Training-all costs,24.00,0.00,24.00
Neighbourhoods and Climate Change,Environmental Services,031238,North Pennines - Tees Swale,Supplies and Services,304403,Equipment and Materials,06-Sep-2022,000008470610606,W E & J ROWLE,5947,Other consumables,1.25,0.00,1.25
Neighbourhoods and Climate Change,Environmental Services,031238,North Pennines - Tees Swale,Supplies and Services,352001,Conference Expenses,06-Sep-2022,000008470610610,EB MUKER SHOW,7399,Conferencesseminars fees etc,32.56,0.00,32.56
Children and Young Peoples Services,Head of Childrens Social Care,085352,New Childrens Home (previously Tow Law),Supplies and Services,324117,Provisions E324,06-Sep-2022,000008470610666,ASDA SUPERSTORE 4987,5411,Catering costs - provisions,69.75,0.00,69.75
Dedicated Schools Grant BG0015,DSG Schools Block,418502,Belmont Community School 004185 - Science,Supplies and Services,304403,Equipment and Materials,06-Sep-2022,000008470610712,Amazon.co.uk WV10316L5,5969,Other consumables,72.63,0.00,72.63
Dedicated Schools Grant BG0015,DSG Schools Block,702812,Villa Real School 7028 - IT,Supplies and Services,304403,Equipment and Materials,06-Sep-2022,000008470610724,AMZNMKTPLACE AMAZON.CO,5999,Other consumables,12.99,2.17,10.82
Dedicated Schools Grant BG0015,DSG Schools Block,702812,Villa Real School 7028 - IT,Supplies and Services,304403,Equipment and Materials,06-Sep-2022,000008470610732,AMZNMKTPLACE AMAZON.CO,5999,Other consumables,13.99,0.00,13.99
Regeneration Economy and Growth,Planning & Housing,031500,Housing Solutions - Core,Third Party Payments,430100,Rendered by Private Contractors,06-Sep-2022,000008470610748,VOUCHER EXPRESS,7399,Payments to sub-contractors,40.00,0.00,40.00
Dedicated Schools Grant BG0015,DSG Schools Block,351905,Silver Tree Primary 3519-Nurture,Supplies and Services,304259,Equipment and Materials,06-Sep-2022,000008470610756,Amazon.co.uk 4408K8PM5,5969,Equipment-purchase and rental,32.53,5.42,27.11
Children and Young Peoples Services,Head of Childrens Social Care,085331,New Lea Childrens Home,Supplies and Services,324117,Provisions E324,06-Sep-2022,000008470610840,ASDA SUPERSTORE 4987,5411,Catering costs - provisions,17.15,0.00,17.15
Children and Young Peoples Services,Head of Childrens Social Care,085347,Solo Home The Manse,Supplies and Services,304403,Equipment and Materials,06-Sep-2022,000008470610850,MAX SPIELMANN LTD,5999,Other consumables,9.00,0.00,9.00
Children and Young Peoples Services,Head of Childrens Social Care,085347,Solo Home The Manse,Supplies and Services,304403,Equipment and Materials,06-Sep-2022,000008470610852,TIMPSON LTD,5999,Other consumables,12.00,0.00,12.00
Children and Young Peoples Services,Head of Education and Skills,071732,Dean Bank Childcare,Supplies and Services,324117,Provisions E324,06-Sep-2022,000008470610888,ASDA GROCERIES ONLINE,5411,Catering costs - provisions,68.63,0.00,68.63
Children and Young Peoples Services,Head of Education and Skills,071732,Dean Bank Childcare,Supplies and Services,324117,Provisions E324,06-Sep-2022,000008470610894,ASDA GROCERIES ONLINE,5411,Catering costs - provisions,40.08,0.00,40.08
Regeneration Economy and Growth,Culture Sport and Tourism,010601,Spennymoor Leisure Cr - General,Supplies and Services,304259,Equipment and Materials,06-Sep-2022,000008470610908,HOME BARGAINS SPENNYMO,5251,Equipment-purchase and rental,1.29,0.00,1.29
Children and Young Peoples Services,Head of Early Help Inclusion & Vulnerable Children.,085801,CDYJS - Support,Supplies and Services,328041,Clothing uniforms and laundry E328,06-Sep-2022,000008470610946,ROF59,7996,Clothing uniforms and laundry,11.50,0.00,11.50
Children and Young Peoples Services,Head of Early Help Inclusion & Vulnerable Children.,085801,CDYJS - Support,Supplies and Services,328041,Clothing uniforms and laundry E328,06-Sep-2022,000008470610952,ROF59,7996,Clothing uniforms and laundry,15.00,0.00,15.00
Children and Young Peoples Services,Head of Childrens Social Care,085363,Childrens Permanence Team,Supplies and Services,338045,Services,06-Sep-2022,000008470611006,WWW.NORTHYORKS.GOV.UK,9399,Legal expenses 338045,11.00,0.00,11.00
Children and Young Peoples Services,Head of Childrens Social Care,085347,Solo Home The Manse,Supplies and Services,324117,Provisions E324,06-Sep-2022,000008470611134,TESCO STORES 2371,5411,Catering costs - provisions,135.25,0.00,135.25
Neighbourhoods and Climate Change,Community Protection,010809,Community Protection Management,Supplies and Services,304403,Equipment and Materials,06-Sep-2022,000008470611154,AMZNMKTPLACE AMAZON.CO,5999,Other consumables,-69.98,-11.66,-58.32
Neighbourhoods and Climate Change,Environmental Services,010301,C&G - North Grounds Maintenance,Supplies and Services,304999,Equipment and Materials,06-Sep-2022,000008470611172,BESCOL LIMITED,5251,Misc equipment tools and materials,96.00,0.00,96.00
Neighbourhoods and Climate Change,Environmental Services,010301,C&G - North Grounds Maintenance,Supplies and Services,304999,Equipment and Materials,06-Sep-2022,000008470611176,BESCOL LIMITED,5251,Misc equipment tools and materials,8.40,0.00,8.40
Children and Young Peoples Services,Head of Education and Skills,071802,Louisa Cent Nursery,Supplies and Services,324117,Provisions E324,06-Sep-2022,000008470611194,ASDA SUPERSTORE,5411,Catering costs - provisions,13.67,0.00,13.67
Regeneration Economy and Growth,Culture Sport and Tourism,054812,Gala Theatre - Catering etc,Supplies and Services,324117,Provisions E324,06-Sep-2022,000008470611216,TESCO STORES,5411,Catering costs - provisions,2.00,0.00,2.00
Children and Young Peoples Services,Head of Childrens Social Care,085358,Orchard House Sacriston Solo Home,Supplies and Services,304403,Equipment and Materials,06-Sep-2022,000008470611284,FIRSTAID4LESS.CO.UK,5999,Other consumables,46.26,0.00,46.26
Children and Young Peoples Services,Head of Childrens Social Care,085358,Orchard House Sacriston Solo Home,Supplies and Services,304403,Equipment and Materials,06-Sep-2022,000008470611290,AMZNMktplace,5999,Other consumables,12.98,2.17,10.81
Children and Young Peoples Services,Head of Childrens Social Care,085334,West Rainton Satelite Home,Supplies and Services,304221,Equipment and Materials,06-Sep-2022,000008470611332,WWW.PLASTICSHEETS.COM,5085,Direct materials,122.32,0.00,122.32
Resources BK0010,Transactional & Customer Services,060050,Service Management,Supplies and Services,304403,Equipment and Materials,06-Sep-2022,000008470611384,AMZNMktplace,5999,Other consumables,26.96,0.00,26.96
Regeneration Economy and Growth,Planning & Housing,031634,LOCAL LETTINGS AGENCY,Premises,120037,Energy Costs,06-Sep-2022,000008470611424,SSE,4900,Other fuels,50.25,0.00,50.25
Neighbourhoods and Climate Change,Environmental Services,010367,C&G - South Grounds Maintenance,Supplies and Services,304999,Equipment and Materials,06-Sep-2022,000008470611470,OVERTON UK LTD,5251,Misc equipment tools and materials,302.94,0.00,302.94
Children and Young Peoples Services,Head of Education and Skills,070155,Inspection-HQ,Employees,040149,Recruitment Instruction and Training,06-Sep-2022,000008470611566,WWW.MARKALLENGROUP.COM,8299,Training-all costs,322.80,0.00,322.80
Adult and Health Services,Head of Adults,055309,Peterlee Pathways,Supplies and Services,324117,Provisions E324,06-Sep-2022,000008470611576,ASDA STORES LTD,5411,Catering costs - provisions,9.35,0.00,9.35
Regeneration Economy and Growth,Culture Sport and Tourism,011265,Empire Theatre (Operations),Supplies and Services,324117,Provisions E324,06-Sep-2022,000008470759380,JR HOLLAND FOODSERVICE,5499,Catering costs - provisions,31.57,0.00,31.57
Regeneration Economy and Growth,Corporate Property and Land,021235,Catering - Wharton Park,Supplies and Services,324117,Provisions E324,06-Sep-2022,000008470759416,JR HOLLAND FOODSERVICE,5499,Catering costs - provisions,50.37,0.00,50.37
Regeneration Economy and Growth,Culture Sport and Tourism,011263,Louisa Centre 011263,Supplies and Services,324117,Provisions E324,06-Sep-2022,000008470759420,JR HOLLAND FOODSERVICE,5499,Catering costs - provisions,44.47,0.00,44.47
Regeneration Economy and Growth,Culture Sport and Tourism,011056,AAP Funding - Sport & Leisure,Supplies and Services,332047,Printing Stationery and Gen Off Exps,06-Sep-2022,000008479473378,AMZNMKTPLACE AMAZON.CO,5999,Stationery,83.95,0.00,83.95
Children and Young Peoples Services,Head of Childrens Social Care,085342,16 Hickstead Rise (previously 9 Cedar Ave),Supplies and Services,312009,Newspapers books and periodicals E312,06-Sep-2022,000008479473390,WH Smith Darlington,5994,Newspapers books and periodicals,25.77,0.00,25.77
Children and Young Peoples Services,Head of Childrens Social Care,085342,16 Hickstead Rise (previously 9 Cedar Ave),Supplies and Services,328041,Clothing uniforms and laundry E328,06-Sep-2022,000008479473392,PRIMARK,5651,Clothing uniforms and laundry,60.00,0.00,60.00
Neighbourhoods and Climate Change,Environmental Services,011060,C&G - Hardwick Park Catering,Supplies and Services,304083,Equipment and Materials,06-Sep-2022,000008479473534,WWW.NISBETS.COM,5964,Catering equipment,80.78,0.00,80.78
Children and Young Peoples Services,Head of Childrens Social Care,085333,Coxhoe Satelite Home,Supplies and Services,328041,Clothing uniforms and laundry E328,06-Sep-2022,000008479473538,THE WORKS,5310,Clothing uniforms and laundry,17.00,0.00,17.00
Children and Young Peoples Services,Head of Childrens Social Care,085333,Coxhoe Satelite Home,Supplies and Services,304403,Equipment and Materials,06-Sep-2022,000008479473540,AMZNMKTPLACE AMAZON.CO,5999,Other consumables,20.94,0.00,20.94
Children and Young Peoples Services,Head of Early Help Inclusion & Vulnerable Children.,085957,Secure Management,Supplies and Services,304259,Equipment and Materials,06-Sep-2022,000008479473548,JD SPORTS INTERNET,5941,Equipment-purchase and rental,138.00,0.00,138.00
Children and Young Peoples Services,Head of Early Help Inclusion & Vulnerable Children.,085957,Secure Management,Supplies and Services,304259,Equipment and Materials,06-Sep-2022,000008479473550,JD SPORTS INTERNET,5941,Equipment-purchase and rental,70.00,0.00,70.00
Children and Young Peoples Services,Head of Early Help Inclusion & Vulnerable Children.,085957,Secure Management,Supplies and Services,304403,Equipment and Materials,06-Sep-2022,000008479473554,AMZNMKTPLACE AMAZON.CO,5999,Other consumables,7.98,1.33,6.65
Regeneration Economy and Growth,Culture Sport and Tourism,054399,Local Delivery-Libraries,Supplies and Services,304403,Equipment and Materials,06-Sep-2022,000008479473578,AMZNMKTPLACE AMAZON.CO,5999,Other consumables,34.99,0.00,34.99
Regeneration Economy and Growth,Culture Sport and Tourism,054399,Local Delivery-Libraries,Supplies and Services,304403,Equipment and Materials,06-Sep-2022,000008479473580,AMZNMKTPLACE AMAZON.CO,5999,Other consumables,64.99,0.00,64.99
Regeneration Economy and Growth,Culture Sport and Tourism,054399,Local Delivery-Libraries,Supplies and Services,304403,Equipment and Materials,06-Sep-2022,000008479473582,AMZNMKTPLACE AMAZON.CO,5999,Other consumables,30.00,0.00,30.00
Adult and Health Services,Head of Adults,055643,Hawthorn House LD Respite Unit,Supplies and Services,324117,Provisions E324,06-Sep-2022,000008479473672,CO-OP GROUP 010465,5411,Catering costs - provisions,5.20,0.00,5.20
Children and Young Peoples Services,Head of Early Help Inclusion & Vulnerable Children.,085801,CDYJS - Support,Supplies and Services,304259,Equipment and Materials,06-Sep-2022,000008479473712,JD SPORTS INTERNET,5941,Equipment-purchase and rental,20.00,0.00,20.00
Regeneration Economy and Growth,Culture Sport and Tourism,054233,Bishop Auckland Town Hall Library,Supplies and Services,324117,Provisions E324,06-Sep-2022,000008479473834,WM MORRISONS STORE,5411,Catering costs - provisions,98.95,0.00,98.95
Children and Young Peoples Services,Head of Childrens Social Care,085358,Orchard House Sacriston Solo Home,Supplies and Services,304259,Equipment and Materials,06-Sep-2022,000008479473838,J D SPORTS,5941,Equipment-purchase and rental,105.10,0.00,105.10
Regeneration Economy and Growth,Planning & Housing,031634,LOCAL LETTINGS AGENCY,Premises,120037,Energy Costs,06-Sep-2022,000008479473928,CAPITAL RESOLVE LIMITE,6012,Other fuels,103.90,0.00,103.90
Children and Young Peoples Services,Head of Childrens Social Care,085551,Short Break Services-Park Hse Sher,Supplies and Services,324117,Provisions E324,06-Sep-2022,000008479473934,ALDI 774-018,5411,Catering costs - provisions,1.99,0.00,1.99
Adult and Health Services,Head of Adults,055310,Positive Journeys (Tudhoe),Supplies and Services,324117,Provisions E324,06-Sep-2022,000008479473972,WM MORRISONS STORE,5411,Catering costs - provisions,16.89,0.00,16.89
Regeneration Economy and Growth,Culture Sport and Tourism,054235,Bishop Auckland Town Hall Cafe,Supplies and Services,324117,Provisions E324,06-Sep-2022,000008479531052,BATLEYS PERTH,5300,Catering costs - provisions,517.56,86.26,431.30
Regeneration Economy and Growth,Culture Sport and Tourism,054235,Bishop Auckland Town Hall Cafe,Supplies and Services,324117,Provisions E324,06-Sep-2022,000008479531052 - 1,BATLEYS PERTH,5300,Catering costs - provisions,106.73,,106.73
Neighbourhoods and Climate Change,Environmental Services,011060,C&G - Hardwick Park Catering,Supplies and Services,324117,Provisions E324,06-Sep-2022,000008479531054,BATLEYS PERTH,5300,Catering costs - provisions,241.08,40.18,200.90
Neighbourhoods and Climate Change,Environmental Services,011060,C&G - Hardwick Park Catering,Supplies and Services,324117,Provisions E324,06-Sep-2022,000008479531054 - 1,BATLEYS PERTH,5300,Catering costs - provisions,125.96,,125.96
Neighbourhoods and Climate Change,Environmental Services,011060,C&G - Hardwick Park Catering,Supplies and Services,324117,Provisions E324,06-Sep-2022,000008479531056,BATLEYS PERTH,5300,Catering costs - provisions,6.75,0.00,6.75
Neighbourhoods and Climate Change,Environmental Services,011060,C&G - Hardwick Park Catering,Supplies and Services,324117,Provisions E324,06-Sep-2022,000008479531058,BATLEYS PERTH,5300,Catering costs - provisions,-6.75,0.00,-6.75
Regeneration Economy and Growth,Corporate Property and Land,021242,Catering - County Hall,Supplies and Services,324117,Provisions E324,06-Sep-2022,000008479531060,BATLEYS PERTH,5300,Catering costs - provisions,117.85,0.00,117.85
Regeneration Economy and Growth,Corporate Property and Land,021324,Catering - Meadowfield,Supplies and Services,324117,Provisions E324,06-Sep-2022,000008479531062,BATLEYS PERTH,5300,Catering costs - provisions,111.60,18.60,93.00
Regeneration Economy and Growth,Corporate Property and Land,021324,Catering - Meadowfield,Supplies and Services,324117,Provisions E324,06-Sep-2022,000008479531062 - 1,BATLEYS PERTH,5300,Catering costs - provisions,49.58,,49.58
Regeneration Economy and Growth,Business Durham CL0850,030689,Inward Investment and Aftercare,Supplies and Services,342033,Computers and Communications,07-Sep-2022,000008470609926,"FORMSTACK, LLC",7372,Computer hardware,7.58,0.00,7.58
Regeneration Economy and Growth,Culture Sport and Tourism,030705,Visit County Durham 030705,Transport,235057,Public Transport,07-Sep-2022,000008470610142,OMNI SHOREHAM ONLINE S,7399,Staff travelling,4.91,0.00,4.91
Children and Young Peoples Services,Head of Childrens Social Care,085332,Middlestone Moor CU,Supplies and Services,312009,Newspapers books and periodicals E312,07-Sep-2022,000008470610310,RELAY 362209SV,5942,Newspapers books and periodicals,0.42,0.00,0.42
Children and Young Peoples Services,Head of Childrens Social Care,085332,Middlestone Moor CU,Supplies and Services,312009,Newspapers books and periodicals E312,07-Sep-2022,000008470610312,RELAY362221SC,5942,Newspapers books and periodicals,0.06,0.00,0.06
Regeneration Economy and Growth,Culture Sport and Tourism,011198,Culture & Sport Management 011198,Supplies and Services,304403,Equipment and Materials,07-Sep-2022,000008470610418,MENTIMETER PRO,5734,Other consumables,7.21,0.00,7.21
Children and Young Peoples Services,Head of Childrens Social Care,085358,Orchard House Sacriston Solo Home,Supplies and Services,372009,Subscriptions E372,07-Sep-2022,000008470610446,NETFLIX.COM,4899,Subscriptions 372009,15.99,0.00,15.99
Adult and Health Services,Head of Adults,055302,Durham Pathways,Supplies and Services,304403,Equipment and Materials,07-Sep-2022,000008470610456,AMZNMktplace,5999,Other consumables,35.62,0.00,35.62
Resources BK0010,Transactional & Customer Services,060050,Service Management,Supplies and Services,304403,Equipment and Materials,07-Sep-2022,000008470611390,AMZNMktplace,5999,Other consumables,52.92,0.00,52.92
Resources BK0010,Transactional & Customer Services,060050,Service Management,Supplies and Services,304403,Equipment and Materials,07-Sep-2022,000008470611392,AMZNMktplace,5999,Other consumables,10.00,0.00,10.00
Children and Young Peoples Services,Head of Childrens Social Care,085611,Families First Stanley,Supplies and Services,332001,Printing Stationery and Gen Off Exps,07-Sep-2022,000008479473352,AMZNMKTPLACE AMAZON.CO,5999,General office expenses,6.89,1.15,5.74
Children and Young Peoples Services,Head of Education and Skills,071801,Selby Cottage Childcare Centre,Supplies and Services,304403,Equipment and Materials,07-Sep-2022,000008479473354,AMZNMKTPLACE AMAZON.CO,5999,Other consumables,46.96,0.00,46.96
Children and Young Peoples Services,Head of Education and Skills,071801,Selby Cottage Childcare Centre,Supplies and Services,324117,Provisions E324,07-Sep-2022,000008479473356,WILKO RETAIL LIMITED,5399,Catering costs - provisions,48.60,0.00,48.60
Children and Young Peoples Services,Head of Childrens Social Care,085341,High Etherley Satelite Home,Supplies and Services,324117,Provisions E324,07-Sep-2022,000008479473364,TESCO STORES 6329,5411,Catering costs - provisions,24.00,0.00,24.00
Children and Young Peoples Services,Head of Childrens Social Care,085341,High Etherley Satelite Home,Supplies and Services,324117,Provisions E324,07-Sep-2022,000008479473366,TESCO STORES 6329,5411,Catering costs - provisions,3.15,0.00,3.15
Children and Young Peoples Services,Head of Education and Skills,075035,DurhamDirections Re-engagement,Supplies and Services,364301,Grants to Voluntary Organisations,07-Sep-2022,000008479473370,WWW.GONORTHEAST.CO.UK,4111,Hardship,21.50,0.00,21.50
Children and Young Peoples Services,Head of Education and Skills,075035,DurhamDirections Re-engagement,Supplies and Services,364301,Grants to Voluntary Organisations,07-Sep-2022,000008479473372,WWW.GONORTHEAST.CO.UK,4111,Hardship,21.50,0.00,21.50
Children and Young Peoples Services,Head of Education and Skills,075033,DurhamWorks 3,Supplies and Services,364301,Grants to Voluntary Organisations,07-Sep-2022,000008479473374,ESSEX COUNTY COUNCI EC,9399,Hardship,11.00,0.00,11.00
Children and Young Peoples Services,Head of Education and Skills,075035,DurhamDirections Re-engagement,Supplies and Services,364301,Grants to Voluntary Organisations,07-Sep-2022,000008479473376,GATESHEAD COUNCIL INT,9399,Hardship,-11.00,0.00,-11.00
Regeneration Economy and Growth,Culture Sport and Tourism,054330,Thornley Library,Supplies and Services,304252,Equipment and Materials,07-Sep-2022,000008479473380,ENGLISH HERITAGE,8398,Equipment-repairsserviceinsurance,16.99,0.00,16.99
Regeneration Economy and Growth,Culture Sport and Tourism,030712,VCD - Project Delivery,Supplies and Services,384199,Miscellaneous Expenses,07-Sep-2022,000008479473382,XL DISPLAYS LTD,5399,Other hired and contracted services,73.20,0.00,73.20
Regeneration Economy and Growth,Culture Sport and Tourism,030705,Visit County Durham 030705,Employees,040149,Recruitment Instruction and Training,07-Sep-2022,000008479473384,CIM,8299,Training-all costs,252.00,0.00,252.00
Children and Young Peoples Services,Head of Childrens Social Care,085342,16 Hickstead Rise (previously 9 Cedar Ave),Supplies and Services,324117,Provisions E324,07-Sep-2022,000008479473394,TESCO STORES 2916,5411,Catering costs - provisions,87.88,0.00,87.88
Children and Young Peoples Services,Head of Childrens Social Care,085332,Middlestone Moor CU,Supplies and Services,324117,Provisions E324,07-Sep-2022,000008479473396,HOME BARGAINS,5251,Catering costs - provisions,31.65,0.00,31.65
Children and Young Peoples Services,Head of Childrens Social Care,085332,Middlestone Moor CU,Supplies and Services,324117,Provisions E324,07-Sep-2022,000008479473398,LIDL GB BSHP AUCKLAND,5411,Catering costs - provisions,2.29,0.00,2.29
Children and Young Peoples Services,Head of Education and Skills,078100,Curric and Professional Development 078100,Supplies and Services,342033,Computers and Communications,07-Sep-2022,000008479473418,STK Shutterstock,7333,Computer hardware,22.80,0.00,22.80
Children and Young Peoples Services,Head of Childrens Social Care,085341,High Etherley Satelite Home,Supplies and Services,304403,Equipment and Materials,07-Sep-2022,000008479473422,AMZNMktplace,5999,Other consumables,8.95,1.49,7.46
Children and Young Peoples Services,Head of Childrens Social Care,085341,High Etherley Satelite Home,Supplies and Services,304403,Equipment and Materials,07-Sep-2022,000008479473424,AMZNMktplace,5999,Other consumables,19.97,3.33,16.64
Children and Young Peoples Services,Head of Education and Skills,054640,Durham Learning Resources 054640,Supplies and Services,304403,Equipment and Materials,07-Sep-2022,000008479473436,AMZNMktplace,5999,Other consumables,7.99,1.33,6.66
Neighbourhoods and Climate Change,Environmental Services,010367,C&G - South Grounds Maintenance,Supplies and Services,304221,Equipment and Materials,07-Sep-2022,000008479473452,EAST DURHAM GARDEN CEN,5261,Direct materials,411.81,68.64,343.17
Regeneration Economy and Growth,Culture Sport and Tourism,054967,Theatre - Technical Staffing,Supplies and Services,304403,Equipment and Materials,07-Sep-2022,000008479473526,DRAFTY TRIAL OVER,5734,Other consumables,261.05,0.00,261.05
Children and Young Peoples Services,Head of Childrens Social Care,085333,Coxhoe Satelite Home,Supplies and Services,348037,Subsistence E348,07-Sep-2022,000008479473542,FOX CUB,5813,Subsistence,26.90,0.00,26.90
Regeneration Economy and Growth,Economic Development Level C,030771,Durham Advance Flexible Fund,Supplies and Services,304403,Equipment and Materials,07-Sep-2022,000008479473546,AMZNMktplace,5999,Other consumables,19.98,3.33,16.65
Children and Young Peoples Services,Head of Early Help Inclusion & Vulnerable Children.,085957,Secure Management,Supplies and Services,384999,Miscellaneous Expenses,07-Sep-2022,000008479473552,Hobbycraft Trading Lim,5970,Other expenses,25.00,0.00,25.00
Children and Young Peoples Services,Head of Education and Skills,070169,Durham SSP,Supplies and Services,304259,Equipment and Materials,07-Sep-2022,000008479473560,NEWITTS.COM,5941,Equipment-purchase and rental,272.69,45.45,227.24
Children and Young Peoples Services,Head of Education and Skills,070169,Durham SSP,Supplies and Services,328041,Clothing uniforms and laundry E328,07-Sep-2022,000008479473562,WWW.KITLOCKER.COM,5655,Clothing uniforms and laundry,101.02,16.84,84.18
Neighbourhoods and Climate Change,Environmental Services,010367,C&G - South Grounds Maintenance,Supplies and Services,304221,Equipment and Materials,07-Sep-2022,000008479473564,EAST DURHAM GARDEN CEN,5261,Direct materials,427.13,0.00,427.13
Children and Young Peoples Services,Head of Childrens Social Care,085331,New Lea Childrens Home,Supplies and Services,304999,Equipment and Materials,07-Sep-2022,000008479473682,Amazon Prime R53V08LM5,5968,Misc equipment tools and materials,0.99,0.00,0.99
Children and Young Peoples Services,Head of Childrens Social Care,085331,New Lea Childrens Home,Supplies and Services,340001,Postages E340,07-Sep-2022,000008479473684,POST OFFICE COUNTER,9402,Postages,6.85,0.00,6.85
Children and Young Peoples Services,Head of Childrens Social Care,085331,New Lea Childrens Home,Supplies and Services,304403,Equipment and Materials,07-Sep-2022,000008479473686,AMZNMktplace,5999,Other consumables,48.45,0.00,48.45
Children and Young Peoples Services,Head of Education and Skills,071732,Dean Bank Childcare,Supplies and Services,324117,Provisions E324,07-Sep-2022,000008479473698,B&M 147 - FERRYHILL,5399,Catering costs - provisions,20.50,0.00,20.50
Regeneration Economy and Growth,Corporate Property and Land,011003,FM-Civic Bldgs-County Hall Durham,Supplies and Services,328041,Clothing uniforms and laundry E328,07-Sep-2022,000008479473716,FULL STEAM AHEAD,7210,Clothing uniforms and laundry,40.00,0.00,40.00
Children and Young Peoples Services,Head of Childrens Social Care,085334,West Rainton Satelite Home,Supplies and Services,328041,Clothing uniforms and laundry E328,07-Sep-2022,000008479473718,NEW LOOK INTERNET,5621,Clothing uniforms and laundry,33.97,0.00,33.97
Children and Young Peoples Services,Head of Early Help Inclusion & Vulnerable Children.,088103,Stanley & Moorside Family Centre,Supplies and Services,384302,Miscellaneous Expenses,07-Sep-2022,000008479473728,WWW.BEAMISH.ORG.UK,7991,Activity expenses,44.50,0.00,44.50
Children and Young Peoples Services,Head of Childrens Social Care,085363,Childrens Permanence Team,Supplies and Services,338045,Services,07-Sep-2022,000008479473730,DARLINGTON BC INTERNET,9399,Legal expenses 338045,11.00,0.00,11.00
Children and Young Peoples Services,Head of Childrens Social Care,085363,Childrens Permanence Team,Supplies and Services,338045,Services,07-Sep-2022,000008479473732,DARLINGTON BC INTERNET,9399,Legal expenses 338045,11.00,0.00,11.00
Children and Young Peoples Services,Head of Early Help Inclusion & Vulnerable Children.,088103,Stanley & Moorside Family Centre,Supplies and Services,364301,Grants to Voluntary Organisations,07-Sep-2022,000008479473734,ASDA GEORGE COM LEEDS,5411,Hardship,-14.00,0.00,-14.00
Children and Young Peoples Services,Head of Childrens Social Care,085379,Care Leavers Team 2,Transport,235073,Public Transport,07-Sep-2022,000008479473766,thetrainline.com,4112,Travel-clients/students/children,78.45,0.00,78.45
Children and Young Peoples Services,Head of Childrens Social Care,085379,Care Leavers Team 2,Transport,235057,Public Transport,07-Sep-2022,000008479473768,thetrainline.com,4112,Staff travelling,-205.30,0.00,-205.30
Regeneration Economy and Growth,Planning & Housing,031704,Care Connect - CCTV Countywide,Supplies and Services,384956,Miscellaneous Expenses,07-Sep-2022,000008479473770,SECURITY INDUSTRY AUTH,9399,Licences,190.00,0.00,190.00
Neighbourhoods and Climate Change,Environmental Services,010301,C&G - North Grounds Maintenance,Supplies and Services,304999,Equipment and Materials,07-Sep-2022,000008479473780,BLACK & DECKER,5251,Misc equipment tools and materials,299.00,0.00,299.00
Neighbourhoods and Climate Change,Environmental Services,031118,E&D - Seascape,Third Party Payments,430100,Rendered by Private Contractors,07-Sep-2022,000008479473808,EB BOOK WILDING EVENT,7399,Payments to sub-contractors,39.50,0.00,39.50
Regeneration Economy and Growth,Culture Sport and Tourism,054812,Gala Theatre - Catering etc,Supplies and Services,324117,Provisions E324,07-Sep-2022,000008479473822,TESCO STORES,5411,Catering costs - provisions,3.30,0.00,3.30
Regeneration Economy and Growth,Culture Sport and Tourism,054233,Bishop Auckland Town Hall Library,Supplies and Services,324117,Provisions E324,07-Sep-2022,000008479473836,HERON FOODS,5411,Catering costs - provisions,5.00,0.00,5.00
Children and Young Peoples Services,Head of Childrens Social Care,085358,Orchard House Sacriston Solo Home,Supplies and Services,304403,Equipment and Materials,07-Sep-2022,000008479473840,AMZNMktplace,5999,Other consumables,15.98,2.66,13.32
Children and Young Peoples Services,Head of Childrens Social Care,085358,Orchard House Sacriston Solo Home,Supplies and Services,304403,Equipment and Materials,07-Sep-2022,000008479473842,AMZNMktplace,5999,Other consumables,10.92,1.82,9.10
Children and Young Peoples Services,Head of Childrens Social Care,085358,Orchard House Sacriston Solo Home,Supplies and Services,304403,Equipment and Materials,07-Sep-2022,000008479473842 - 1,AMZNMktplace,5999,Other consumables,0.03,,0.03
Children and Young Peoples Services,Head of Childrens Social Care,085358,Orchard House Sacriston Solo Home,Supplies and Services,324117,Provisions E324,07-Sep-2022,000008479473844,ASDA GROCERIES ONLINE,5411,Catering costs - provisions,145.53,0.00,145.53
Children and Young Peoples Services,Head of Childrens Social Care,085358,Orchard House Sacriston Solo Home,Supplies and Services,324117,Provisions E324,07-Sep-2022,000008479473846,ASDA GROCERIES ONLINE,5411,Catering costs - provisions,-1.00,0.00,-1.00
Regeneration Economy and Growth,Economic Development Level C,030776,LINKCD Flexible Fund,Supplies and Services,324117,Provisions E324,07-Sep-2022,000008479473860,ASDA STORES LTD,5411,Catering costs - provisions,2.50,0.00,2.50
Regeneration Economy and Growth,Economic Development Level C,030776,LINKCD Flexible Fund,Supplies and Services,348037,Subsistence E348,07-Sep-2022,000008479473862,ST MARGARETS CENTRE,5812,Subsistence,3.00,0.00,3.00
Resources BK0010,Transactional & Customer Services,060050,Service Management,Supplies and Services,304403,Equipment and Materials,07-Sep-2022,000008479473894,AMZNMktplace,5999,Other consumables,35.37,0.00,35.37
Resources BK0010,Procurement Sales & Business Services,065501,Business Support - Executive Support,Supplies and Services,304403,Equipment and Materials,07-Sep-2022,000008479473896,AMZNMktplace,5999,Other consumables,35.97,6.00,29.97
Resources BK0010,Digital Services,065432,Web Development Group,Supplies and Services,342033,Computers and Communications,07-Sep-2022,000008479473898,WPMU DEV INCSUBFEE.COM,7372,Computer hardware,16.53,0.00,16.53
Regeneration Economy and Growth,Communications Management,060270,Communications and Marketing,Supplies and Services,336005,Advertising E336,07-Sep-2022,000008479473900,LINKEDIN-822 2490234,7311,Advertising other than for staff,72.73,0.00,72.73
Neighbourhoods and Climate Change,Partnerships & Community Engagement Div.,052707,Partnership Team,Supplies and Services,332047,Printing Stationery and Gen Off Exps,07-Sep-2022,000008479473902,AMZNMKTPLACE AMAZON.CO,5999,Stationery,27.99,4.67,23.32
Adult and Health Services,Head of Adults,055310,Positive Journeys (Tudhoe),Supplies and Services,324117,Provisions E324,07-Sep-2022,000008479473912,ASDA SUPERSTORE 4987,5411,Catering costs - provisions,1.45,0.00,1.45
Neighbourhoods and Climate Change,Environmental Services,031071,E&D - Sustainability and Climate Change,Supplies and Services,348037,Subsistence E348,07-Sep-2022,000008479473926,CoHo,5813,Subsistence,47.75,0.00,47.75
Regeneration Economy and Growth,Corporate Property and Land,030691,Catering - Durham Dales Centre,Supplies and Services,324117,Provisions E324,07-Sep-2022,000008479473974,TESCO STORES 6329,5411,Catering costs - provisions,14.90,0.00,14.90
Regeneration Economy and Growth,Business Durham CL0850,030689,Inward Investment and Aftercare,Supplies and Services,342222,Computers and Communications,07-Sep-2022,000008480310138,FASTHOSTS,4816,Comp hardware purch-network servers,6.34,0.00,6.34
Children and Young Peoples Services,Head of Education and Skills,071801,Selby Cottage Childcare Centre,Supplies and Services,324117,Provisions E324,07-Sep-2022,000008480310172,WM MORRISONS STORE,5411,Catering costs - provisions,10.88,0.00,10.88
Children and Young Peoples Services,Head of Childrens Social Care,085341,High Etherley Satelite Home,Supplies and Services,304259,Equipment and Materials,07-Sep-2022,000008480310228,SPORTSDIRECT 368,5941,Equipment-purchase and rental,54.50,0.00,54.50
Children and Young Peoples Services,Head of Childrens Social Care,085347,Solo Home The Manse,Supplies and Services,324117,Provisions E324,07-Sep-2022,000008480310264,ALDI,5411,Catering costs - provisions,58.50,0.00,58.50
Regeneration Economy and Growth,Culture Sport and Tourism,054330,Thornley Library,Supplies and Services,304252,Equipment and Materials,07-Sep-2022,000008480310362,AMZNMKTPLACE AMAZON.CO,5999,Equipment-repairsserviceinsurance,46.48,7.75,38.73
Regeneration Economy and Growth,Culture Sport and Tourism,011056,AAP Funding - Sport & Leisure,Supplies and Services,332047,Printing Stationery and Gen Off Exps,07-Sep-2022,000008480310368,AMZNMKTPLACE AMAZON.CO,5999,Stationery,10.99,0.00,10.99
Regeneration Economy and Growth,Culture Sport and Tourism,011056,AAP Funding - Sport & Leisure,Supplies and Services,332047,Printing Stationery and Gen Off Exps,07-Sep-2022,000008480310374,AMZNMKTPLACE AMAZON.CO,5999,Stationery,25.99,4.34,21.65
Regeneration Economy and Growth,Culture Sport and Tourism,054330,Thornley Library,Supplies and Services,304252,Equipment and Materials,07-Sep-2022,000008480310378,AMZNMKTPLACE AMAZON.CO,5999,Equipment-repairsserviceinsurance,9.55,1.59,7.96
Regeneration Economy and Growth,Culture Sport and Tourism,011056,AAP Funding - Sport & Leisure,Supplies and Services,332047,Printing Stationery and Gen Off Exps,07-Sep-2022,000008480310382,AMZNMKTPLACE AMAZON.CO,5999,Stationery,15.49,2.58,12.91
Regeneration Economy and Growth,Culture Sport and Tourism,011056,AAP Funding - Sport & Leisure,Supplies and Services,332047,Printing Stationery and Gen Off Exps,07-Sep-2022,000008480310398,AMZNMKTPLACE AMAZON.CO,5999,Stationery,31.69,5.28,26.41
Regeneration Economy and Growth,Culture Sport and Tourism,030705,Visit County Durham 030705,Supplies and Services,304259,Equipment and Materials,07-Sep-2022,000008480310408,FASTHOSTS,4816,Equipment-purchase and rental,6.34,0.00,6.34
Regeneration Economy and Growth,Culture Sport and Tourism,030705,Visit County Durham 030705,Supplies and Services,332047,Printing Stationery and Gen Off Exps,07-Sep-2022,000008480310416,BADGEMASTER LIMITED,7333,Stationery,25.14,4.19,20.95
Regeneration Economy and Growth,Culture Sport and Tourism,030705,Visit County Durham 030705,Employees,040149,Recruitment Instruction and Training,07-Sep-2022,000008480310420,CHARTERED MANAGEME,8699,Training-all costs,110.00,0.00,110.00
Children and Young Peoples Services,Head of Childrens Social Care,085332,Middlestone Moor CU,Supplies and Services,324117,Provisions E324,07-Sep-2022,000008480310470,POUNDLAND LTD 1554,5310,Catering costs - provisions,3.75,0.00,3.75
Regeneration Economy and Growth,Planning & Housing,031641,County Durham Homes,Premises,120037,Energy Costs,07-Sep-2022,000008480310556,BRITISH GAS OTP,4900,Other fuels,24.59,0.00,24.59
Regeneration Economy and Growth,Corporate Property and Land,021242,Catering - County Hall,Supplies and Services,342033,Computers and Communications,07-Sep-2022,000008480310716,WWW.NISBETS.COM,5964,Computer hardware,74.43,0.00,74.43
Regeneration Economy and Growth,Corporate Property and Land,021242,Catering - County Hall,Supplies and Services,304403,Equipment and Materials,07-Sep-2022,000008480310720,AMZNMKTPLACE AMAZON.CO,5999,Other consumables,32.98,0.00,32.98
Children and Young Peoples Services,Head of Early Help Inclusion & Vulnerable Children.,085957,Secure Management,Supplies and Services,304259,Equipment and Materials,07-Sep-2022,000008480311258,JD SPORTS INTERNET,5941,Equipment-purchase and rental,48.99,0.00,48.99
Children and Young Peoples Services,Head of Childrens Social Care,085334,West Rainton Satelite Home,Supplies and Services,304999,Equipment and Materials,07-Sep-2022,000008480311312,SNAPFISH UK,7395,Misc equipment tools and materials,9.02,0.00,9.02
Dedicated Schools Grant BG0015,DSG Schools Block,418503,Belmont Community School 004185 - English,Supplies and Services,304403,Equipment and Materials,07-Sep-2022,000008480311464,TEACHIT,8299,Other consumables,75.00,0.00,75.00
Adult and Health Services,Head of Adults,055643,Hawthorn House LD Respite Unit,Supplies and Services,304221,Equipment and Materials,07-Sep-2022,000008480311552,B & Q 1343,5200,Direct materials,25.02,0.00,25.02
Children and Young Peoples Services,Head of Early Help Inclusion & Vulnerable Children.,088115,Young Parents Programme 088115,Supplies and Services,384302,Miscellaneous Expenses,07-Sep-2022,000008480311650,ALDI STORES,5411,Activity expenses,2.41,0.00,2.41
Children and Young Peoples Services,Head of Childrens Social Care,085363,Childrens Permanence Team,Supplies and Services,338045,Services,07-Sep-2022,000008480311654,Durham County CNCL,9399,Legal expenses 338045,22.00,0.00,22.00
Children and Young Peoples Services,Head of Childrens Social Care,085363,Childrens Permanence Team,Supplies and Services,338045,Services,07-Sep-2022,000008480311656,Durham County CNCL,9399,Legal expenses 338045,-11.00,0.00,-11.00
Children and Young Peoples Services,Head of Childrens Social Care,085363,Childrens Permanence Team,Supplies and Services,338045,Services,07-Sep-2022,000008480311660,Durham County CNCL,9399,Legal expenses 338045,-11.00,0.00,-11.00
Children and Young Peoples Services,Head of Childrens Social Care,085347,Solo Home The Manse,Supplies and Services,348037,Subsistence E348,07-Sep-2022,000008480311796,MCDONALDS,5814,Subsistence,6.58,0.00,6.58
Regeneration Economy and Growth,Economic Development Level C,030772,CLLD South,Transport,235057,Public Transport,07-Sep-2022,000008480311900,WALKERGATE CAR PAR,7523,Staff travelling,3.10,0.00,3.10
Children and Young Peoples Services,Head of Childrens Social Care,085332,Middlestone Moor CU,Supplies and Services,304259,Equipment and Materials,07-Sep-2022,000008480311910,WWW.DURHAM.GOV.UK,9399,Equipment-purchase and rental,16.00,0.00,16.00
Neighbourhoods and Climate Change,Environmental Services,031071,E&D - Sustainability and Climate Change,Supplies and Services,324117,Provisions E324,07-Sep-2022,000008480312022,WM MORRISONS STORE,5411,Catering costs - provisions,13.93,0.00,13.93
Neighbourhoods and Climate Change,Environmental Services,031071,E&D - Sustainability and Climate Change,Transport,235057,Public Transport,07-Sep-2022,000008480312026,WALKERGATE CAR PAR,7523,Staff travelling,9.50,0.00,9.50
Children and Young Peoples Services,Head of Childrens Social Care,085551,Short Break Services-Park Hse Sher,Supplies and Services,324117,Provisions E324,07-Sep-2022,000008480312098,ICELAND FOODS,5411,Catering costs - provisions,130.09,0.00,130.09
Neighbourhoods and Climate Change,Environmental Services,010301,C&G - North Grounds Maintenance,Supplies and Services,304221,Equipment and Materials,07-Sep-2022,000008480312156,SCREWFIX DIR LTD,5211,Direct materials,12.00,2.00,10.00
Neighbourhoods and Climate Change,Environmental Services,010301,C&G - North Grounds Maintenance,Supplies and Services,304221,Equipment and Materials,07-Sep-2022,000008480312156 - 1,SCREWFIX DIR LTD,5211,Direct materials,29.99,,29.99
Regeneration Economy and Growth,Corporate Property and Land,030691,Catering - Durham Dales Centre,Supplies and Services,342033,Computers and Communications,07-Sep-2022,000008480312168,WWW.NISBETS.COM,5964,Computer hardware,113.44,0.00,113.44
Regeneration Economy and Growth,Culture Sport and Tourism,054812,Gala Theatre - Catering etc,Supplies and Services,384999,Miscellaneous Expenses,07-Sep-2022,000008480438600,G M PACKAGING UK LIMIT,5046,Other expenses,203.05,0.00,203.05
Regeneration Economy and Growth,Culture Sport and Tourism,054967,Theatre - Technical Staffing,Supplies and Services,304403,Equipment and Materials,08-Sep-2022,000008479473528,DRAFTY TRIAL OVER,5734,Other consumables,7.18,0.00,7.18
Children and Young Peoples Services,Head of Early Help Inclusion & Vulnerable Children.,085957,Secure Management,Supplies and Services,328041,Clothing uniforms and laundry E328,08-Sep-2022,000008479473556,SHEIN,5691,Clothing uniforms and laundry,-7.75,0.00,-7.75
Resources BK0010,Digital Services,065432,Web Development Group,Supplies and Services,342033,Computers and Communications,08-Sep-2022,000008479473904,WPMU DEV INCSUBFEE.COM,7372,Computer hardware,0.45,0.00,0.45
Children and Young Peoples Services,Head of Childrens Social Care,085633,Families First Chester-Le-Street,Supplies and Services,364340,Grants to Voluntary Organisations,08-Sep-2022,000008480310154,WWW.GONORTHEAST.CO.UK,4111,Contact expenses,26.50,0.00,26.50
Children and Young Peoples Services,Head of Childrens Social Care,085611,Families First Stanley,Supplies and Services,364340,Grants to Voluntary Organisations,08-Sep-2022,000008480310160,WWW.GONORTHEAST.CO.UK,4111,Contact expenses,34.00,0.00,34.00
Children and Young Peoples Services,Head of Education and Skills,071801,Selby Cottage Childcare Centre,Supplies and Services,304999,Equipment and Materials,08-Sep-2022,000008480310176,Amazon Prime JY2W38815,5968,Misc equipment tools and materials,7.99,0.00,7.99
Children and Young Peoples Services,Head of Childrens Social Care,085341,High Etherley Satelite Home,Supplies and Services,324117,Provisions E324,08-Sep-2022,000008480310240,TESCO STORES 6329,5411,Catering costs - provisions,16.33,0.00,16.33
Children and Young Peoples Services,Head of Education and Skills,075035,DurhamDirections Re-engagement,Supplies and Services,364301,Grants to Voluntary Organisations,08-Sep-2022,000008480310272,AMZNMKTPLACE AMAZON.CO,5999,Hardship,22.52,3.75,18.77
Children and Young Peoples Services,Head of Education and Skills,075034,Youth Futures Foundation,Supplies and Services,364301,Grants to Voluntary Organisations,08-Sep-2022,000008480310280,WWW.GONORTHEAST.CO.UK,4111,Hardship,16.00,0.00,16.00
Children and Young Peoples Services,Head of Education and Skills,075034,Youth Futures Foundation,Supplies and Services,364301,Grants to Voluntary Organisations,08-Sep-2022,000008480310284,WWW.GONORTHEAST.CO.UK,4111,Hardship,4.20,0.00,4.20
Children and Young Peoples Services,Head of Education and Skills,075035,DurhamDirections Re-engagement,Supplies and Services,364301,Grants to Voluntary Organisations,08-Sep-2022,000008480310288,MATALAN.CO.UK,5691,Hardship,19.95,0.00,19.95
Children and Young Peoples Services,Head of Education and Skills,075035,DurhamDirections Re-engagement,Supplies and Services,364301,Grants to Voluntary Organisations,08-Sep-2022,000008480310292,BOOHOO.COM,5691,Hardship,39.99,0.00,39.99
Children and Young Peoples Services,Head of Education and Skills,075035,DurhamDirections Re-engagement,Supplies and Services,364301,Grants to Voluntary Organisations,08-Sep-2022,000008480310296,ASDA GEORGE COM LEEDS,5411,Hardship,41.50,0.00,41.50
Neighbourhoods and Climate Change,Environmental Services,010383,C&G - South Street Cleansing,Supplies and Services,304999,Equipment and Materials,08-Sep-2022,000008480310340,Snowballs,5251,Misc equipment tools and materials,27.65,0.00,27.65
Regeneration Economy and Growth,Culture Sport and Tourism,054330,Thornley Library,Supplies and Services,304252,Equipment and Materials,08-Sep-2022,000008480310388,AMZNMKTPLACE AMAZON.CO,5999,Equipment-repairsserviceinsurance,17.98,3.00,14.98
Regeneration Economy and Growth,Culture Sport and Tourism,054330,Thornley Library,Supplies and Services,304252,Equipment and Materials,08-Sep-2022,000008480310394,AMZNMKTPLACE AMAZON.CO,5999,Equipment-repairsserviceinsurance,6.49,1.09,5.40
Regeneration Economy and Growth,Culture Sport and Tourism,054004,Newton Aycliffe New Library,Supplies and Services,332047,Printing Stationery and Gen Off Exps,08-Sep-2022,000008480310400,BAKER ROSS,5970,Stationery,214.80,35.80,179.00
Regeneration Economy and Growth,Culture Sport and Tourism,054004,Newton Aycliffe New Library,Supplies and Services,332047,Printing Stationery and Gen Off Exps,08-Sep-2022,000008480310400 - 1,BAKER ROSS,5970,Stationery,0.03,,0.03
Regeneration Economy and Growth,Culture Sport and Tourism,030712,VCD - Project Delivery,Supplies and Services,384199,Miscellaneous Expenses,08-Sep-2022,000008480310426,SMASHBALLOON.COM,5734,Other hired and contracted services,524.34,0.00,524.34
Regeneration Economy and Growth,Culture Sport and Tourism,030712,VCD - Project Delivery,Supplies and Services,384199,Miscellaneous Expenses,08-Sep-2022,000008480310432,PAYPAL WEBALON,5817,Other hired and contracted services,6.85,0.00,6.85
Regeneration Economy and Growth,Economic Development Level C,030772,CLLD South,Supplies and Services,304259,Equipment and Materials,08-Sep-2022,000008480310740,NORTHUMBERLAND CC,9399,Equipment-purchase and rental,35.00,0.00,35.00
Regeneration Economy and Growth,Economic Development Level C,030772,CLLD South,Supplies and Services,304259,Equipment and Materials,08-Sep-2022,000008480310748,NORTHUMBERLAND CC,9399,Equipment-purchase and rental,-35.00,0.00,-35.00
Children and Young Peoples Services,Head of Early Help Inclusion & Vulnerable Children.,074000,National Supporting Families Programme,Supplies and Services,308011,Furniture,08-Sep-2022,000008480310776,FRANKS THE FLOORING ST,5713,Furniture repair and replacement,213.00,0.00,213.00
Children and Young Peoples Services,Head of Childrens Social Care,085342,16 Hickstead Rise (previously 9 Cedar Ave),Supplies and Services,304403,Equipment and Materials,08-Sep-2022,000008480310820,AMZNMktplace,5999,Other consumables,4.98,0.00,4.98
Resources BK0010,Digital Services,065481,Technical Services 065481,Supplies and Services,372009,Subscriptions E372,08-Sep-2022,000008480310904,NOMINET UK,7392,Subscriptions 372009,23.40,3.90,19.50
Children and Young Peoples Services,Head of Education and Skills,071801,Selby Cottage Childcare Centre,Supplies and Services,324117,Provisions E324,08-Sep-2022,000008480310960,ASDA SUPERSTORE,5411,Catering costs - provisions,7.59,0.00,7.59
Regeneration Economy and Growth,Business Durham CL0850,030671,Business Space 030671,Supplies and Services,332047,Printing Stationery and Gen Off Exps,08-Sep-2022,000008480311142,NORTH EAST STATIONERY,5111,Stationery,15.26,0.00,15.26
Neighbourhoods and Climate Change,Environmental Services,010301,C&G - North Grounds Maintenance,Supplies and Services,304221,Equipment and Materials,08-Sep-2022,000008480311156,AZTEC CHEMICALS LTD,5169,Direct materials,53.66,8.94,44.72
Regeneration Economy and Growth,Economic Development Level C,030771,Durham Advance Flexible Fund,Supplies and Services,304403,Equipment and Materials,08-Sep-2022,000008480311230,AMZNBusiness N62NP3ER5,5999,Other consumables,10.00,1.67,8.33
Regeneration Economy and Growth,Economic Development Level C,030771,Durham Advance Flexible Fund,Transport,235057,Public Transport,08-Sep-2022,000008480311248,WWW.GONORTHEAST.CO.UK,4111,Staff travelling,21.50,0.00,21.50
Regeneration Economy and Growth,Economic Development Level C,030771,Durham Advance Flexible Fund,Transport,235057,Public Transport,08-Sep-2022,000008480311252,WWW.GONORTHEAST.CO.UK,4111,Staff travelling,5.60,0.00,5.60
Children and Young Peoples Services,Head of Early Help Inclusion & Vulnerable Children.,085957,Secure Management,Supplies and Services,304403,Equipment and Materials,08-Sep-2022,000008480311262,AMZNMKTPLACE AMAZON.CO,5999,Other consumables,29.95,4.99,24.96
Children and Young Peoples Services,Head of Early Help Inclusion & Vulnerable Children.,085957,Secure Management,Supplies and Services,304403,Equipment and Materials,08-Sep-2022,000008480311266,AMZNMKTPLACE AMAZON.CO,5999,Other consumables,47.76,7.96,39.80
Children and Young Peoples Services,Head of Early Help Inclusion & Vulnerable Children.,085957,Secure Management,Supplies and Services,304403,Equipment and Materials,08-Sep-2022,000008480311266 - 1,AMZNMKTPLACE AMAZON.CO,5999,Other consumables,0.04,,0.04
Children and Young Peoples Services,Head of Early Help Inclusion & Vulnerable Children.,085957,Secure Management,Supplies and Services,384999,Miscellaneous Expenses,08-Sep-2022,000008480311268,Amazon.co.uk XJ9ZS02J5,5969,Other expenses,29.70,4.95,24.75
Children and Young Peoples Services,Head of Early Help Inclusion & Vulnerable Children.,085957,Secure Management,Supplies and Services,384999,Miscellaneous Expenses,08-Sep-2022,000008480311268 - 1,Amazon.co.uk XJ9ZS02J5,5969,Other expenses,74.20,,74.20
Children and Young Peoples Services,Head of Early Help Inclusion & Vulnerable Children.,085957,Secure Management,Supplies and Services,304403,Equipment and Materials,08-Sep-2022,000008480311272,AMZNMktplace,5999,Other consumables,10.49,1.75,8.74
Children and Young Peoples Services,Head of Early Help Inclusion & Vulnerable Children.,085957,Secure Management,Supplies and Services,304403,Equipment and Materials,08-Sep-2022,000008480311276,AMZNMktplace,5999,Other consumables,13.56,2.26,11.30
Children and Young Peoples Services,Head of Early Help Inclusion & Vulnerable Children.,085957,Secure Management,Supplies and Services,304403,Equipment and Materials,08-Sep-2022,000008480311280,AMZNMktplace,5999,Other consumables,25.92,4.32,21.60
Children and Young Peoples Services,Head of Early Help Inclusion & Vulnerable Children.,085957,Secure Management,Supplies and Services,304403,Equipment and Materials,08-Sep-2022,000008480311280 - 1,AMZNMktplace,5999,Other consumables,0.04,,0.04
Children and Young Peoples Services,Head of Early Help Inclusion & Vulnerable Children.,085957,Secure Management,Supplies and Services,324117,Provisions E324,08-Sep-2022,000008480311288,TESCO STORES 6329,5411,Catering costs - provisions,55.73,0.00,55.73
Children and Young Peoples Services,Head of Early Help Inclusion & Vulnerable Children.,085957,Secure Management,Supplies and Services,384999,Miscellaneous Expenses,08-Sep-2022,000008480311290,Amazon.co.uk 1A3J00WS5,5969,Other expenses,36.54,6.09,30.45
Children and Young Peoples Services,Head of Early Help Inclusion & Vulnerable Children.,085957,Secure Management,Supplies and Services,304403,Equipment and Materials,08-Sep-2022,000008480311294,AMZNMktplace,5999,Other consumables,24.99,4.17,20.82
Children and Young Peoples Services,Head of Early Help Inclusion & Vulnerable Children.,085957,Secure Management,Supplies and Services,304403,Equipment and Materials,08-Sep-2022,000008480311298,AMZNMktplace,5999,Other consumables,13.56,3.39,10.17
Children and Young Peoples Services,Head of Early Help Inclusion & Vulnerable Children.,085957,Secure Management,Supplies and Services,304403,Equipment and Materials,08-Sep-2022,000008480311300,AMZNMktplace,5999,Other consumables,6.78,3.39,3.39
Children and Young Peoples Services,Head of Early Help Inclusion & Vulnerable Children.,085957,Secure Management,Supplies and Services,304403,Equipment and Materials,08-Sep-2022,000008480311304,AMZNMktplace,5999,Other consumables,4.75,0.79,3.96
Neighbourhoods and Climate Change,Environmental Services,031200,North Pennines Core,Transport,235057,Public Transport,08-Sep-2022,000008480311340,Trainline.COM,4112,Staff travelling,40.04,0.00,40.04
Neighbourhoods and Climate Change,Environmental Services,031200,North Pennines Core,Transport,235057,Public Transport,08-Sep-2022,000008480311342,thetrainline.com,4112,Staff travelling,82.77,0.00,82.77
Neighbourhoods and Climate Change,Environmental Services,031200,North Pennines Core,Transport,235057,Public Transport,08-Sep-2022,000008480311344,EUROSTAR INTERNATIONAL,4112,Staff travelling,115.00,0.00,115.00
Neighbourhoods and Climate Change,Environmental Services,031200,North Pennines Core,Supplies and Services,352001,Conference Expenses,08-Sep-2022,000008480311346,MS AIJBHHOSTELPARIS,7011,Conferencesseminars fees etc,88.84,0.00,88.84
Children and Young Peoples Services,Head of Childrens Social Care,085551,Short Break Services-Park Hse Sher,Supplies and Services,324117,Provisions E324,08-Sep-2022,000008480311456,TESCO STORES 2916,5411,Catering costs - provisions,20.00,0.00,20.00
Regeneration Economy and Growth,Economic Development Level C,030554,International Relations 030554,Transport,235057,Public Transport,08-Sep-2022,000008480311470,3C_ NSL Durham WAP,7523,Staff travelling,2.40,0.00,2.40
Dedicated Schools Grant BG0015,DSG Schools Block,702812,Villa Real School 7028 - IT,Supplies and Services,304403,Equipment and Materials,08-Sep-2022,000008480311482,AMZNMKTPLACE AMAZON.CO,5999,Other consumables,25.98,4.34,21.64
Dedicated Schools Grant BG0015,DSG Schools Block,702814,Villa Real School 7028 - Conductive Education,Supplies and Services,304403,Equipment and Materials,08-Sep-2022,000008480311484,JAX FIRST AID,5734,Other consumables,24.26,4.04,20.22
Dedicated Schools Grant BG0015,DSG Schools Block,351905,Silver Tree Primary 3519-Nurture,Supplies and Services,304403,Equipment and Materials,08-Sep-2022,000008480311526,ASDA GROCERIES ONLINE,5411,Other consumables,42.90,0.00,42.90
Dedicated Schools Grant BG0015,DSG Schools Block,351905,Silver Tree Primary 3519-Nurture,Supplies and Services,304403,Equipment and Materials,08-Sep-2022,000008480311528,ASDA GROCERIES ONLINE,5411,Other consumables,-0.13,0.00,-0.13
Regeneration Economy and Growth,Economic Development Level C,030771,Durham Advance Flexible Fund,Employees,040149,Recruitment Instruction and Training,08-Sep-2022,000008480311562,SQ SHERBURN HILL HUB,8398,Training-all costs,2.00,0.00,2.00
Adult and Health Services,Head of Adults,055301,Stanley Pathways,Supplies and Services,324117,Provisions E324,08-Sep-2022,000008480311578,ASDA SUPERSTORE,5411,Catering costs - provisions,5.00,0.00,5.00
Regeneration Economy and Growth,Culture Sport and Tourism,010601,Spennymoor Leisure Cr - General,Supplies and Services,304259,Equipment and Materials,08-Sep-2022,000008480311606,THE FITNESS GROUP,8999,Equipment-purchase and rental,199.00,0.00,199.00
Regeneration Economy and Growth,Culture Sport and Tourism,011291,Peterlee Leisure Centre,Employees,040149,Recruitment Instruction and Training,08-Sep-2022,000008480311610,THE FITNESS GROUP,8999,Training-all costs,398.00,0.00,398.00
Children and Young Peoples Services,Head of Education and Skills,070132,School Sport,Employees,040149,Recruitment Instruction and Training,08-Sep-2022,000008480311636,PSHE ASSOCIATION,8299,Training-all costs,95.00,0.00,95.00
Children and Young Peoples Services,Head of Education and Skills,070132,School Sport,Employees,040149,Recruitment Instruction and Training,08-Sep-2022,000008480311642,PSHE ASSOCIATION,8299,Training-all costs,95.00,0.00,95.00
Children and Young Peoples Services,Head of Education and Skills,070132,School Sport,Employees,040149,Recruitment Instruction and Training,08-Sep-2022,000008480311644,PSHE ASSOCIATION,8299,Training-all costs,95.00,0.00,95.00
Children and Young Peoples Services,Head of Early Help Inclusion & Vulnerable Children.,085965,Barnard,Supplies and Services,328041,Clothing uniforms and laundry E328,08-Sep-2022,000008480311676,SPORTSDIRECT.COM,5655,Clothing uniforms and laundry,49.99,0.00,49.99
Resources BK0010,Digital Services,065335,School Services - Implementations,Supplies and Services,304639,Equipment and Materials,08-Sep-2022,000008480311692,LAPTOP-LCD-SCREEN,5732,Technicians-supplies,157.85,0.00,157.85
Resources BK0010,Digital Services,065335,School Services - Implementations,Supplies and Services,304639,Equipment and Materials,08-Sep-2022,000008480311698,LAPTOP-LCD-SCREEN,5732,Technicians-supplies,269.10,0.00,269.10
Children and Young Peoples Services,Head of Childrens Social Care,085379,Care Leavers Team 2,Supplies and Services,364358,Grants to Voluntary Organisations,08-Sep-2022,000008480311764,SP UNIKITOUT,5399,University expenses,180.00,0.00,180.00
Children and Young Peoples Services,Head of Childrens Social Care,085358,Orchard House Sacriston Solo Home,Supplies and Services,328041,Clothing uniforms and laundry E328,08-Sep-2022,000008480311940,NikePOS_UK,5655,Clothing uniforms and laundry,36.95,0.00,36.95
Children and Young Peoples Services,Head of Childrens Social Care,085358,Orchard House Sacriston Solo Home,Supplies and Services,304403,Equipment and Materials,08-Sep-2022,000008480311944,AMZNMktplace,5999,Other consumables,42.66,7.12,35.54
Children and Young Peoples Services,Head of Childrens Social Care,085358,Orchard House Sacriston Solo Home,Supplies and Services,324117,Provisions E324,08-Sep-2022,000008480311948,WILKO RETAIL LIMITED,5399,Catering costs - provisions,13.60,0.00,13.60
Children and Young Peoples Services,Head of Childrens Social Care,085358,Orchard House Sacriston Solo Home,Supplies and Services,324117,Provisions E324,08-Sep-2022,000008480311950,WILKO RETAIL LIMITED,5399,Catering costs - provisions,6.00,0.00,6.00
Regeneration Economy and Growth,Economic Development Level C,030776,LINKCD Flexible Fund,Supplies and Services,348037,Subsistence E348,08-Sep-2022,000008480311956,43012470 COSTA COFFEE,5814,Subsistence,5.30,0.88,4.42
Regeneration Economy and Growth,Economic Development Level C,030776,LINKCD Flexible Fund,Transport,235057,Public Transport,08-Sep-2022,000008480311958,PRINCE BISHOP SHOPPING,7523,Staff travelling,2.10,0.00,2.10
Children and Young Peoples Services,Head of Childrens Social Care,085332,Middlestone Moor CU,Supplies and Services,324117,Provisions E324,08-Sep-2022,000008480311980,TESCO STORES 2916,5411,Catering costs - provisions,8.00,0.00,8.00
Resources BK0010,Resources Management CK0450,069000,Resources Management 069000,Supplies and Services,344033,Telephones,08-Sep-2022,000008480311994,APPLE.COM/BILL,5735,Telephones general-all costs,0.79,0.00,0.79
Regeneration Economy and Growth,Economic Development Level C,030771,Durham Advance Flexible Fund,Supplies and Services,304403,Equipment and Materials,08-Sep-2022,000008480312128,AMZNMktplace,5999,Other consumables,5.03,0.84,4.19
Regeneration Economy and Growth,Economic Development Level C,030771,Durham Advance Flexible Fund,Supplies and Services,304403,Equipment and Materials,08-Sep-2022,000008480312130,AMZNMktplace,5999,Other consumables,11.99,2.00,9.99
Regeneration Economy and Growth,Economic Development Level C,030771,Durham Advance Flexible Fund,Supplies and Services,304403,Equipment and Materials,08-Sep-2022,000008480312136,AMZNMktplace,5999,Other consumables,15.98,2.66,13.32
Regeneration Economy and Growth,Economic Development Level C,030771,Durham Advance Flexible Fund,Supplies and Services,304403,Equipment and Materials,08-Sep-2022,000008480312140,AMZNMktplace,5999,Other consumables,30.90,5.15,25.75
Neighbourhoods and Climate Change,Environmental Services,010301,C&G - North Grounds Maintenance,Supplies and Services,304221,Equipment and Materials,08-Sep-2022,000008480312160,ARCO LTD,5085,Direct materials,54.59,0.00,54.59
Adult and Health Services,Head of Adults,055309,Peterlee Pathways,Supplies and Services,304999,Equipment and Materials,08-Sep-2022,000008480312164,HOME BARGAINS PETERLEE,5251,Misc equipment tools and materials,5.75,0.00,5.75
Regeneration Economy and Growth,Planning & Housing,031581,Prevention Fund,Transport,235057,Public Transport,08-Sep-2022,000008480312174,UBER TRIP,4121,Staff travelling,22.20,0.00,22.20
Children and Young Peoples Services,Head of Early Help Inclusion & Vulnerable Children.,088107,Wheatley Hill & N. Aycliffe Family Centre,Supplies and Services,304403,Equipment and Materials,08-Sep-2022,000008480312178,WWW.ROMPALTD.COM,5999,Other consumables,35.82,0.00,35.82
Children and Young Peoples Services,Head of Education and Skills,075035,DurhamDirections Re-engagement,Supplies and Services,364301,Grants to Voluntary Organisations,08-Sep-2022,000008486967388,WWW.SCREWFIX.COM,5211,Hardship,4.98,0.83,4.15
Children and Young Peoples Services,Head of Education and Skills,075035,DurhamDirections Re-engagement,Supplies and Services,364301,Grants to Voluntary Organisations,08-Sep-2022,000008486967388 - 1,WWW.SCREWFIX.COM,5211,Hardship,20.01,,20.01
Children and Young Peoples Services,Head of Education and Skills,075034,Youth Futures Foundation,Supplies and Services,364301,Grants to Voluntary Organisations,08-Sep-2022,000008486967394,WWW.DURHAM.GOV.UK,9399,Hardship,11.00,0.00,11.00
Children and Young Peoples Services,Head of Early Help Inclusion & Vulnerable Children.,088104,BA/BC/Crook Intensive Family Support Team,Supplies and Services,364301,Grants to Voluntary Organisations,08-Sep-2022,000008486967676,CO-OP GROUP 310015,5411,Hardship,40.00,0.00,40.00
Children and Young Peoples Services,Head of Childrens Social Care,085347,Solo Home The Manse,Supplies and Services,324117,Provisions E324,08-Sep-2022,000008486967808,CO-OP GROUP 310016,5411,Catering costs - provisions,15.63,0.00,15.63
Adult and Health Services,Head of Adults,055302,Durham Pathways,Supplies and Services,324117,Provisions E324,08-Sep-2022,000008486967996,SAINSBURY`S S/MKT,5411,Catering costs - provisions,3.15,0.00,3.15
Regeneration Economy and Growth,Culture Sport and Tourism,054967,Theatre - Technical Staffing,Supplies and Services,304221,Equipment and Materials,08-Sep-2022,000008486968006,WWW.SCREWFIX.COM,5211,Direct materials,68.05,0.00,68.05
Neighbourhoods and Climate Change,Environmental Services,026591,C&G - Hardwick Park,Supplies and Services,332047,Printing Stationery and Gen Off Exps,08-Sep-2022,000008486968028,FINDEL EDUCATION,5969,Stationery,51.58,0.00,51.58
Children and Young Peoples Services,Head of Childrens Social Care,085364,Children Looked After Team 1,Supplies and Services,304403,Equipment and Materials,08-Sep-2022,000008486968134,AMZNMKTPLACE AMAZON.CO,5999,Other consumables,20.88,3.48,17.40
Children and Young Peoples Services,Head of Childrens Social Care,085364,Children Looked After Team 1,Supplies and Services,304403,Equipment and Materials,08-Sep-2022,000008486968134 - 1,AMZNMKTPLACE AMAZON.CO,5999,Other consumables,18.01,,18.01
Children and Young Peoples Services,Head of Early Help Inclusion & Vulnerable Children.,085957,Secure Management,Supplies and Services,304403,Equipment and Materials,08-Sep-2022,000008486968146,AMZNMKTPLACE AMAZON.CO,5999,Other consumables,17.04,2.84,14.20
Children and Young Peoples Services,Head of Early Help Inclusion & Vulnerable Children.,085957,Secure Management,Supplies and Services,304403,Equipment and Materials,08-Sep-2022,000008486968146 - 1,AMZNMKTPLACE AMAZON.CO,5999,Other consumables,0.04,,0.04
Children and Young Peoples Services,Head of Early Help Inclusion & Vulnerable Children.,088109,Dean Bank and Tudhoe Family Centre,Supplies and Services,304259,Equipment and Materials,08-Sep-2022,000008486968298,AMZNMKTPLACE AMAZON.CO,5999,Equipment-purchase and rental,129.80,0.00,129.80
Children and Young Peoples Services,Head of Education and Skills,078550,Discretionary Learning Support,Supplies and Services,304259,Equipment and Materials,08-Sep-2022,000008486968774,SMARTY CO UK,4814,Equipment-purchase and rental,6.00,0.00,6.00
Regeneration Economy and Growth,Economic Development Level C,030772,CLLD South,Supplies and Services,324117,Provisions E324,08-Sep-2022,000008486969026,WM Morrisons Store,5411,Catering costs - provisions,5.18,0.00,5.18
Regeneration Economy and Growth,Economic Development Level C,030772,CLLD South,Transport,235057,Public Transport,08-Sep-2022,000008486969028,WALKERGATE CAR PAR,7523,Staff travelling,2.00,0.00,2.00
Children and Young Peoples Services,Head of Childrens Social Care,085358,Orchard House Sacriston Solo Home,Supplies and Services,328041,Clothing uniforms and laundry E328,08-Sep-2022,000008486969122,Argos Durham Arnis,5310,Clothing uniforms and laundry,12.99,0.00,12.99
Children and Young Peoples Services,Head of Childrens Social Care,085358,Orchard House Sacriston Solo Home,Supplies and Services,324117,Provisions E324,08-Sep-2022,000008486969126,SAINSBURYS S/MKTS,5411,Catering costs - provisions,6.00,0.00,6.00
Children and Young Peoples Services,Head of Childrens Social Care,085332,Middlestone Moor CU,Supplies and Services,304221,Equipment and Materials,08-Sep-2022,000008486969168,B&Q LTD,5211,Direct materials,131.80,0.00,131.80
Children and Young Peoples Services,Head of Early Help Inclusion & Vulnerable Children.,088107,Wheatley Hill & N. Aycliffe Family Centre,Supplies and Services,332047,Printing Stationery and Gen Off Exps,08-Sep-2022,000008486969342,WWW.EQUIP4WORK.CO.UK,5021,Stationery,207.60,0.00,207.60
Children and Young Peoples Services,Head of Early Help Inclusion & Vulnerable Children.,088107,Wheatley Hill & N. Aycliffe Family Centre,Supplies and Services,328041,Clothing uniforms and laundry E328,08-Sep-2022,000008486969344,WWW.THEWORKS.CO.UK,5310,Clothing uniforms and laundry,120.00,0.00,120.00
Regeneration Economy and Growth,Corporate Property and Land,011296,Catering - Dunes,Supplies and Services,324117,Provisions E324,08-Sep-2022,000008487062174,BATLEYS PERTH,5300,Catering costs - provisions,94.56,15.76,78.80
Regeneration Economy and Growth,Corporate Property and Land,011296,Catering - Dunes,Supplies and Services,324117,Provisions E324,08-Sep-2022,000008487062174 - 1,BATLEYS PERTH,5300,Catering costs - provisions,107.33,,107.33
Neighbourhoods and Climate Change,Environmental Services,011060,C&G - Hardwick Park Catering,Supplies and Services,324117,Provisions E324,08-Sep-2022,000008487062202,BATLEYS PERTH,5300,Catering costs - provisions,92.04,15.34,76.70
Neighbourhoods and Climate Change,Environmental Services,011060,C&G - Hardwick Park Catering,Supplies and Services,324117,Provisions E324,08-Sep-2022,000008487062202 - 1,BATLEYS PERTH,5300,Catering costs - provisions,132.59,,132.59
Regeneration Economy and Growth,Corporate Property and Land,021234,Catering - Locomotion,Supplies and Services,324117,Provisions E324,08-Sep-2022,000008487062208,BATLEYS PERTH,5300,Catering costs - provisions,37.86,0.00,37.86
Regeneration Economy and Growth,Corporate Property and Land,021234,Catering - Locomotion,Supplies and Services,324117,Provisions E324,08-Sep-2022,000008487062210,BATLEYS PERTH,5300,Catering costs - provisions,260.28,43.38,216.90
Regeneration Economy and Growth,Corporate Property and Land,021234,Catering - Locomotion,Supplies and Services,324117,Provisions E324,08-Sep-2022,000008487062210 - 1,BATLEYS PERTH,5300,Catering costs - provisions,35.21,,35.21
Regeneration Economy and Growth,Culture Sport and Tourism,030712,VCD - Project Delivery,Supplies and Services,384199,Miscellaneous Expenses,09-Sep-2022,000008480310444,SMASHBALLOON.COM,5734,Other hired and contracted services,14.42,0.00,14.42
Children and Young Peoples Services,Head of Early Help Inclusion & Vulnerable Children.,085957,Secure Management,Supplies and Services,328041,Clothing uniforms and laundry E328,09-Sep-2022,000008480311284,Nike GBP,5655,Clothing uniforms and laundry,15.45,0.00,15.45
Neighbourhoods and Climate Change,Environmental Services,031200,North Pennines Core,Supplies and Services,352001,Conference Expenses,09-Sep-2022,000008480311350,MS AIJBHHOSTELPARIS,7011,Conferencesseminars fees etc,2.44,0.00,2.44
Regeneration Economy and Growth,Business Durham CL0850,030689,Inward Investment and Aftercare,Supplies and Services,304403,Equipment and Materials,09-Sep-2022,000008486967304,QR-CODE-GENERATOR.COM,5734,Other consumables,130.70,0.00,130.70
Regeneration Economy and Growth,Business Durham CL0850,030689,Inward Investment and Aftercare,Supplies and Services,304999,Equipment and Materials,09-Sep-2022,000008486967316,MAILCHIMP MISC,5968,Misc equipment tools and materials,102.62,0.00,102.62
Resources BK0010,Transactional & Customer Services,065180,Collections,Supplies and Services,338045,Services,09-Sep-2022,000008486967340,FIND A WILL,8999,Legal expenses 338045,1.50,0.00,1.50
Children and Young Peoples Services,Head of Childrens Social Care,085341,High Etherley Satelite Home,Supplies and Services,304403,Equipment and Materials,09-Sep-2022,000008486967360,AMZNMktplace,5999,Other consumables,52.98,0.00,52.98
Children and Young Peoples Services,Head of Education and Skills,075035,DurhamDirections Re-engagement,Supplies and Services,364301,Grants to Voluntary Organisations,09-Sep-2022,000008486967398,WWW.GONORTHEAST.CO.UK,4111,Hardship,6.30,0.00,6.30
Children and Young Peoples Services,Head of Education and Skills,075035,DurhamDirections Re-engagement,Supplies and Services,364301,Grants to Voluntary Organisations,09-Sep-2022,000008486967400,WWW.GONORTHEAST.CO.UK,4111,Hardship,21.50,0.00,21.50
Children and Young Peoples Services,Head of Education and Skills,075035,DurhamDirections Re-engagement,Supplies and Services,364301,Grants to Voluntary Organisations,09-Sep-2022,000008486967402,WWW.GONORTHEAST.CO.UK,4111,Hardship,21.50,0.00,21.50
Children and Young Peoples Services,Head of Education and Skills,075035,DurhamDirections Re-engagement,Supplies and Services,364301,Grants to Voluntary Organisations,09-Sep-2022,000008486967406,CITY OF NEWCASTLE INTE,9399,Hardship,11.00,0.00,11.00
Children and Young Peoples Services,Head of Education and Skills,075034,Youth Futures Foundation,Supplies and Services,364301,Grants to Voluntary Organisations,09-Sep-2022,000008486967410,EB AUTISM AWARENESS A,7399,Hardship,21.43,0.00,21.43
Children and Young Peoples Services,Head of Education and Skills,078561,DurhamEnable,Supplies and Services,364301,Grants to Voluntary Organisations,09-Sep-2022,000008486967412,WWW.SCREWFIX.COM,5211,Hardship,29.99,5.00,24.99
Children and Young Peoples Services,Head of Education and Skills,075035,DurhamDirections Re-engagement,Supplies and Services,364301,Grants to Voluntary Organisations,09-Sep-2022,000008486967414,JD SPORTS INTERNET,5941,Hardship,110.00,0.00,110.00
Neighbourhoods and Climate Change,Environmental Services,010383,C&G - South Street Cleansing,Third Party Payments,430100,Rendered by Private Contractors,09-Sep-2022,000008486967472,SQ CATHEDRAL LOCK AND,1520,Payments to sub-contractors,16.20,0.00,16.20
Regeneration Economy and Growth,Culture Sport and Tourism,030712,VCD - Project Delivery,Supplies and Services,384199,Miscellaneous Expenses,09-Sep-2022,000008486967494,WWW.DURHAMCATHEDRAL.CO,8661,Other hired and contracted services,-31.00,0.00,-31.00
Children and Young Peoples Services,Head of Childrens Social Care,085332,Middlestone Moor CU,Supplies and Services,324117,Provisions E324,09-Sep-2022,000008486967532,TESCO STORES 2371,5411,Catering costs - provisions,178.25,0.00,178.25
Children and Young Peoples Services,Head of Education and Skills,078100,Curric and Professional Development 078100,Supplies and Services,304403,Equipment and Materials,09-Sep-2022,000008486967572,ADOBE PRODUCTS,5734,Other consumables,25.28,0.00,25.28
Children and Young Peoples Services,Head of Childrens Social Care,085347,Solo Home The Manse,Supplies and Services,324117,Provisions E324,09-Sep-2022,000008486967812,WILKO RETAIL LIMITED,5399,Catering costs - provisions,3.65,0.00,3.65
Children and Young Peoples Services,Head of Childrens Social Care,085347,Solo Home The Manse,Supplies and Services,324117,Provisions E324,09-Sep-2022,000008486967816,WILKO RETAIL LIMITED,5399,Catering costs - provisions,3.50,0.00,3.50
Children and Young Peoples Services,Head of Childrens Social Care,085347,Solo Home The Manse,Supplies and Services,324117,Provisions E324,09-Sep-2022,000008486967820,TESCO STORES 2371,5411,Catering costs - provisions,75.87,0.00,75.87
Children and Young Peoples Services,Head of Childrens Social Care,085347,Solo Home The Manse,Supplies and Services,308011,Furniture,09-Sep-2022,000008486967822,The Range,5719,Furniture repair and replacement,10.99,0.00,10.99
Resources BK0010,Procurement Sales & Business Services,065504,Business Support - Meadowfield,Transport,215013,Running Costs of Vehicles,09-Sep-2022,000008486967904,DVLA VEHICLE TAX,9311,Vehicle Excise Duty (VED),292.50,0.00,292.50
Resources BK0010,Procurement Sales & Business Services,065504,Business Support - Meadowfield,Transport,215013,Running Costs of Vehicles,09-Sep-2022,000008486967906,DVLA VEHICLE TAX,9311,Vehicle Excise Duty (VED),292.50,0.00,292.50
Resources BK0010,Procurement Sales & Business Services,065504,Business Support - Meadowfield,Transport,215013,Running Costs of Vehicles,09-Sep-2022,000008486967908,DVLA VEHICLE TAX,9311,Vehicle Excise Duty (VED),292.50,0.00,292.50
Resources BK0010,Procurement Sales & Business Services,065504,Business Support - Meadowfield,Transport,215013,Running Costs of Vehicles,09-Sep-2022,000008486967912,DVLA VEHICLE TAX,9311,Vehicle Excise Duty (VED),292.50,0.00,292.50
Resources BK0010,Procurement Sales & Business Services,065504,Business Support - Meadowfield,Transport,215013,Running Costs of Vehicles,09-Sep-2022,000008486967914,DVLA VEHICLE TAX,9311,Vehicle Excise Duty (VED),292.50,0.00,292.50
Resources BK0010,Procurement Sales & Business Services,065504,Business Support - Meadowfield,Transport,215013,Running Costs of Vehicles,09-Sep-2022,000008486967918,DVLA VEHICLE TAX,9311,Vehicle Excise Duty (VED),292.50,0.00,292.50
Resources BK0010,Procurement Sales & Business Services,065504,Business Support - Meadowfield,Transport,215013,Running Costs of Vehicles,09-Sep-2022,000008486967920,DVLA VEHICLE TAX,9311,Vehicle Excise Duty (VED),292.50,0.00,292.50
Resources BK0010,Procurement Sales & Business Services,065504,Business Support - Meadowfield,Transport,215013,Running Costs of Vehicles,09-Sep-2022,000008486967922,DVLA VEHICLE TAX,9311,Vehicle Excise Duty (VED),292.50,0.00,292.50
Resources BK0010,Procurement Sales & Business Services,065504,Business Support - Meadowfield,Transport,215013,Running Costs of Vehicles,09-Sep-2022,000008486967926,DVLA VEHICLE TAX,9311,Vehicle Excise Duty (VED),167.50,0.00,167.50
Resources BK0010,Procurement Sales & Business Services,065504,Business Support - Meadowfield,Transport,215013,Running Costs of Vehicles,09-Sep-2022,000008486967928,DVLA VEHICLE TAX,9311,Vehicle Excise Duty (VED),292.50,0.00,292.50
Resources BK0010,Procurement Sales & Business Services,065504,Business Support - Meadowfield,Transport,215013,Running Costs of Vehicles,09-Sep-2022,000008486967930,DVLA VEHICLE TAX,9311,Vehicle Excise Duty (VED),167.50,0.00,167.50
Children and Young Peoples Services,Head of Education and Skills,071732,Dean Bank Childcare,Supplies and Services,384999,Miscellaneous Expenses,09-Sep-2022,000008486967988,TALKING TURTLE,5945,Other expenses,312.00,0.00,312.00
Adult and Health Services,Head of Adults,055302,Durham Pathways,Supplies and Services,304403,Equipment and Materials,09-Sep-2022,000008486967998,AMZNMKTPLACE AMAZON.CO,5999,Other consumables,33.98,5.66,28.32
Adult and Health Services,Head of Adults,055302,Durham Pathways,Supplies and Services,324117,Provisions E324,09-Sep-2022,000008486968002,WILKO RETAIL LIMITED,5399,Catering costs - provisions,2.25,0.00,2.25
Children and Young Peoples Services,Head of Childrens Social Care,085341,High Etherley Satelite Home,Supplies and Services,348037,Subsistence E348,09-Sep-2022,000008486968036,MCDONALD`S,5812,Subsistence,36.58,0.00,36.58
Children and Young Peoples Services,Head of Childrens Social Care,085333,Coxhoe Satelite Home,Supplies and Services,324117,Provisions E324,09-Sep-2022,000008486968038,B&M 481 - HS PORTRACK,5399,Catering costs - provisions,22.99,0.00,22.99
Children and Young Peoples Services,Head of Childrens Social Care,085333,Coxhoe Satelite Home,Supplies and Services,304999,Equipment and Materials,09-Sep-2022,000008486968042,HOME BARGAINS SPENNYMO,5251,Misc equipment tools and materials,41.07,0.00,41.07
Children and Young Peoples Services,Head of Childrens Social Care,085333,Coxhoe Satelite Home,Supplies and Services,308011,Furniture,09-Sep-2022,000008486968044,THE RANGE,5719,Furniture repair and replacement,59.15,0.00,59.15
Children and Young Peoples Services,Head of Childrens Social Care,085341,High Etherley Satelite Home,Supplies and Services,304999,Equipment and Materials,09-Sep-2022,000008486968078,HOME BARGAINS,5251,Misc equipment tools and materials,29.13,0.00,29.13
Children and Young Peoples Services,Head of Childrens Social Care,085341,High Etherley Satelite Home,Supplies and Services,324117,Provisions E324,09-Sep-2022,000008486968080,TESCO STORES 6329,5411,Catering costs - provisions,137.11,0.00,137.11
Children and Young Peoples Services,Head of Early Help Inclusion & Vulnerable Children.,085957,Secure Management,Supplies and Services,304403,Equipment and Materials,09-Sep-2022,000008486968156,AMZNMktplace,5999,Other consumables,17.98,3.00,14.98
Children and Young Peoples Services,Head of Early Help Inclusion & Vulnerable Children.,085957,Secure Management,Supplies and Services,308011,Furniture,09-Sep-2022,000008486968158,SEATED FURNITURE LTD,5712,Furniture repair and replacement,117.89,0.00,117.89
Children and Young Peoples Services,Head of Early Help Inclusion & Vulnerable Children.,085957,Secure Management,Supplies and Services,324117,Provisions E324,09-Sep-2022,000008486968162,TESCO STORES 6329,5411,Catering costs - provisions,138.31,0.00,138.31
Children and Young Peoples Services,Head of Early Help Inclusion & Vulnerable Children.,085957,Secure Management,Supplies and Services,304403,Equipment and Materials,09-Sep-2022,000008486968168,AMZNMktplace,5999,Other consumables,17.38,0.00,17.38
Children and Young Peoples Services,Head of Early Help Inclusion & Vulnerable Children.,085957,Secure Management,Supplies and Services,304403,Equipment and Materials,09-Sep-2022,000008486968172,AMZNMktplace,5999,Other consumables,19.78,3.30,16.48
Children and Young Peoples Services,Head of Early Help Inclusion & Vulnerable Children.,085957,Secure Management,Supplies and Services,384999,Miscellaneous Expenses,09-Sep-2022,000008486968176,ADEXA.CO.UK,5046,Other expenses,80.39,0.00,80.39
Children and Young Peoples Services,Head of Early Help Inclusion & Vulnerable Children.,085957,Secure Management,Supplies and Services,304259,Equipment and Materials,09-Sep-2022,000008486968180,JD SPORTS INTERNET,5941,Equipment-purchase and rental,120.99,0.00,120.99
Children and Young Peoples Services,Head of Early Help Inclusion & Vulnerable Children.,085957,Secure Management,Supplies and Services,304403,Equipment and Materials,09-Sep-2022,000008486968182,AMZNMKTPLACE AMAZON.CO,5999,Other consumables,23.99,0.00,23.99
Neighbourhoods and Climate Change,Environmental Services,010919,C&G - Countryside Site Management,Supplies and Services,304221,Equipment and Materials,09-Sep-2022,000008486968240,WWW.SCREWFIX.COM,5211,Direct materials,229.82,0.00,229.82
Neighbourhoods and Climate Change,Environmental Services,031200,North Pennines Core,Supplies and Services,304403,Equipment and Materials,09-Sep-2022,000008486968264,AMZNBusiness X81SH6OU5,5999,Other consumables,36.49,6.08,30.41
Neighbourhoods and Climate Change,Environmental Services,031238,North Pennines - Tees Swale,Supplies and Services,352001,Conference Expenses,09-Sep-2022,000008486968266,EB FOREST PLASTICS WO,7399,Conferencesseminars fees etc,15.00,0.00,15.00
Children and Young Peoples Services,Head of Childrens Social Care,085342,16 Hickstead Rise (previously 9 Cedar Ave),Supplies and Services,328041,Clothing uniforms and laundry E328,09-Sep-2022,000008486968270,TK MAXX,5331,Clothing uniforms and laundry,24.99,0.00,24.99
Children and Young Peoples Services,Head of Childrens Social Care,085342,16 Hickstead Rise (previously 9 Cedar Ave),Supplies and Services,348037,Subsistence E348,09-Sep-2022,000008486968274,Domino s Pizza,5812,Subsistence,71.91,0.00,71.91
Children and Young Peoples Services,Head of Childrens Social Care,085342,16 Hickstead Rise (previously 9 Cedar Ave),Supplies and Services,304259,Equipment and Materials,09-Sep-2022,000008486968278,JD SPORTS PLC,5941,Equipment-purchase and rental,93.00,0.00,93.00
Children and Young Peoples Services,Head of Early Help Inclusion & Vulnerable Children.,088109,Dean Bank and Tudhoe Family Centre,Supplies and Services,304259,Equipment and Materials,09-Sep-2022,000008486968306,AMZNMKTPLACE AMAZON.CO,5999,Equipment-purchase and rental,69.98,0.00,69.98
Regeneration Economy and Growth,Economic Development Level C,030554,International Relations 030554,Supplies and Services,312009,Newspapers books and periodicals E312,09-Sep-2022,000008486968456,AMZNBusiness ON63Q2A65,5999,Newspapers books and periodicals,7.40,0.00,7.40
Children and Young Peoples Services,Head of Childrens Social Care,085342,16 Hickstead Rise (previously 9 Cedar Ave),Supplies and Services,372009,Subscriptions E372,09-Sep-2022,000008486968536,NETFLIX.COM,4899,Subscriptions 372009,15.99,0.00,15.99
Children and Young Peoples Services,Head of Childrens Social Care,085342,16 Hickstead Rise (previously 9 Cedar Ave),Supplies and Services,352001,Conference Expenses,09-Sep-2022,000008486968558,Hotel at Booking.com,7011,Conferencesseminars fees etc,79.56,0.00,79.56
Children and Young Peoples Services,Head of Education and Skills,071732,Dean Bank Childcare,Supplies and Services,324117,Provisions E324,09-Sep-2022,000008486968608,CO-OP GROUP 010518,5411,Catering costs - provisions,2.67,0.00,2.67
Children and Young Peoples Services,Head of Childrens Social Care,085341,High Etherley Satelite Home,Supplies and Services,348037,Subsistence E348,09-Sep-2022,000008486968662,iZ WONDERFUL WHIP,5812,Subsistence,16.40,0.00,16.40
Neighbourhoods and Climate Change,Environmental Services,031202,North Pennines - Peatscapes,Transport,235057,Public Transport,09-Sep-2022,000008486968700,Weardale Motor Service,4111,Staff travelling,78.20,0.00,78.20
Children and Young Peoples Services,Head of Childrens Social Care,085334,West Rainton Satelite Home,Supplies and Services,324117,Provisions E324,09-Sep-2022,000008486968722,TESCO STORES 2371,5411,Catering costs - provisions,145.92,0.00,145.92
Resources BK0010,Digital Services,065335,School Services - Implementations,Supplies and Services,304639,Equipment and Materials,09-Sep-2022,000008486968816,TOOLSTATION UK,5251,Technicians-supplies,329.82,0.00,329.82
Resources BK0010,Digital Services,065335,School Services - Implementations,Supplies and Services,304639,Equipment and Materials,09-Sep-2022,000008486968820,REPLACEBASE,5732,Technicians-supplies,168.50,0.00,168.50
Resources BK0010,Digital Services,065323,Operations - Installations,Supplies and Services,304639,Equipment and Materials,09-Sep-2022,000008486968822,WWW.SCREWFIX.COM,5211,Technicians-supplies,189.99,0.00,189.99
Children and Young Peoples Services,Head of Early Help Inclusion & Vulnerable Children.,085957,Secure Management,Supplies and Services,384302,Miscellaneous Expenses,09-Sep-2022,000008486968870,MICROSOFT ULTIMATE 1 M,5816,Activity expenses,10.99,0.00,10.99
Children and Young Peoples Services,Head of Childrens Social Care,085357,LAC Bespoke Placements,Supplies and Services,304999,Equipment and Materials,09-Sep-2022,000008486968882,YPS CHESTER LE STREETS,6513,Misc equipment tools and materials,500.00,0.00,500.00
Neighbourhoods and Climate Change,Environmental Services,010367,C&G - South Grounds Maintenance,Supplies and Services,304999,Equipment and Materials,09-Sep-2022,000008486968918,BESCOL LIMITED,5251,Misc equipment tools and materials,129.60,0.00,129.60
Children and Young Peoples Services,Head of Education and Skills,071802,Louisa Cent Nursery,Supplies and Services,324117,Provisions E324,09-Sep-2022,000008486968950,ALDI STORES,5411,Catering costs - provisions,8.98,0.00,8.98
Regeneration Economy and Growth,Culture Sport and Tourism,054233,Bishop Auckland Town Hall Library,Supplies and Services,324117,Provisions E324,09-Sep-2022,000008486969068,HERON FOODS,5411,Catering costs - provisions,19.08,0.00,19.08
Children and Young Peoples Services,Head of Childrens Social Care,085332,Middlestone Moor CU,Supplies and Services,304403,Equipment and Materials,09-Sep-2022,000008486969170,AMZNMktplace,5999,Other consumables,34.61,0.00,34.61
Children and Young Peoples Services,Head of Childrens Social Care,085334,West Rainton Satelite Home,Supplies and Services,328041,Clothing uniforms and laundry E328,09-Sep-2022,000008486969174,ARGOS LTD,5310,Clothing uniforms and laundry,111.99,0.00,111.99
Children and Young Peoples Services,Head of Childrens Social Care,085334,West Rainton Satelite Home,Supplies and Services,348037,Subsistence E348,09-Sep-2022,000008486969176,MCDONALDS 1514,5814,Subsistence,14.65,0.00,14.65
Resources BK0010,Digital Services,065432,Web Development Group,Supplies and Services,342033,Computers and Communications,09-Sep-2022,000008486969184,SHUTTERSTOCK IRELAND L,7333,Computer hardware,90.00,0.00,90.00
Children and Young Peoples Services,Head of Childrens Social Care,085613,Families First Durham Central,Supplies and Services,364301,Grants to Voluntary Organisations,09-Sep-2022,000008486969194,WILKO.COM,5399,Hardship,15.75,0.00,15.75
Children and Young Peoples Services,Head of Childrens Social Care,071421,Sherburn Hill Childrens Centre,Supplies and Services,332047,Printing Stationery and Gen Off Exps,09-Sep-2022,000008486969204,WWW.SCREWFIX.COM,5211,Stationery,18.19,0.00,18.19
Regeneration Economy and Growth,Planning & Housing,031576,B& B - Temp Accom,Supplies and Services,364320,Grants to Voluntary Organisations,09-Sep-2022,000008486969336,Roadchef Durham,7011,Accommodation assistance,297.00,0.00,297.00
